{"text_format":"1","workbook":"xlsx","n_sheets":9,"sheets":["ListasDesplegables","Formato 1","Formato 2","Formato 3","Formato 3 Transporte","Medidas (Bienes)","Formato 3 Industrial","Formato 3 Terciario","Formato 3 Residencial"],"not_rendered":{"charts":0,"images":7,"macros":1,"external_links":1,"defined_names":17,"comments":0,"pivot_tables":0},"unopened":[],"bounds":{"document_bytes":16777216,"sheet_cells":100000,"rows_first":2000,"rows_last":500,"rows_between":2000,"halvings":0,"cell_chars":16384,"cell_head_chars":4096},"cells_cut":0,"cells_raw":0,"read":"whole","date_system":"1900"}

{"sheet":"ListasDesplegables","index":0,"n_rows":931,"n_cols":6,"rows_kept":931,"cut":false,"hidden":true,"merged":[[84,1,84,3],[85,1,85,3],[896,0,896,4]]}
[]
[null,"Anexo 1. Listas desplegables"]
[]
[null,"Listas desplegables"]
[]
[null,"DD","MM","AAAA"]
[null,"01","Enero",2018]
[null,"02","Febrero",2019]
[null,"03","Marzo",2020]
[null,"04","Abril",2021]
[null,"05","Mayo",2022]
[null,"06","Junio",2023]
[null,"07","Julio",2024]
[null,"08","Agosto",2025]
[null,"09","Septiembre"]
[null,10,"Octubre"]
[null,11,"Noviembre"]
[null,12,"Diciembre"]
[null,13]
[null,14]
[null,15]
[null,16]
[null,17]
[null,18]
[null,19]
[null,20,null,"Uso de electricidad en las categorías: flota sector oficial, taxis en las principales ciudades del país, motos y automóviles y transporte público de pasajeros de las principales ciudades país."]
[null,21]
[null,22]
[null,23]
[null,24,null,"Renta"]
[null,25]
[null,26,null,"Descuento"]
[null,27,null,"Deducción"]
[null,28]
[null,29]
[null,30]
[null,31]
[]
[null,1]
[null,"Sector"]
[]
[null,"Transporte"]
[null,"Industrial"]
[null,"Terciario (comercial, público y servicios)"]
[null,"Residencial"]
[]
[null,null,{"$f":"B39+1","v":2},"Lista 3"]
[null,null,"Acción o medida","Nota"]
[]
[null,"Si \"Transporte\" = \"ON\"","Reconversión a gas natural vehicular, GNV en transporte público de pasajeros.","Adquisición de vehículos de transporte terrestre dedicados a gas natural. "]
[null,"Si \"Transporte\" = \"ON\"","Uso de electricidad en las categorías: flota sector oficial, taxis en las principales ciudades del país, motos y automóviles y transporte público de pasajeros de las principales ciudades país.","Se incluye, además de los vehículos, la instalación y uso de estaciones de recarga (lenta y rápida, pública o domiciliaria) para vehículos eléctricos e híbridos."]
[]
[null,"Si \"Industrial\" = \"ON\"","Medidas de eficiencia energética en energía eléctrica (fuerza motriz, aire acondicionado, refrigeración, iluminación, calor directo e indirecto)","Para iluminación solo se admitirán solicitudes a partir de una potencia instalada en iluminación de 5 kW."]
[null,"Si \"Industrial\" = \"ON\"","Medidas de eficiencia energética en combustibles sólidos para calor directo e indirecto"]
[null,"Si \"Industrial\" = \"ON\"","Medidas de eficiencia energética en gas natural para calor directo e indirecto"]
[null,"Si \"Industrial\" = \"ON\"","Diseño e implementación de Sistemas de Gestión de la Energía, SGEn.","Solo se admitirán las solicitudes de los SGEn que presenten una certificación en sistemas de gestión de la energía expedida por un ente certificador acreditado a nivel nacional en ISO 50001"]
[]
[null,"Si \"Terciario (comercial, público y servicios)\" = \"ON\"","Medidas de eficiencia energética en energía eléctrica (Iluminación, aire acondicionado, motores eléctricos y mejoras de sistemas de alumbrado público)","Para iluminación solo se admitirán solicitudes a partir de una potencia instalada en iluminación de 5 kW."]
[null,"Si \"Terciario (comercial, público y servicios)\" = \"ON\"","Mejora en el diseño, la construcción y la adecuación arquitectónica de edificaciones (incluyendo mejoramiento en la trasferencia por los techos, ventanas y muros)","Solo aplicarán a las edificaciones que se encuentren en un proceso de certificación nacional o internacional en construcción sostenible a partir de la aprobación de la fase de diseño. "]
[null,"Si \"Terciario (comercial, público y servicios)\" = \"ON\"","Evaluación e implementación de distritos térmicos"]
[null,"Si \"Terciario (comercial, público y servicios)\" = \"ON\"","Implementación de nuevos y modernos sistemas de medición"]
[null,"Si \"Terciario (comercial, público y servicios)\" = \"ON\"","Implementación de SGEn","Solo se admitirán las solicitudes de los SGEn que presenten una certificación en sistemas de gestión de la energía expedida por un ente certificador acreditado a nivel nacional en ISO 50001"]
[]
[null,"Si \"Residencial\" = \"ON\"","Medidas de eficiencia energética en energía eléctrica (iluminación)","Para iluminación solo se admitirán solicitudes a partir de una potencia instalada en iluminación de 5 kW."]
[null,"Si \"Residencial\" = \"ON\"","Mejoramiento de la eficiencia energética en edificaciones (pinturas atérmicas, extractores eólicos y otros medios de acondicionamiento ambiental por medios naturales)","Solo aplicarán a las edificaciones que se encuentren en un proceso de certificación nacional o internacional en construcción sostenible a partir de la aprobación de la fase de diseño. "]
[null,"Si \"Residencial\" = \"ON\"","Implementación de estufas mejoradas de leña"]
[]
[null,{"$f":"#REF!+2","v":{"$error":"#REF!"}}]
[null,"Marca de selección"]
[null,null,"X"]
[]
[null,{"$f":"C47+2","v":4}]
[null,"Tipo de identificación Solicitante"]
[]
[null,"NIT"]
[null,"Cédula de ciudadanía"]
[null,"Cédula de extranjería"]
[null,"Pasaporte "]
[]
[null,"Tipo de identificación Representante Legal"]
[]
[null,"Cédula de ciudadanía"]
[null,"Cédula de extranjería"]
[null,"Pasaporte "]
[null,{"$f":"B72+1","v":5}]
[null,"Código de actividad económica CIIU Ver 4"]
[]
[null,"1011 - Procesamiento y conservación de carne y productos cárnicos"]
[null,"1012 - Procesamiento y conservación de pescados, crustáceos y moluscos"]
[null,"1020 - Procesamiento y conservación de frutas, legumbres, hortalizas y tubérculos"]
[null,"1030 - Elaboración de aceites y grasas de origen vegetal y animal"]
[null,"1040 - Elaboración de productos lácteos"]
[null,"1051 - Elaboración de productos de molinería"]
[null,"1052 - Elaboración de almidones y productos derivados del almidón"]
[null,"1061 - Trilla de café"]
[null,"1062 - Descafeinado, tostión y molienda del café"]
[null,"1063 - Otros derivados del café"]
[null,"1071 - Elaboración y refinación de azúcar"]
[null,"1072 - Elaboración de panela"]
[null,"1081 - Elaboración de productos de panadería"]
[null,"1082 - Elaboración de cacao, chocolate y productos de confitería"]
[null,"1083 - Elaboración de macarrones, fideos, alcuzcuz y productos farináceos similares"]
[null,"1084 - Elaboración de comidas y platos preparados"]
[null,"1089 - Elaboración de otros productos alimenticios n.c.p."]
[null,"1090 - Elaboración de alimentos preparados para animales"]
[null,"1101 - Destilación, rectificación y mezcla de bebidas alcohólicas"]
[null,"1102 - Elaboración de bebidas fermentadas no destiladas"]
[null,"1103 - Producción de malta, elaboración de cervezas y otras bebidas malteadas"]
[null,"1104 - Elaboración de bebidas no alcohólicas, producción de aguas minerales y de otras aguas embotelladas"]
[null,"1200 - Elaboración de productos de tabaco"]
[null,"1311 - Preparación e hilatura de fibras textiles"]
[null,"1312 - Tejeduría de productos textiles"]
[null,"1313 - Acabado de productos textiles"]
[null,"1391 - Fabricación de tejidos de punto y ganchillo"]
[null,"1392 - Confección de artículos con materiales textiles, excepto prendas de vestir"]
[null,"1393 - Fabricación de tapetes y alfombras para pisos"]
[null,"1394 - Fabricación de cuerdas, cordeles, cables, bramantes y redes"]
[null,"1399 - Fabricación de otros artículos textiles n.c.p."]
[null,"1410 - Confección de prendas de vestir, excepto prendas de piel"]
[null,"1420 - Fabricación de artículos de piel"]
[null,"1430 - Fabricación de artículos de punto y ganchillo"]
[null,"1511 - Curtido y recurtido de cueros; recurtido y teñido de pieles"]
[null,"1512 - Fabricación de artículos de viaje, bolsos de mano y artículos similares elaborados en cuero, y fabricación de artículos de talabartería y guarnicionería"]
[null,"1513 - Fabricación de artículos de viaje, bolsos de mano y artículos similares; artículos de talabartería y guarnicionería elaborados en otros materiales"]
[null,"1521 - Fabricación de calzado de cuero y piel, con cualquier tipo de suela"]
[null,"1522 - Fabricación de otros tipos de calzado, excepto calzado de cuero y piel"]
[null,"1523 - Fabricación de partes del calzado"]
[null,"1610 - Aserrado, acepillado e impregnación de la madera"]
[null,"1620 - Fabricación de hojas de madera para enchapado; fabricación de tableros contrachapados, tableros laminados, tableros de partículas y otros tableros y paneles"]
[null,"1630 - Fabricación de partes y piezas de madera, de carpintería y ebanistería para la construcción"]
[null,"1640 - Fabricación de recipientes de madera"]
[null,"1690 - Fabricación de otros productos de madera; fabricación de artículos de corcho, cestería y espartería"]
[null,"1701 - Fabricación de pulpas (pastas) celulósicas; papel y cartón"]
[null,"1702 - Fabricación de papel y cartón ondulado (corrugado); fabricación de envases, empaques y de embalajes de papel y cartón."]
[null,"1709 - Fabricación de otros artículos de papel y cartón"]
[null,"1811 - Actividades de impresión"]
[null,"1812 - Actividades de servicios relacionados con la impresión"]
[null,"1820 - Producción de copias a partir de grabaciones originales "]
[null,"1910 - Fabricación de productos de hornos de coque"]
[null,"1921 - Fabricación de productos de la refinación del petróleo"]
[null,"1922 - Actividad de mezcla de combustibles"]
[null,"2011 - Fabricación de sustancias y productos químicos básicos"]
[null,"2012 - Fabricación de abonos y compuestos inorgánicos nitrogenados"]
[null,"2013 - Fabricación de plásticos en formas primarias"]
[null,"2014 - Fabricación de caucho sintético en formas primarias"]
[null,"2021 - Fabricación de plaguicidas y otros productos químicos de uso agropecuario"]
[null,"2022 - Fabricación de pinturas, barnices y revestimientos similares, tintas para impresión y masillas"]
[null,"2023 - Fabricación de jabones y detergentes, preparados para limpiar y pulir; perfumes y preparados de tocador"]
[null,"2029 - Fabricación de otros productos químicos n.c.p."]
[null,"2030 - Fabricación de fibras sintéticas y artificiales"]
[null,"2100 - Fabricación de productos farmacéuticos, sustancias químicas medicinales y productos botánicos de uso farmacéutico"]
[null,"2211 - Fabricación de llantas y neumáticos de caucho"]
[null,"2212 - Reencauche de llantas usadas"]
[null,"2219 - Fabricación de formas básicas de caucho y otros productos de caucho n.c.p."]
[null,"2221 - Fabricación de formas básicas de plástico"]
[null,"2229 - Fabricación de artículos de plástico n.c.p."]
[null,"2310 - Fabricación de vidrio y productos de vidrio"]
[null,"2391 - Fabricación de productos refractarios"]
[null,"2392 - Fabricación de materiales de arcilla para la construcción"]
[null,"2393 - Fabricación de otros productos de cerámica y porcelana"]
[null,"2394 - Fabricación de cemento, cal y yeso"]
[null,"2395 - Fabricación de artículos de hormigón, cemento y yeso"]
[null,"2396 - Corte, tallado y acabado de la piedra"]
[null,"2399 - Fabricación de otros productos minerales no metálicos n.c.p."]
[null,"2410 - Industrias básicas de hierro y de acero"]
[null,"2421 - Industrias básicas de metales preciosos"]
[null,"2429 - Industrias básicas de otros metales no ferrosos"]
[null,"2431 - Fundición de hierro y de acero"]
[null,"2432 - Fundición de metales no ferrosos "]
[null,"2511 - Fabricación de productos metálicos para uso estructural"]
[null,"2512 - Fabricación de tanques, depósitos y recipientes de metal, excepto los utilizados para el envase o transporte de mercancías"]
[null,"2513 - Fabricación de generadores de vapor, excepto calderas de agua caliente para calefacción central"]
[null,"2520 - Fabricación de armas y municiones"]
[null,"2591 - Forja, prensado, estampado y laminado de metal; pulvimetalurgia"]
[null,"2592 - Tratamiento y revestimiento de metales; mecanizado"]
[null,"2593 - Fabricación de artículos de cuchillería, herramientas de mano y artículos de ferretería"]
[null,"2599 - Fabricación de otros productos elaborados de metal n.c.p."]
[null,"2610 - Fabricación de componentes y tableros electrónicos"]
[null,"2620 - Fabricación de computadoras y de equipo periférico"]
[null,"2630 - Fabricación de equipos de comunicación"]
[null,"2640 - Fabricación de aparatos electrónicos de consumo"]
[null,"2651 - Fabricación de equipo de medición, prueba, navegación y control"]
[null,"2652 - Fabricación de relojes"]
[null,"2660 - Fabricación de equipo de irradiación y equipo electrónico de uso médico y terapéutico"]
[null,"2670 - Fabricación de instrumentos ópticos y equipo fotográfico"]
[null,"2680 - Fabricación de medios magnéticos y ópticos para almacenamiento de datos"]
[null,"2711 - Fabricación de motores, generadores y transformadores eléctricos"]
[null,"2712 - Fabricación de aparatos de distribución y control de la energía eléctrica"]
[null,"2720 - Fabricación de pilas, baterías y acumuladores eléctricos"]
[null,"2731 - Fabricación de hilos y cables eléctricos y de fibra óptica"]
[null,"2732 - Fabricación de dispositivos de cableado"]
[null,"2740 - Fabricación de equipos eléctricos de iluminación"]
[null,"2750 - Fabricación de aparatos de uso doméstico"]
[null,"2790 - Fabricación de otros tipos de equipo eléctrico n.c.p."]
[null,"2811 - Fabricación de motores, turbinas, y partes para motores de combustión interna"]
[null,"2812 - Fabricación de equipos de potencia hidráulica y neumática"]
[null,"2813 - Fabricación de otras bombas, compresores, grifos y válvulas"]
[null,"2814 - Fabricación de cojinetes, engranajes, trenes de engranajes y piezas de transmisión"]
[null,"2815 - Fabricación de hornos, hogares y quemadores industriales"]
[null,"2816 - Fabricación de equipo de elevación y manipulación"]
[null,"2817 - Fabricación de maquinaria y equipo de oficina (excepto computadoras y equipo periférico)"]
[null,"2818 - Fabricación de herramientas manuales con motor"]
[null,"2819 - Fabricación de otros tipos de maquinaria y equipo de uso general n.c.p."]
[null,"2821 - Fabricación de maquinaria agropecuaria y forestal"]
[null,"2822 - Fabricación de máquinas formadoras de metal y de máquinas herramienta"]
[null,"2823 - Fabricación de maquinaria para la metalurgia"]
[null,"2824 - Fabricación de maquinaria para explotación de minas y canteras y para obras de construcción"]
[null,"2825 - Fabricación de maquinaria para la elaboración de alimentos, bebidas y tabaco"]
[null,"2826 - Fabricación de maquinaria para la elaboración de productos textiles, prendas de vestir y cueros"]
[null,"2829 - Fabricación de otros tipos de maquinaria y equipo de uso especial n.c.p."]
[null,"2910 - Fabricación de vehículos automotores y sus motores"]
[null,"2920 - Fabricación de carrocerías para vehículos automotores; fabricación de remolques y semirremolques "]
[null,"2930 - Fabricación de partes, piezas (autopartes) y accesorios (lujos) para vehículos automotores"]
[null,"3011 - Construcción de barcos y de estructuras flotantes"]
[null,"3012 - Construcción de embarcaciones de recreo y deporte"]
[null,"3020 - Fabricación de locomotoras y de material rodante para ferrocarriles"]
[null,"3030 - Fabricación de aeronaves, naves espaciales y de maquinaria conexa"]
[null,"3040 - Fabricación de vehículos militares de combate"]
[null,"3091 - Fabricación de motocicletas"]
[null,"3092 - Fabricación de bicicletas y de sillas de ruedas para personas con discapacidad"]
[null,"3099 - Fabricación de otros tipos de equipo de transporte n.c.p."]
[null,"3110 - Fabricación de muebles "]
[null,"3120 - Fabricación de colchones y somieres"]
[null,"3210 - Fabricación de joyas, bisutería y artículos conexos"]
[null,"3220 - Fabricación de instrumentos musicales"]
[null,"3230 - Fabricación de artículos y equipo para la práctica del deporte"]
[null,"3240 - Fabricación de juegos, juguetes y rompecabezas"]
[null,"3250 - Fabricación de instrumentos, aparatos y materiales médicos y odontológicos (incluido mobiliario)"]
[null,"3290 - Otras industrias manufactureras n.c.p."]
[null,"3311 - Mantenimiento y reparación especializado de productos elaborados en metal"]
[null,"3312 - Mantenimiento y reparación especializado de maquinaria y equipo"]
[null,"3313 - Mantenimiento y reparación especializado de equipo electrónico y óptico"]
[null,"3314 - Mantenimiento y reparación especializado de equipo eléctrico"]
[null,"3315 - Mantenimiento y reparación especializado de equipo de transporte, excepto los vehículos automotores, motocicletas y bicicletas"]
[null,"3319 - Mantenimiento y reparación de otros tipos de equipos y sus componentes n.c.p."]
[null,"3320 - Instalación especializada de maquinaria y equipo industrial "]
[null,"3511 - Generación de energía eléctrica"]
[null,"3512 - Transmisión de energía eléctrica"]
[null,"3513 - Distribución de energía eléctrica"]
[null,"3514 - Comercialización de energía eléctrica"]
[null,"3520 - Producción de gas; distribución de combustibles gaseosos por tuberías"]
[null,"3530 - Suministro de vapor y aire acondicionado"]
[null,"3600 - Captación, tratamiento y distribución de agua"]
[null,"3700 - Evacuación y tratamiento de aguas residuales"]
[null,"3811 - Recolección de desechos no peligrosos"]
[null,"3812 - Recolección de desechos peligrosos"]
[null,"3821 - Tratamiento y disposición de desechos no peligrosos"]
[null,"3822 - Tratamiento y disposición de desechos peligrosos"]
[null,"3830 - Recuperación de materiales"]
[null,"3900 - Actividades de saneamiento ambiental y otros servicios de gestión de desechos"]
[null,"4111 - Construcción de edificios residenciales"]
[null,"4112 - Construcción de edificios no residenciales"]
[null,"4210 - Construcción de carreteras y vías de ferrocarril"]
[null,"4220 - Construcción de proyectos de servicio público"]
[null,"4290 - Construcción de otras obras de ingeniería civil"]
[null,"4311 - Demolición"]
[null,"4312 - Preparación del terreno"]
[null,"4321 - Instalaciones eléctricas"]
[null,"4322 - Instalaciones de fontanería, calefacción y aire acondicionado"]
[null,"4329 - Otras instalaciones especializadas"]
[null,"4330 - Terminación y acabado de edificios y obras de ingeniería civil"]
[null,"4390 - Otras actividades especializadas para la construcción de edificios y obras de ingeniería civil"]
[null,"4511 - Comercio de vehículos automotores nuevos"]
[null,"4512 - Comercio de vehículos automotores usados"]
[null,"4520 - Mantenimiento y reparación de vehículos automotores"]
[null,"4530 - Comercio de partes, piezas (autopartes) y accesorios (lujos) para vehículos automotores"]
[null,"4541 - Comercio de motocicletas y de sus partes, piezas y accesorios"]
[null,"4542 - Mantenimiento y reparación de motocicletas y de sus partes y piezas"]
[null,"4610 - Comercio al por mayor a cambio de una retribución o por contrata"]
[null,"4620 - Comercio al por mayor de materias primas agropecuarias; animales vivos"]
[null,"4631 - Comercio al por mayor de productos alimenticios"]
[null,"4632 - Comercio al por mayor de bebidas y tabaco"]
[null,"4641 - Comercio al por mayor de productos textiles, productos confeccionados para uso doméstico"]
[null,"4642 - Comercio al por mayor de prendas de vestir"]
[null,"4643 - Comercio al por mayor de calzado"]
[null,"4644 - Comercio al por mayor de aparatos y equipo de uso doméstico"]
[null,"4645 - Comercio al por mayor de productos farmacéuticos, medicinales, cosméticos y de tocador"]
[null,"4649 - Comercio al por mayor de otros utensilios domésticos n.c.p."]
[null,"4651 - Comercio al por mayor de computadores, equipo periférico y programas de informática"]
[null,"4652 - Comercio al por mayor de equipo, partes y piezas electrónicos y de telecomunicaciones"]
[null,"4653 - Comercio al por mayor de maquinaria y equipo agropecuarios"]
[null,"4659 - Comercio al por mayor de otros tipos de maquinaria y equipo n.c.p."]
[null,"4661 - Comercio al por mayor de combustibles sólidos, líquidos, gaseosos y productos conexos"]
[null,"4662 - Comercio al por mayor de metales y productos metalíferos"]
[null,"4663 - Comercio al por mayor de materiales de construcción, artículos de ferretería, pinturas, productos de vidrio, equipo y materiales de fontanería y calefacción"]
[null,"4664 - Comercio al por mayor de productos químicos básicos, cauchos y plásticos en formas primarias y productos químicos de uso agropecuario"]
[null,"4665 - Comercio al por mayor de desperdicios, desechos y chatarra"]
[null,"4669 - Comercio al por mayor de otros productos n.c.p."]
[null,"4690 - Comercio al por mayor no especializado"]
[null,"4711 - Comercio al por menor en establecimientos no especializados con surtido compuesto principalmente por alimentos, bebidas o tabaco"]
[null,"4719 - Comercio al por menor en establecimientos no especializados, con surtido compuesto principalmente por productos diferentes de alimentos (víveres en general), bebidas y tabaco"]
[null,"4721 - Comercio al por menor de productos agrícolas para el consumo en establecimientos especializados"]
[null,"4722 - Comercio al por menor de leche, productos lácteos y huevos, en establecimientos especializados"]
[null,"4723 - Comercio al por menor de carnes (incluye aves de corral), productos cárnicos, pescados y productos de mar, en establecimientos especializados"]
[null,"4724 - Comercio al por menor de bebidas y productos del tabaco, en establecimientos especializados"]
[null,"4729 - Comercio al por menor de otros productos alimenticios n.c.p., en establecimientos especializados"]
[null,"4731 - Comercio al por menor de combustible para automotores"]
[null,"4732 - Comercio al por menor de lubricantes (aceites, grasas), aditivos y productos de limpieza para vehículos automotores"]
[null,"4741 - Comercio al por menor de computadores, equipos periféricos, programas de informática y equipos de telecomunicaciones en establecimientos especializados"]
[null,"4742 - Comercio al por menor de equipos y aparatos de sonido y de video, en establecimientos especializados"]
[null,"4751 - Comercio al por menor de productos textiles en establecimientos especializados"]
[null,"4752 - Comercio al por menor de artículos de ferretería, pinturas y productos de vidrio en establecimientos especializados"]
[null,"4753 - Comercio al por menor de tapices, alfombras y cubrimientos para paredes y pisos en establecimientos especializados"]
[null,"4754 - Comercio al por menor de electrodomésticos y gasodomésticos de uso doméstico, muebles y equipos de iluminación"]
[null,"4755 - Comercio al por menor de artículos y utensilios de uso doméstico"]
[null,"4759 - Comercio al por menor de otros artículos domésticos en establecimientos especializados"]
[null,"4761 - Comercio al por menor de libros, periódicos, materiales y artículos de papelería y escritorio, en establecimientos especializados"]
[null,"4762 - Comercio al por menor de artículos deportivos, en establecimientos especializados "]
[null,"4769 - Comercio al por menor de otros artículos culturales y de entretenimiento n.c.p. en establecimientos especializados"]
[null,"4771 - Comercio al por menor de prendas de vestir y sus accesorios (incluye artículos de piel) en establecimientos especializados"]
[null,"4772 - Comercio al por menor de todo tipo de calzado y artículos de cuero y sucedáneos del cuero en establecimientos especializados."]
[null,"4773 - Comercio al por menor de productos farmacéuticos y medicinales, cosméticos y artículos de tocador en establecimientos especializados"]
[null,"4774 - Comercio al por menor de otros productos nuevos en establecimientos especializados"]
[null,"4775 - Comercio al por menor de artículos de segunda mano"]
[null,"4781 - Comercio al por menor de alimentos, bebidas y tabaco, en puestos de venta móviles"]
[null,"4782 - Comercio al por menor de productos textiles, prendas de vestir y calzado, en puestos de venta móviles"]
[null,"4789 - Comercio al por menor de otros productos en puestos de venta móviles"]
[null,"4791 - Comercio al por menor realizado a través de Internet"]
[null,"4792 - Comercio al por menor realizado a través de casas de venta o por correo"]
[null,"4799 - Otros tipos de comercio al por menor no realizado en establecimientos, puestos de venta o mercados."]
[null,"4911 - Transporte férreo de pasajeros"]
[null,"4912 - Transporte férreo de carga "]
[null,"4921 - Transporte de pasajeros"]
[null,"4922 - Transporte mixto"]
[null,"4923 - Transporte de carga por carretera"]
[null,"4930 - Transporte por tuberías"]
[null,"5011 - Transporte de pasajeros marítimo y de cabotaje "]
[null,"5012 - Transporte de carga marítimo y de cabotaje "]
[null,"5021 - Transporte fluvial de pasajeros"]
[null,"5022 - Transporte fluvial de carga"]
[null,"5111 - Transporte aéreo nacional de pasajeros "]
[null,"5112 - Transporte aéreo internacional de pasajeros "]
[null,"5121 - Transporte aéreo nacional de carga "]
[null,"5122 - Transporte aéreo internacional de carga "]
[null,"5210 - Almacenamiento y depósito"]
[null,"5221 - Actividades de estaciones, vías y servicios complementarios para el transporte terrestre"]
[null,"5222 - Actividades de puertos y servicios complementarios para el transporte acuático"]
[null,"5223 - Actividades de aeropuertos, servicios de navegación aérea y demás actividades conexas al transporte aéreo"]
[null,"5224 - Manipulación de carga"]
[null,"5229 - Otras actividades complementarias al transporte"]
[null,"5310 - Actividades postales nacionales"]
[null,"5320 - Actividades de mensajería"]
[null,"5511 - Alojamiento en hoteles "]
[null,"5512 - Alojamiento en apartahoteles"]
[null,"5513 - Alojamiento en centros vacacionales "]
[null,"5514 - Alojamiento rural"]
[null,"5519 - Otros tipos de alojamientos para visitantes"]
[null,"5520 - Actividades de zonas de camping y parques para vehículos recreacionales"]
[null,"5530 - Servicio por horas "]
[null,"5590 - Otros tipos de alojamiento n.c.p."]
[null,"5611 - Expendio a la mesa de comidas preparadas"]
[null,"5612 - Expendio por autoservicio de comidas preparadas"]
[null,"5613 - Expendio de comidas preparadas en cafeterías"]
[null,"5619 - Otros tipos de expendio de comidas preparadas n.c.p."]
[null,"5621 - Catering para eventos"]
[null,"5629 - Actividades de otros servicios de comidas"]
[null,"5630 - Expendio de bebidas alcohólicas para el consumo dentro del establecimiento"]
[null,"5811 - Edición de libros"]
[null,"5812 - Edición de directorios y listas de correo"]
[null,"5813 - Edición de periódicos, revistas y otras publicaciones periódicas"]
[null,"5819 - Otros trabajos de edición"]
[null,"5820 - Edición de programas de informática (software)"]
[null,"5911 - Actividades de producción de películas cinematográficas, videos, programas, anuncios y comerciales de televisión"]
[null,"5912 - Actividades de posproducción de películas cinematográficas, videos, programas, anuncios y comerciales de televisión"]
[null,"5913 - Actividades de distribución de películas cinematográficas, videos, programas, anuncios y comerciales de televisión"]
[null,"5914 - Actividades de exhibición de películas cinematográficas y videos"]
[null,"5920 - Actividades de grabación de sonido y edición de musica"]
[null,"6010 - Actividades de programación y transmisión en el servicio de radiodifusión sonora"]
[null,"6020 - Actividades de programación y transmisión de televisión"]
[null,"6110 - Actividades de telecomunicaciones alámbricas"]
[null,"6120 - Actividades de telecomunicaciones inalámbricas"]
[null,"6130 - Actividades de telecomunicación satelital"]
[null,"6190 - Otras actividades de telecomunicaciones"]
[null,"6201 - Actividades de desarrollo de sistemas informáticos (planificación, análisis, diseño, programación, pruebas)"]
[null,"6202 - Actividades de consultoría informática y actividades de administración de instalaciones informáticas"]
[null,"6209 - Otras actividades de tecnologías de información y actividades de servicios informáticos"]
[null,"6311 - Procesamiento de datos, alojamiento (hosting) y actividades relacionadas"]
[null,"6312 - Portales web"]
[null,"6391 - Actividades de agencias de noticias"]
[null,"6399 - Otras actividades de servicio de información n.c.p."]
[null,"6411 - Banco Central"]
[null,"6412 - Bancos comerciales"]
[null,"6421 - Actividades de las corporaciones financieras"]
[null,"6422 - Actividades de las compañías de financiamiento"]
[null,"6423 - Banca de segundo piso"]
[null,"6424 - Actividades de las cooperativas financieras"]
[null,"6431 - Fideicomisos, fondos y entidades financieras similares"]
[null,"6432 - Fondos de cesantías"]
[null,"6491 - Leasing financiero (arrendamiento financiero)"]
[null,"6492 - Actividades financieras de fondos de empleados y otras formas asociativas del sector solidario"]
[null,"6493 - Actividades de compra de cartera o factoring"]
[null,"6494 - Otras actividades de distribución de fondos"]
[null,"6495 - Instituciones especiales oficiales"]
[null,"6499 - Otras actividades de servicio financiero, excepto las de seguros y pensiones n.c.p."]
[null,"6511 - Seguros generales "]
[null,"6512 - Seguros de vida"]
[null,"6513 - Reaseguros"]
[null,"6514 - Capitalización"]
[null,"6521 - Servicios de seguros sociales de salud"]
[null,"6522 - Servicios de seguros sociales de riesgos profesionales"]
[null,"6531 - Régimen de prima media con prestación definida (RPM)"]
[null,"6532 - Régimen de ahorro individual (RAI)"]
[null,"6611 - Administración de mercados financieros"]
[null,"6612 - Corretaje de valores y de contratos de productos básicos"]
[null,"6613 - Otras actividades relacionadas con el mercado de valores"]
[null,"6614 - Actividades de las casas de cambio"]
[null,"6615 - Actividades de los profesionales de compra y venta de divisas"]
[null,"6619 - Otras actividades auxiliares de las actividades de servicios financieros n.c.p."]
[null,"6621 - Actividades de agentes y corredores de seguros"]
[null,"6629 - Evaluación de riesgos y daños, y otras actividades de servicios auxiliares"]
[null,"6630 - Actividades de administración de fondos"]
[null,"6810 - Actividades inmobiliarias realizadas con bienes propios o arrendados"]
[null,"6820 - Actividades inmobiliarias realizadas a cambio de una retribución o por contrata "]
[null,"6910 - Actividades jurídicas"]
[null,"6920 - Actividades de contabilidad, teneduría de libros, auditoría financiera y asesoría tributaria"]
[null,"7010 - Actividades de administración empresarial"]
[null,"7020 - Actividades de consultaría de gestión"]
[null,"7110 - Actividades de arquitectura e ingeniería y otras actividades conexas de consultoría técnica"]
[null,"7120 - Ensayos y análisis técnicos"]
[null,"7210 - Investigaciones y desarrollo experimental en el campo de las ciencias naturales y la ingeniería "]
[null,"7220 - Investigaciones y desarrollo experimental en el campo de las ciencias sociales y las humanidades"]
[null,"7310 - Publicidad"]
[null,"7320 - Estudios de mercado y realización de encuestas de opinión pública"]
[null,"7410 - Actividades especializadas de diseño "]
[null,"7420 - Actividades de fotografía"]
[null,"7490 - Otras actividades profesionales, científicas y técnicas n.c.p."]
[null,"7500 - Actividades veterinarias"]
[null,"7710 - Alquiler y arrendamiento de vehículos automotores"]
[null,"7721 - Alquiler y arrendamiento de equipo recreativo y deportivo"]
[null,"7722 - Alquiler de videos y discos "]
[null,"7729 - Alquiler y arrendamiento de otros efectos personales y enseres domésticos n.c.p."]
[null,"7730 - Alquiler y arrendamiento de otros tipos de maquinaria, equipo y bienes tangibles n.c.p."]
[null,"7740 - Arrendamiento de propiedad intelectual y productos similares, excepto obras protegidas por derechos de autor"]
[null,"7810 - Actividades de agencias de empleo"]
[null,"7820 - Actividades de agencias de empleo temporal"]
[null,"7830 - Otras actividades de suministro de recurso humano"]
[null,"7911 - Actividades de las agencias de viaje"]
[null,"7912 - Actividades de operadores turísticos"]
[null,"7990 - Otros servicios de reserva y actividades relacionadas"]
[null,"8010 - Actividades de seguridad privada"]
[null,"8020 - Actividades de servicios de sistemas de seguridad"]
[null,"8030 - Actividades de detectives e investigadores privados"]
[null,"8110 - Actividades combinadas de apoyo a instalaciones"]
[null,"8121 - Limpieza general interior de edificios"]
[null,"8129 - Otras actividades de limpieza de edificios e instalaciones industriales"]
[null,"8130 - Actividades de paisajismo y servicios de mantenimiento conexos"]
[null,"8211 - Actividades combinadas de servicios administrativos de oficina"]
[null,"8219 - Fotocopiado, preparación de documentos y otras actividades especializadas de apoyo a oficina"]
[null,"8220 - Actividades de centros de llamadas (Call center)"]
[null,"8230 - Organización de convenciones y eventos comerciales"]
[null,"8291 - Actividades de agencias de cobranza y oficinas de calificación crediticia"]
[null,"8292 - Actividades de envase y empaque"]
[null,"8299 - Otras actividades de servicio de apoyo a las empresas n.c.p."]
[null,"8411 - Actividades legislativas de la administración pública"]
[null,"8412 - Actividades ejecutivas de la administración pública"]
[null,"8413 - Regulación de las actividades de organismos que prestan servicios de salud, educativos, culturales y otros servicios sociales, excepto servicios de seguridad social "]
[null,"8414 - Actividades reguladoras y facilitadoras de la actividad económica"]
[null,"8415 - Actividades de los otros órganos de control"]
[null,"8421 - Relaciones exteriores "]
[null,"8422 - Actividades de defensa"]
[null,"8423 - Orden público y actividades de seguridad"]
[null,"8424 - Administración de justicia"]
[null,"8430 - Actividades de planes de seguridad social de afiliación obligatoria"]
[null,"8511 - Educación de la primera infancia"]
[null,"8512 - Educación preescolar"]
[null,"8513 - Educación básica primaria"]
[null,"8521 - Educación básica secundaria "]
[null,"8522 - Educación media académica"]
[null,"8523 - Educación media técnica y de formación laboral"]
[null,"8530 - Establecimientos que combinan diferentes niveles de educación "]
[null,"8541 - Educación técnica profesional"]
[null,"8542 - Educación tecnológica"]
[null,"8543 - Educación de instituciones universitarias o de escuelas tecnológicas"]
[null,"8544 - Educación de universidades"]
[null,"8551 - Formación académica no formal "]
[null,"8552 - Enseñanza deportiva y recreativa"]
[null,"8553 - Enseñanza cultural"]
[null,"8559 - Otros tipos de educación n.c.p."]
[null,"8560 - Actividades de apoyo a la educación"]
[null,"8610 - Actividades de hospitales y clínicas, con internación"]
[null,"8621 - Actividades de la práctica médica, sin internación"]
[null,"8622 - Actividades de la práctica odontológica"]
[null,"8691 - Actividades de apoyo diagnóstico"]
[null,"8692 - Actividades de apoyo terapéutico"]
[null,"8699 - Otras actividades de atención de la salud humana"]
[null,"8710 - Actividades de atención residencial medicalizada de tipo general"]
[null,"8720 - Actividades de atención residencial, para el cuidado de pacientes con retardo mental, enfermedad mental y consumo de sustancias psicoactivas"]
[null,"8730 - Actividades de atención en instituciones para el cuidado de personas mayores y/o discapacitadas"]
[null,"8790 - Otras actividades de atención en instituciones con alojamiento"]
[null,"8810 - Actividades de asistencia social sin alojamiento para personas mayores y discapacitadas"]
[null,"8890 - Otras actividades de asistencia social sin alojamiento"]
[null,"9001 - Creación literaria"]
[null,"9002 - Creación musical"]
[null,"9003 - Creación teatral"]
[null,"9004 - Creación audiovisual"]
[null,"9005 - Artes plásticas y visuales"]
[null,"9006 - Actividades teatrales"]
[null,"9007 - Actividades de espectáculos musicales en vivo"]
[null,"9008 - Otras actividades de espectáculos en vivo"]
[null,"9101 - Actividades de bibliotecas y archivos"]
[null,"9102 - Actividades y funcionamiento de museos, conservación de edificios y sitios históricos"]
[null,"9103 - Actividades de jardines botánicos, zoológicos y reservas naturales"]
[null,"9200 - Actividades de juegos de azar y apuestas"]
[null,"9311 - Gestión de instalaciones deportivas"]
[null,"9312 - Actividades de clubes deportivos"]
[null,"9319 - Otras actividades deportivas"]
[null,"9321 - Actividades de parques de atracciones y parques temáticos"]
[null,"9329 - Otras actividades recreativas y de esparcimiento n.c.p."]
[null,"9411 - Actividades de asociaciones empresariales y de empleadores"]
[null,"9412 - Actividades de asociaciones profesionales"]
[null,"9420 - Actividades de sindicatos de empleados"]
[null,"9491 - Actividades de asociaciones religiosas"]
[null,"9492 - Actividades de asociaciones políticas"]
[null,"9499 - Actividades de otras asociaciones n.c.p."]
[null,"9511 - Mantenimiento y reparación de computadores y de equipo periférico"]
[null,"9512 - Mantenimiento y reparación de equipos de comunicación"]
[null,"9521 - Mantenimiento y reparación de aparatos electrónicos de consumo"]
[null,"9522 - Mantenimiento y reparación de aparatos y equipos domésticos y de jardinería "]
[null,"9523 - Reparación de calzado y artículos de cuero"]
[null,"9524 - Reparación de muebles y accesorios para el hogar"]
[null,"9529 - Mantenimiento y reparación de otros efectos personales y enseres domésticos"]
[null,"9601 - Lavado y limpieza, incluso la limpieza en seco, de productos textiles y de piel"]
[null,"9602 - Peluquería y otros tratamientos de belleza"]
[null,"9603 - Pompas fúnebres y actividades relacionadas"]
[null,"9609 - Otras actividades de servicios personales n.c.p."]
[]
[null,{"$f":"B85+1","v":6}]
[null,"Tipo de identificación Representante legal"]
[]
[null,"Cédula de ciudadanía"]
[null,"Cédula de extranjería"]
[null,"Pasaporte "]
[]
[]
[null,{"$f":"B527+1","v":7},null,{"$f":"B535+1","v":8}]
[null,"Energético",null,"Unidad de consumo/mes"]
[]
[null,"Bagazo","Si Bagazo = ON","Toneladas/mes","Toneladas/mes"]
[null,"Carbón mineral","Si Carbón mineral = ON","Toneladas/mes","Kg/mes"]
[null,"Cascarilla de café","Si Cascarilla de café = ON","Toneladas/mes","Millones de pies cúbicos/mes"]
[null,"Cascarilla de arroz","Si Cascarilla de arroz = ON","Toneladas/mes","Metros cúbicos/mes"]
[null,"Residuos de palma","Si Residuos de palma = ON","Toneladas/mes","Galones/mes"]
[null,"Carbón leña","Si Carbón leña = ON","Toneladas/mes","Barriles/mes"]
[null,"Coque","Si Coque = ON","Toneladas/mes","Libras/mes"]
[null,"Leña","Si Leña = ON","Toneladas/mes","GWh/mes"]
[null,"Gas natural","Si Gas natural = ON","Millones de pies cúbicos/mes","MWh/mes"]
[null,"Gas industrial de alto horno","Si Gas natural = ON","Metros cúbicos/mes","kWh/mes"]
[null,"Gas licuado de petróleo","Si Gas industrial de alto horno = ON","Millones de pies cúbicos/mes","MBTU/mes"]
[null,"Gas de refinería","Si Gas industrial de alto horno = ON","Metros cúbicos/mes","Otro"]
[null,"Biogás","Si Gas licuado de petróleo = ON","Galones/mes"]
[null,"Petróleo","Si Gas licuado de petróleo = ON","Barriles/mes"]
[null,"Gasolina motor","Si Gas licuado de petróleo = ON","Libras/mes"]
[null,"Diesel oil","Si Gas de refinería = ON","Millones de pies cúbicos/mes"]
[null,"Kerosene y jet fuel","Si Gas de refinería = ON","Metros cúbicos/mes"]
[null,"Fuel oil","Si Biogás = ON","Millones de pies cúbicos/mes"]
[null,"Energía eléctrica","Si Biogás = ON","Metros cúbicos/mes"]
[null,"Otro","Si Petróleo = ON","Galones/mes"]
[null,null,"Si Petróleo = ON","Barriles/mes"]
[null,null,"Si Gasolina motor = ON","Galones/mes"]
[null,null,"Si Gasolina motor = ON","Barriles/mes"]
[null,null,"Si Diesel oil = ON","Galones/mes"]
[null,null,"Si Diesel oil = ON","Barriles/mes"]
[null,null,"Si Kerosene y jet fuel = ON","Galones/mes"]
[null,null,"Si Kerosene y jet fuel = ON","Barriles/mes"]
[null,null,"Si Fuel oil = ON","Galones/mes"]
[null,null,"Si Fuel oil = ON","Barriles/mes"]
[null,null,"Si Energía eléctrica = ON","GWh/mes"]
[null,null,"Si Energía eléctrica = ON","MWh/mes"]
[null,null,"Si Otro = ON","Otro"]
[]
[null,{"$f":"D535+1","v":9}]
[null,"Rango de potencia de motores"]
[]
[null,"≤ 10 HP"]
[null,"> 10 y ≤ 50 HP"]
[null,"> 50 y ≤ 100 HP"]
[null,"> 100 y ≤ 200 HP"]
[null,"> 200 HP "]
[]
[null,{"$f":"B571+1","v":10}]
[null,"Tipo de caldera"]
[]
[null,"Pirotubular"]
[null,"Acuotubular"]
[]
[null,"Lista desplegable xx"]
[null,"Energético para transporte"]
[]
[null,"Gasolina"]
[null,"Diésel"]
[null,"Gas Natural"]
[null,"Electricidad"]
[null,"Gasolina - Electricidad"]
[null,"Diésel - Electricidad"]
[null,"Carbón"]
[null,"GLP"]
[null,"Otro"]
[]
[null,"Lista desplegable xx"]
[null,"Energético para trenes"]
[]
[null,"Electricidad"]
[null,"Carbón"]
[null,"Otro"]
[]
[null,"Lista desplegable xx"]
[null,"Unidad de consumo en transporte"]
[]
[null,"Galones/mes"]
[null,"m3/mes"]
[null,"kWh/mes"]
[null,"MWh/mes"]
[null,"ton/mes"]
[null,"Libras/mes"]
[]
[null,{"$f":"B580+1","v":11}]
[null,"Unidades (rendimiento)"]
[]
[null,"km/gal"]
[null,"km/m3"]
[null,"km/kWh"]
[null,"km/Ton"]
[]
[null,{"$f":"B616+1","v":12}]
[null,"Tecnología / energético*"]
[]
[null,"Diesel - ACPM"]
[null,"Gasolina"]
[null,"Convertido Gasolina - Gas natural"]
[null,"Convertido Diesel - Gas natural"]
[null,"Híbrido Gasolina - Eléctrico"]
[null,"Híbrido Diésel - Eléctrico"]
[null,"100% Eléctrico"]
[null,"Vapor / Carbón"]
[]
[null,{"$f":"B624+1","v":13}]
[null,"Tipo de bus"]
[]
[null,"Microbus (10 - 19 pax)"]
[null,"Buseta (20 - 40 pax)"]
[null,"Bus (40 - 80 pax)"]
[null,"Bus (Padrones - 80 - 120 pax)"]
[null,"Bus (Articulados - 160pax)"]
[null,"Bus (Biarticulados - 240pax)"]
[null,"Otro"]
[]
[null,{"$f":"B636+1","v":14}]
[null,"Tipo de vehículo de carga"]
[]
[null,"Volqueta"]
[null,"Campero"]
[null,"Camioneta (Hasta 5 Ton)"]
[null,"Camión (Más de 5 Ton)"]
[null,"Tractocamión"]
[null,"Otro"]
[]
[null,{"$f":"B647+1","v":15}]
[null,"Tipo de vehículo liviano"]
[]
[null,"Automovil"]
[null,"Camioneta"]
[null,"Campero "]
[null,"Motocicleta"]
[null,"Otro"]
[]
[null,{"$f":"B657+1","v":16}]
[null,"Tipo de tren o ferrocaril"]
[]
[null,"Locomotora"]
[null,"Vagón"]
[null,"Cable aéreo"]
[null,"Otro"]
[]
[null,{"$f":"B666+1","v":17}]
[null,"Tipo de vehículo ",null,"Tipo de vehículo",null,"Tipo de vehículo eléctrico"]
[]
[null,"Bus",null,"Automóvil (campero o camioneta)",null,"Automóvil (campero o camioneta)"]
[null,"Vehículo de carga",null,"Automóvil (sedán o coupé)",null,"Automóvil (sedán o coupé)"]
[null,"Vehículo liviano",null,"Bus (40 - 80 pax)",null,"Bus (40 - 80 pax)"]
[null,"Campero o camioneta",null,"Bus (Articulados - 160pax)",null,"Bus (Articulados - 160pax)"]
[null,"Tren",null,"Bus (Biarticulados - 240pax)",null,"Bus (Biarticulados - 240pax)"]
[null,"Cable aéreo",null,"Bus (Padrones - 80 - 120 pax)",null,"Bus (Padrones - 80 - 120 pax)"]
[null,"Otro",null,"Buseta (20 - 40 pax)",null,"Buseta (20 - 40 pax)"]
[null,null,null,"Camión (Más de 5 Ton)",null,"Camión (Más de 5 Ton)"]
[null,{"$f":"B674+1","v":18},null,"Microbus (10 - 19 pax)",null,"Microbus (10 - 19 pax)"]
[null,"Tecnología / energético",null,"Tractocamión",null,"Moto"]
[null,null,null,"Tren",null,"Tractocamión"]
[null,"Híbrido (gasolina - eléctrico)",null,"Volqueta",null,"Tren"]
[null,"Híbrido (diésel - eléctrico)",null,"Otro",null,"Volqueta"]
[null,"100% Eléctrico",null,null,null,"Otro"]
[]
[null,{"$f":"B685+1","v":19},null,"Tipo de conector"]
[null,"Unidades (rendimiento)"]
[null,null,null,"Schuko"]
[null,"km/gal",null,"Tipo 1"]
[null,"km/m3",null,"Tipo 2"]
[null,"km/kWh",null,"Tipo 3"]
[null,"km/Ton",null,"CHAdeMO"]
[null,{"$f":"B692+1","v":20},null,"Combo 2"]
[null,"Tipo de tecnología eléctrica para industria",null,"Múltiple"]
[]
[null,"Fuerza motriz",null,"Tipo de batería"]
[null,"Acondicionamiento de espacios"]
[null,"Refrigeración",null,"Niquel e hidruro metálico(Ni-Mh)"]
[null,"Iluminación",null,"Ion-litio (Li-Ion)",null,"Tipo de flujo caldera"]
[null,"Calor directo e indirecto",null,"Níquel-Hierro (NiFe)"]
[null,null,null,"Litio-ferrofosfato (LiFePO)",null,"Horizontal"]
[null,{"$f":"B699+1","v":21},null,"Zebra (NaNiCl)",null,"Vertical"]
[null,"Tipo de uso térmico para industria",null,"Otra"]
[]
[null,"Calor directo",null,"Tipo de transformador",null,"Unidad de medida de caudal de diseño"]
[null,"Calor indirecto"]
[null,null,null,"Seco",null,"m3/seg"]
[null,{"$f":"B708+1","v":22},null,"Sumergido en aceite",null,"litros/seg"]
[null,"Tipo de tecnología eléctrica para industria"]
[null,null,null,"Clase de transformador"]
[null,"Horno"]
[null,"Caldera",null,"H",null,"Uso en aislamiento térmico"]
[null,"Quemador",null,"F"]
[null,"Aislamiento",null,null,null,"Tubería"]
[null,"Tubería",null,"Topología banco de condensadores",null,"Ducto"]
[null,"Otro",null,null,null,"Tanque"]
[null,null,null,"Estrella",null,"Caldera"]
[null,{"$f":"B714+1","v":23},null,"Triángulo",null,"Horno"]
[null,"Tipo de tecnología eléctrica para industria",null,"Estrella - Triángulo"]
[]
[null,"Equipo o tecnología"]
[null,"Servicio",null,"Clase de AA según RETIQ",null,"Unidades de Potencia Frigorífica"]
[]
[null,{"$f":"B724+1","v":24},null,"A",null,"kWt"]
[null,"Tipo de tecnología eléctrica para terciario",null,"B",null,"TR"]
[null,null,null,null,null,"BTU/h"]
[null,"Iluminación",null,"Clase de motor según RETIQ"]
[null,"Fuerza motriz",null,null,null,"Sistemas de Refrigeración"]
[null,"Acondicionamiento de espacios",null,"Premium (IE3)"]
[null,"Sistemas de alumbrado público",null,"Super Premium (IE4)",null,"Unidad semicompacta"]
[null,null,null,"Alta (IE2)",null,"Unidad compacta"]
[null,{"$f":"B730+1","v":25},null,null,null,"Rack de refrigeración"]
[null,"Tipo de tecnología en iluminación para terciario",null,"Clase de motor según RETIQ Para variador",null,"Chiller eléctrico"]
[null,null,null,null,null,"Chiller de absorción"]
[null,"Incandescente",null,"Baja"]
[null,"Fluorescente lineal",null,"Estándar"]
[null,"Fluorescente compacta",null,"Alta"]
[null,"LED",null,"Premium"]
[null,"Halogenuro metálico",null,"Super Premium"]
[null,"Sodio a alta presión"]
[null,"Otro"]
[]
[null,"Lista desplegable xx"]
[null,"Tipo de tecnología en AA para terciario"]
[]
[null,"Ventana"]
[null,"Split"]
[null,"Mini Split"]
[null,"Central"]
[null,"Chiller refrigerado por aire"]
[null,"Chiller refrigerado por agua"]
[null,"Chiller de absorción"]
[null,"Otro"]
[]
[null,"Lista desplegable xx"]
[null,"Tipo de tecnología en refrigeración para terciario"]
[]
[null,"Nevera"]
[null,"Nevecón"]
[null,"Botellero"]
[null,"Congelador"]
[null,"Vitrina refrigeradora"]
[null,"Cava"]
[null,"Cuarto frío"]
[null,"Rack de refrigeración"]
[null,"Otro"]
[]
[null,"Lista desplegable xx"]
[null,"Tipo de tecnología en equipos de oficina para terciario"]
[]
[null,"Computadores de escritorio"]
[null,"Computadores portátiles"]
[null,"Impresoras"]
[null,"Fotocopiadoras"]
[null,"Servidores informáticos"]
[null,"Otro"]
[]
[]
[null,"Transporte","Industrial","Terciario (comercial, público y servicios)","Residencial"]
[null,"Reconversión a gas natural vehicular, GNV en transporte público de pasajeros.","Medidas de eficiencia energética en energía eléctrica (fuerza motriz, aire acondicionado, refrigeración, iluminación, calor directo e indirecto) ","Medidas de eficiencia energética en energía eléctrica\n(Iluminación, aire acondicionado, motores eléctricos y mejoras de sistemas de alumbrado público) ","Medidas de eficiencia energética en energía eléctrica (iluminación)"]
[null,"Uso de electricidad en las categorías: flota sector oficial, taxis en las principales ciudades del país, motos y automóviles y transporte público de pasajeros de las principales ciudades país.  ","Medidas de eficiencia energética en combustibles sólidos para calor directo e indirecto ","Mejora en el diseño, la construcción y la adecuación arquitectónica de edificaciones (incluyendo mejoramiento en la trasferencia por los techos, ventanas y muros)","Mejoramiento de la eficiencia energética en edificaciones (pinturas atérmicas, extractores eólicos y otros medios de acondicionamiento ambiental por medios naturales)"]
[null," ","Medidas de eficiencia energética en gas natural para calor directo e indirecto","Evaluación e implementación de distritos térmicos","Implementación de estufas mejoradas de leña",1]
[null," ","Diseño e implementación de Sistemas de Gestión de la Energía, SGEn. ","Implementación de nuevos y modernos sistemas de medición"," ","Seleccione un sector"]
[null," "," ","Implementación de SGEn"," "," "]
[null,null,null,null,null," "]
[null,null,null,null,null," "]
[null,{"$f":"IFERROR(HLOOKUP('[1]Bloque 1'!$C$10,$B$785:$F$790,C793,FALSE),\"\")","v":""},2,null,null," "]
[null,{"$f":"IFERROR(HLOOKUP('[1]Bloque 1'!$C$10,$B$785:$F$790,C794,FALSE),\"\")","v":""},3]
[null,{"$f":"IFERROR(HLOOKUP('[1]Bloque 1'!$C$10,$B$785:$F$790,C795,FALSE),\"\")","v":""},4]
[null,{"$f":"IFERROR(HLOOKUP('[1]Bloque 1'!$C$10,$B$785:$F$790,C796,FALSE),\"\")","v":""},5]
[null,"Tipo de uso estación de recarga",6]
[]
[null,"Oficial"]
[null,"Pública"]
[null,"Privada"]
[]
[]
[null,"Tipo de uso",null,"Tipo de AA"]
[]
[null,"Oficial",null,"Ventana"]
[null,"Particular",null,"Split"]
[null,"Público",null,"Central"]
[null,null,null,"VRF –  Enfriado por aire"]
[null,"Lista desplegable xx",null,"VRF –  Enfriados por agua"]
[null,"Estaciones de recarga",null,"DX Solo Frio – Paquete"]
[null,"Tipo de uso ",null,"DX Bomba de Calor"]
[null,null,null,"DX Tipo Split un solo circuito"]
[null,"Lenta",null,"DX Tipo Split doble circuito"]
[null,"Rápida",null,"DX Tipo Split un solo circuito bomba de calor"]
[null,null,null,"DX Tipo Split doble circuito bomba de calor"]
[null,"Lista desplegable xx",null,"DX Chiller Scroll condensado por aire",null,"Unidades de potencia o capacidad calorífica"]
[null,"Energéticos para quemadores",null,"DX Chiller Tornillo condensado por aire"]
[null,null,null,"DX Chiller Scroll condensado por agua",null,"kW"]
[null,"Carbón",null,"DX Chiller Tornillo condensado por agua",null,"BTU/h"]
[null,"Gas natural",null,"DX Chiller centrífugo condensado por agua"]
[null,null,null,"Chiller de absorción",null,"Unidades de producción de oxígeno"]
[null,"Lista desplegable xx"]
[null,"Tipos de quemadores",null,null,null,"Kg/h"]
[null,null,null,"Tipo de compresor",null,"m3/h"]
[null,"Atmosférico (solo para Gas Natural)"]
[null,"Mecánico (Presurizado)",null,"Hermético"]
[null,null,null,"Semihermético",null,"Sistema de enfriamiento"]
[null,"Lista desplegable xx",null,"Scroll"]
[null,"Equipos de SACI",null,"Tornillo",null,"Aire"]
[null,null,null,"Centrífugo",null,"Agua"]
[null,"Atenuador (dimmer)"]
[null,"Sensor de ocupación"]
[null,"Sensor fotoeléctrico",null,"Tipo de ventilador"]
[null,"Sensor de tiempo (reloj)"]
[null,"Balasto multitensión",null,"Impulsor"]
[null,null,null,"Extractor"]
[null,"Lista desplegable xx",null,"De recirculación"]
[null,"Tipos de uso de fuentes luminosas"]
[]
[null,"Iluminación interior",null,"Fuente de energía para chiller de absorción"]
[null,"Alumbrado Público (senderos, parques o plazoletas)",null,null,null,"Presión de salida de Vapor"]
[null,"Alumbrado Público (vías)",null,"Vapor de agua"]
[null,null,null,"Agua sobrecalentada",null,"Contrapresión"]
[null,"Lista desplegable xx",null,"Gases de escape",null,"Escape libre"]
[null,"Tipos de bomba centrífuga",null,"Energía solar",null,"Condensación"]
[null,null,null,"Quemadores eficientes"]
[null,"De flujo radial",null,null,null,"Unidad de potencia (turbina a gas y vapor)"]
[null,"De flujo axial",null,"Turbina de vapor"]
[null,"De flujo mixto",null,null,null,"kW"]
[null,null,null,"Acción",null,"MW"]
[null,"Lista desplegable xx",null,"Reacción"]
[null,"Tipo de tecnología en AA para DT"]
[]
[null,"Chiller refrigerado por aire",null,"Monoetapa"]
[null,"Chiller refrigerado por agua",null,"Multietapa"]
[null,"Chiller de absorción"]
[null,"Otro"]
[null,null,null,"Radial"]
[null,"Lista desplegable xx",null,"Axial"]
[null,"Tipo de equipo para central de intercambio en  DT",null,"Mixta"]
[]
[null,"Intercambiador de calor"]
[null,"Acumulador",null,"Tipo de sensor de telegestión"]
[null,"Otro",null,null,null,"Unidad de medida de capacidad hidráulica"]
[null,null,null,"De luminaria"]
[null,"Lista desplegable xx",null,"De segmento",null,"lt"]
[null,"Tipo de aislante térmico",null,null,null,"gal"]
[null,null,null,"Tipo de intercambiador de calor"]
[null,"Flexible"]
[null,"Rígido",null,"De tubos"]
[null,"Preformado",null,"Termosoldado"]
[null,"Semirrígido",null,"De placas"]
[null,"Tipo de aislante térmico"]
[]
[null,"Preformado",null,"EnergíaEléctrica"]
[null,"Flexible"]
[null,"Semirrígido",null,"MWh/año"]
[null,null,null,"kWh/año"]
[null,"Lista desplegable xx",null,"TJ/año"]
[null,"Comunicaciones para medición moderna y avanzada"]
[null,null,null,"GasNatural"]
[null,"Puerto óptico"]
[null,"PLC",null,"m3/año"]
[null,"GSM/GPRS",null,"TJ/año"]
[null,"RS485"]
[null,"M-Bus",null,"CombustibleLíquido"]
[null,"Otra"]
[null,null,null,"gal/año"]
[null,null,null,"TJ/año"]
[null,"Energía eléctrica"]
[null,"Gas natural",null,"CombustibleSólido"]
[null,"Combustible líquido"]
[null,"Combustible sólido",null,"ton/año"]
[null,null,null,"TJ/año"]
[]
["Departamentos"]
[]
[null,"AMAZONAS"]
[null,"ANTIOQUIA"]
[null,"ARAUCA"]
[null,"ARCHIPIELAGO DE SAN ANDRES PROVIDENCIA Y SANTA CATALINA"]
[null,"ATLANTICO"]
[null,"BOGOTA D.C."]
[null,"BOLÍVAR"]
[null,"BOYACÁ"]
[null,"CALDAS"]
[null,"CAQUETÁ"]
[null,"CASANARE"]
[null,"CAUCA"]
[null,"CESAR"]
[null,"CHOCÓ"]
[null,"CÓRDOBA"]
[null,"CUNDINAMARCA"]
[null,"GUAINÍA"]
[null,"GUAVIARE"]
[null,"HUILA"]
[null,"LA GUAJIRA"]
[null,"MAGDALENA"]
[null,"META"]
[null,"NARIÑO"]
[null,"NORTE DE SANTANDER"]
[null,"PUTUMAYO"]
[null,"QUINDIO"]
[null,"RISARALDA"]
[null,"SANTANDER"]
[null,"SUCRE"]
[null,"TOLIMA"]
[null,"VALLE DEL CAUCA"]
[null,"VAUPÉS"]
[null,"VICHADA"]

{"sheet":"Formato 1","index":1,"n_rows":52,"n_cols":32,"rows_kept":52,"cut":false,"hidden":false,"merged":[[37,1,37,16],[37,17,37,42],[38,1,38,16],[38,17,38,42],[39,1,39,16],[39,17,39,42],[51,2,51,11],[51,30,51,39],[50,30,50,42],[50,2,50,14],[43,1,45,42],[30,17,30,29],[30,30,30,42],[35,17,35,42],[32,17,32,42],[33,17,33,42],[34,17,34,26],[34,33,34,42],[34,27,34,32],[26,17,26,29],[26,30,26,42],[28,17,28,29],[28,30,28,42],[29,17,29,29],[29,30,29,42],[23,17,23,29],[23,30,23,42],[24,17,24,29],[24,30,24,42],[25,17,25,29],[25,30,25,42],[20,17,20,29],[20,30,20,42],[21,17,21,29],[21,30,21,42],[22,17,22,29],[22,30,22,42],[19,17,19,29],[19,30,19,42],[13,23,13,24],[13,36,13,37],[14,23,14,24],[14,36,14,37],[17,17,17,29],[17,30,17,42],[16,17,16,29],[16,30,16,42],[3,31,3,42],[4,31,4,42],[6,1,7,42],[18,17,18,29],[18,30,18,42]]}
[]
[null,"FORMATO 1. Información solicitantes"]
[]
[null,null,null,null,null,null,null,null,null,null,null,null,null,null,null,null,null,null,null,null,null,null,null,null,null,null,null,null,null,null,null,"Fecha de elaboración: Noviembre de 2021"]
[null,null,null,null,null,null,null,null,null,null,null,null,null,null,null,null,null,null,null,null,null,null,null,null,null,null,null,null,null,null,null,"Versión 3"]
[]
[null,"En esta sección se identifica a los solicitantes su actividad económica y a la persona de contacto con la cual se podrán resolver inquietudes con respecto a la solicitud."]
[]
[]
[]
[null,"Solicitantes"]
[]
[null,null,null,null,null,null,null,null,null,null,null,null,null,null,null,null,null,"a1. Datos de solicitante principal",null,null,null,null,null,null,null,null,null,null,null,null,"a2. Datos de solicitante secundario"]
[null,"a1.Tipo de solicitante",null,null,null,null,null,null,null,null,null,null,null,null,null,null,null,"Persona natural",null,null,null,null,null,null,null,null,null,null,null,null,"Persona natural"]
[null,null,null,null,null,null,null,null,null,null,null,null,null,null,null,null,null,"Persona jurídica",null,null,null,null,null,null,null,null,null,null,null,null,"Persona jurídica"]
[]
[null,"Rol"]
[null,"Razón social o nombre completo del solicitante"]
[null,"Tipo de identificación"]
[null,"Número de identificación"]
[null,"Código de actividad económica CIIU Revisión 4",null,null,null,null,null,null,null,null,null,null,null,null,null,null,null,"Código CIIU Rev. 4",null,null,null,null,null,null,null,null,null,null,null,null,"Código CIIU Rev. 4"]
[null,"Departamento"]
[null,"Municipio"]
[null,"Dirección"]
[null,"Teléfono fijo"]
[null,"Teléfono celular"]
[null,"correo electrónico de notificación"]
[null,"b1. Representante legal o apoderado"]
[null,"Nombre del representante legal"]
[null,"Tipo de identificación"]
[null,"Número de identificación"]
[null,"c1. Contacto"]
[null,"Nombre del contacto responsable del proyecto"]
[null,"Cargo"]
[null,"Teléfono fijo",null,null,null,null,null,null,null,null,null,null,null,null,null,null,null,null,null,null,null,null,null,null,null,null,null,"Teléfono celular"]
[null,"e-mail"]
[]
[null,"d1. Nombre del proyecto"]
[null,"e1. Valor de la inversión objeto del beneficio antes de impuestos en COP"]
[null,"f1. Número de acreditación o referencia de pago de la tarifa"]
[]
[null,"Declaración "]
[]
[null,"Con la presente solicitud declaro que toda la información suministrada con miras a obtener la certificación que permita acceder a los incentivos establecidos en el Art 424-7, 428-f y 255 del estatuto tributario y en el artículo 11 de la Ley 1715 de 2014, es veraz y me hago responsable por ella. Así mismo, autorizo a la UPME para que de conformidad con el artículo 67 del Código de Procedimiento Administrativo y de lo Contencioso Administrativo, notifique todas las actuaciones surtidas en desarrollo del trámite al correo electrónico de notificaciones informado en el presente documento."]
[]
[]
[]
[]
[]
[]
[null,null,"Firma del R.L. del solicitante principal",null,null,null,null,null,null,null,null,null,null,null,null,null,null,null,null,null,null,null,null,null,null,null,null,null,null,null,"Firma del R.L. del solicitante secundario"]
[null,null,"C.C / C.E",null,null,null,null,null,null,null,null,null,null,null,null,null,null,null,null,null,null,null,null,null,null,null,null,null,null,null,"C.C / C.E"]

{"sheet":"Formato 2","index":2,"n_rows":41,"n_cols":42,"rows_kept":41,"cut":false,"hidden":false,"merged":[[40,41,40,43],[39,36,39,39],[35,26,36,29],[35,31,36,34],[37,41,38,43],[39,41,39,43],[40,36,40,39],[11,40,11,43],[19,26,19,42],[35,21,36,24],[32,6,32,11],[34,21,34,24],[34,26,34,29],[34,31,34,34],[35,41,36,43],[35,1,36,14],[35,16,36,19],[40,1,40,14],[40,16,40,19],[40,21,40,24],[40,26,40,29],[40,31,40,34],[31,6,31,11],[29,1,29,43],[39,1,39,14],[39,16,39,19],[39,21,39,24],[39,26,39,29],[39,31,39,34],[34,41,34,43],[35,36,36,39],[31,1,31,5],[37,1,38,14],[37,16,38,19],[37,36,38,39],[37,21,38,24],[37,26,38,29],[37,31,38,34],[3,32,3,43],[4,32,4,43],[7,1,9,43],[32,1,32,5],[25,1,25,16],[25,17,25,43],[26,1,26,16],[26,17,26,43],[27,1,27,16],[27,17,27,43],[15,17,15,42],[16,17,16,42],[23,1,23,16],[24,1,24,16],[24,17,24,43],[23,17,23,43]]}
[]
[null,"FORMATO 2. Generalidades del proyecto"]
[]
[null,null,null,null,null,null,null,null,null,null,null,null,null,null,null,null,null,null,null,null,null,null,null,null,null,null,null,null,null,null,null,null,"Fecha de elaboración: Noviembre de 2021"]
[null,null,null,null,null,null,null,null,null,null,null,null,null,null,null,null,null,null,null,null,null,null,null,null,null,null,null,null,null,null,null,null,"Versión 3"]
[]
[]
[null,"En esta sección debe indicarse el sector en el cual se realizará el proyecto, la acción o medida en la cual se enmarca, la información del proyecto (nombre, ubicación, descripción, indicadores de monitoreo y seguimiento), así como el ahorro estimado del energético en el proyecto respecto a escenario real o simulado convencional"]
[]
[]
[]
[]
[]
[]
[null,"a1.Tipo de proyecto:"]
[null,"Sector"]
[null,"Acción o medida"]
[]
[null,"Incentivos que se pretenden",null,null,null,null,null,null,null,null,null,null,null,null,null,null,null,"Exclusión de IVA",null,null,null,null,null,null,null,"Deducción de Renta",null,null,null,null,null,null,null,null,null,"Descuento en Renta"]
[]
[]
[]
[]
[null,"b1. Nombre del proyecto"]
[null,"Departamento"]
[null,"Municipio"]
[null,"Indicadores de seguimiento, control y monitoreo \n(opcional)",null,null,null,null,null,null,null,null,null,null,null,null,null,null,null,"Se deben relacionar los indicadores energéticos con los cuales el solicitante hará seguimiento al proyecto. Puede relacionar otros indicadores tales como económicos, ambientales o sociales si resultan pertinentes. "]
[null,"Otros anexos",null,null,null,null,null,null,null,null,null,null,null,null,null,null,null,"Mencione aquí otros documentos que considere pertinentes para la evaluación del proyecto, como por ejemplo las evidencias de cumplimiento de normas técnicas, bases de cálculo detalladas del proyecto en formato editable. \nAdjunte por separado estos documentos."]
[]
[null,"c1.Ahorro estimado del energético en el proyecto respecto a escenario real o simulado convencional (unidades de energía, volumen o peso del energético): "]
[]
[null,"Energético"]
[null,"Unidad propuesta"]
[]
[null,null,null,null,null,null,null,null,null,null,null,null,null,null,null,null,null,"TJ/año",null,null,null,"MWh/año",null,null,null,null,"kWh/año",null,null,null,null,"m3/año",null,null,null,null,null,"gal/año",null,null,null,"ton/año"]
[null,"Consumo energético global de la empresa, planta, proceso o equipo antes de la ejecución del proyecto"]
[]
[null,"Consumo energético global de la empresa, planta, proceso o equipo después de la ejecución del proyecto"]
[]
[null,"Diferencia (unidades absolutas)",null,null,null,null,null,null,null,null,null,null,null,null,null,null,{"$f":"+Q36-Q38","v":0},null,null,null,null,{"$f":"+V36-V38","v":0},null,null,null,null,{"$f":"+AA36-AA38","v":0},null,null,null,null,{"$f":"+AF36-AF38","v":0},null,null,null,null,{"$f":"+AK36-AK38","v":0},null,null,null,null,{"$f":"+AP36-AP38","v":0}]
[null,"Diferencia (%)",null,null,null,null,null,null,null,null,null,null,null,null,null,null,{"$f":"+Q40/Q36","v":{"$error":"#DIV/0!"}},null,null,null,null,{"$f":"+V40/V36","v":{"$error":"#DIV/0!"}},null,null,null,null,{"$f":"+AA40/AA36","v":{"$error":"#DIV/0!"}},null,null,null,null,{"$f":"+AF40/AF36","v":{"$error":"#DIV/0!"}},null,null,null,null,{"$f":"+AK40/AK36","v":{"$error":"#DIV/0!"}},null,null,null,null,{"$f":"+AP40/AP36","v":{"$error":"#DIV/0!"}}]

{"sheet":"Formato 3","index":3,"n_rows":1332,"n_cols":3,"rows_kept":1332,"cut":false,"hidden":false,"merged":[[56,1,57,1],[56,2,57,2],[6,1,6,2],[3,1,4,2],[7,1,7,2],[9,1,10,1],[9,2,10,2]]}
[]
[null,"FORMATO 3. Equipos objeto del incentivo","Fecha de elaboración: Noviembre de 2021"]
[null,null,"Versión 3"]
[null,"En esta sección se relacionan los elementos, equipos, maquinaria o servicios por los cuales se pretende obtener los incentivos tributarios y se indican sus características técnicas."]
[]
[]
[null,"Por favor seleccione del Formato 2 el sector y la acción o medida del proyecto para que se desplieguen las casillas correspondientes."]
[]
[null,"Sector"]
[null,"Acción o Medida"]
[]
[]
[null," TRANSPORTE / Reconversión a gas natural vehicular - Únicamente vehículos dedicados"]
[]
[null,"VEHICULO"]
[null,"Tipo de vehículo"]
[null,"Otro "]
[null,"Tipo de uso"]
[null,"Marca"]
[null,"Año modelo"]
[null,"Referencia/línea del vehículo"]
[null,"Cilindraje (CC)"]
[null,"Rendimiento (km/m3)"]
[null,"Capacidad de transporte:"]
[null,"Pasajeros sentados (No.)"]
[null,"Pasajeros de pie (No.)"]
[null,"Carga (Ton)"]
[null,"Sistema o ruta (si aplica)"]
[null,"Ciudad"]
[null,"Recorrido al año (km)"]
[null,"Número de vehículos del proyecto"]
[null,"Costo unitario del vehículo antes de IVA (COP)"]
[null,"IVA del vehículo (COP)"]
[null,"Costo total de la inversión antes de IVA (COP) - si son varios vehículos"]
[null,"IVA total de la inversión (COP) - si son varios vehículos"]
[null,"Costos estimados asociados a la operación de cada vehículo (COP al año)"]
[null,"Energético (gas natural)"]
[null,"Mantenimiento (repuestos, revisiones, etc.)"]
[null,"Otros"]
[null,"Normas técnicas nacionales o internacionales con las que cumple el vehículo"]
[]
[null,"Si adquiere el vehículo con chasis y carrocería por separado, indique:"]
[null,"Marca del chasis"]
[null,"Referencia del chasis"]
[null,"Costo unitario del chasis antes de IVA (COP)"]
[null,"IVA del chasis (COP)"]
[null,"Marca del motor"]
[null,"Referencia del motor"]
[null,"Marca de la carrocería"]
[null,"Referencia de la carrocería"]
[null,"Costo unitario de la carrocería antes de IVA (COP)"]
[null,"IVA de la carrocería (COP)"]
[]
[]
[]
[]
[null,"TANQUE DE ALMACENAMIENTO DE GNV PARA USO EN VEHICULOS DEDICADOS A GAS NATURAL DE TRANSPORTE MASIVO"]
[]
[null,"Marca del tanque"]
[null,"Modelo del tanque"]
[null,"Material de fabricación"]
[null,"Unidad de medida de capacidad hidráulica"]
[null,"Capacidad hidráulica "]
[null,"Costo unitario del tanque antes de IVA (COP)"]
[null,"IVA del tanque (COP)"]
[]
[null,"TRANSPORTE / Uso de electricidad en transporte"]
[]
[null,"VEHICULO"]
[null,"Tipo de vehículo "]
[null,"Otro "]
[null,"Tipo de uso"]
[null,"Tecnología / energético"]
[null,"Marca"]
[null,"Año modelo"]
[null,"Referencia/línea del vehículo"]
[null,"Tipo de batería"]
[null,"Otra"]
[null,"Potencia kW"]
[null,"Tipo de conector"]
[null,"Cilindraje (CC)"]
[null,"Unidades (rendimiento)"]
[null,"Rendimiento"]
[null,"Capacidad de transporte:"]
[null,"Pasajeros sentados (No.)"]
[null,"Pasajeros de pie (No.)"]
[null,"Carga (Ton)"]
[null,"Autonomía (km)"]
[null,"Sistema o ruta (si aplica)"]
[null,"Recorrido al año (km)"]
[null,"Número de vehículos del proyecto"]
[null,"Costo unitario del vehículo antes de IVA (COP)"]
[null,"IVA del vehículo (COP)"]
[null,"Costo total de la inversión antes de IVA (COP) - si son varios vehículos"]
[null,"IVA total de la inversión (COP) - si son varios vehículos"]
[null,"Costos estimados asociados a la operación de cada vehículo (COP al año)"]
[null,"Energético (combustible líquido + electricidad)"]
[null,"Mantenimiento (repuestos, revisiones, etc.)"]
[null,"Otros"]
[null,"Normas técnicas nacionales o internacionales con las que cumple el vehículo"]
[]
[null,"Si adquiere el vehículo con chasis y carrocería por separado, indique:"]
[null,"Marca del chasis"]
[null,"Referencia del chasis"]
[null,"Costo unitario del chasis antes de IVA (COP)"]
[null,"IVA del chasis (COP)"]
[null,"Marca del motor"]
[null,"Referencia del motor"]
[null,"Marca de la carrocería"]
[null,"Referencia de la carrocería"]
[null,"Costo unitario de la carrocería antes de IVA (COP)"]
[null,"IVA de la carrocería (COP)"]
[null,"MOTOR ELECTRICO FERROVIARIO"]
[]
[null,"Grupo motor compresor"]
[null,"Marca"]
[null,"Modelo"]
[null,"Referencia"]
[null,"Potencia nominal (kW)"]
[null,"Tensión nominal de operación (V)"]
[null,"Cantidad"]
[null,"Número de componentes (por ejemplo: módulo, transductor, válvula, etc)"]
[null,"Unidad funcional (Indicar número de Resolución DIAN)"]
[null,"Costo total de la inversión antes de IVA (COP)"]
[null,"IVA total de la inversión (COP)"]
[null,"Normas técnicas nacionales o internacionales con las que cumplen el sistema"]
[]
[null,"Sistema de motor de tracción y control de la tracción"]
[null,"Marca"]
[null,"Modelo"]
[null,"Referencia"]
[null,"Potencia nominal (kW)"]
[null,"Tensión nominal de operación (V)"]
[null,"Cantidad"]
[null,"Número de componentes (por ejemplo: convertidor, motor, inductancia, disyuntor, etc)"]
[null,"Unidad funcional (Indicar número de Resolución DIAN)"]
[null,"Costo total de la inversión antes de IVA (COP)"]
[null,"IVA total de la inversión (COP)"]
[null,"Normas técnicas nacionales o internacionales con las que cumplen el sistema"]
[]
[null,"SISTEMA DE CABLE AEREO PARA TRANSPORTE PUBLICO DE PASAJEROS"]
[null,"Marca"]
[null,"Modelo"]
[null,"Referencia"]
[null,"Longitud del sistema (km)"]
[null,"Número de torres"]
[null,"Número de cabinas"]
[null,"Unidad funcional (Indicar número de Resolución DIAN)"]
[null,"Costo total de la inversión antes de IVA (COP)"]
[null,"IVA total de la inversión (COP)"]
[null,"Normas técnicas nacionales o internacionales con las que cumplen el sistema"]
[]
[null,"BATERIAS"]
[null,"Marca de la batería"]
[null,"Modelo/Referencia de la batería"]
[null,"Tipo de batería"]
[null,"Otra"]
[null,"Capacidad (kWh)"]
[null,"Tipo de cargador"]
[null,"Ciclos de carga hasta el 80%"]
[null,"Cantidad de baterías"]
[null,"Costo unitario de las baterías antes de IVA (COP)"]
[null,"IVA de la batería (COP)"]
[null,"Costo total de la inversión antes de IVA (COP) - si son varias baterías"]
[null,"IVA total de la inversión (COP) - si son varias baterías"]
[null,"Normas técnicas nacionales o internacionales con las que cumplen las baterías"]
[]
[null,"ESTACION DE RECARGA"]
[null,"Tipo de uso"]
[null,"Tipo de recarga"]
[null,"Tensión de operación (V)"]
[null,"Marca"]
[null,"Modelo"]
[null,"Referencia"]
[null,"Potencia (kW)"]
[null,"Tensión (V)"]
[null,"Tipo de conector"]
[null,"Municipio(s) donde se instalará(n)"]
[null,"Número de estaciones de recarga del proyecto"]
[null,"Costo unitario de la estación de recarga antes de IVA (COP)"]
[null,"IVA de la estación de recarga (COP)"]
[null,"Costo total de la inversión antes de IVA (COP) - si son varias estaciones de recarga"]
[null,"IVA total de la inversión (COP) - si son varias estaciones de recarga"]
[null,"Costos estimados asociados a la operación de cada estación (COP al año)"]
[null,"Mantenimiento (repuestos, revisiones, etc.)"]
[null,"Otros"]
[null,"Normas técnicas nacionales o internacionales con las que cumple la estación de recarga"]
[]
[null,"SUBESTACIONES ELECTRICAS PARA ESTACIONES DE RECARGA DE VEHICULOS ELECTRICOS O HIBRIDOS"]
[]
[null,"Transformador"]
[null,"Marca"]
[null,"Modelo"]
[null,"Referencia"]
[null,"Potencia (kVA)"]
[null,"Tensión (V)"]
[null,"Tipo"]
[null,"Clase"]
[null,"Costo unitario del transformador antes de IVA (COP)"]
[null,"IVA del transformador (COP)"]
[null,"Costo total de la inversión antes de IVA (COP) - si son varios transformadores"]
[null,"IVA total de la inversión (COP) - si son varios transformadores"]
[null,"Normas técnicas nacionales o internacionales con las que cumple el transformador"]
[]
[null,"Tablero de protección y maniobra"]
[null,"Marca"]
[null,"Modelo"]
[null,"Referencia"]
[null,"Tensión (V)"]
[null,"Corriente (A)"]
[null,"Costo unitario del tablero antes de IVA (COP)"]
[null,"IVA del tablero (COP)"]
[null,"Costo total de la inversión antes de IVA (COP) - si son varios tableros"]
[null,"IVA total de la inversión (COP) - si son varios tableros"]
[null,"Normas técnicas nacionales o internacionales con las que cumple el tablero"]
[]
[null,"Tablero de medida y control"]
[null,"Marca"]
[null,"Modelo"]
[null,"Referencia"]
[null,"Tensión (V)"]
[null,"No. de fases"]
[null,"Costo unitario del tablero antes de IVA (COP)"]
[null,"IVA del tablero (COP)"]
[null,"Costo total de la inversión antes de IVA (COP) - si son varios tableros"]
[null,"IVA total de la inversión (COP) - si son varios tableros"]
[null,"Normas técnicas nacionales o internacionales con las que cumple el tablero"]
[]
[null,"Banco de condensadores"]
[null,"Marca"]
[null,"Modelo"]
[null,"Referencia"]
[null,"Potencia (kVAr)"]
[null,"Tensión (V)"]
[null,"Topología"]
[null,"Costo unitario del banco de condensadores antes de IVA (COP)"]
[null,"IVA del banco de condensadores (COP)"]
[null,"Costo total de la inversión antes de IVA (COP) - si son varios bancos de condensadores"]
[null,"IVA total de la inversión (COP) - si son varios banco de condensadores"]
[null,"Normas técnicas nacionales o internacionales con las que cumple el banco de condensadores"]
[]
[null,"Tablero de distribución"]
[null,"Marca"]
[null,"Modelo"]
[null,"Referencia"]
[null,"Tensión (V)"]
[null,"Corriente (A)"]
[null,"No. de fases"]
[null,"No. de circuitos"]
[null,"Costo unitario del tablero antes de IVA (COP)"]
[null,"IVA del tablero (COP)"]
[null,"Costo total de la inversión antes de IVA (COP) - si son varios tableros"]
[null,"IVA total de la inversión (COP) - si son varios tableros"]
[null,"Normas técnicas nacionales o internacionales con las que cumple el tablero"]
[]
[null,"INDUSTRIA / Usos eléctricos"]
[]
[null,"Uso eléctrico "]
[null,"Tipo de equipo, elemento o maquinaria"]
[null,"MOTOR"]
[null,"Marca"]
[null,"Modelo"]
[null,"Referencia"]
[null,"Potencia nominal (kW)"]
[null,"Tensión nominal (V)"]
[null,"Velocidad (rpm)"]
[null,"Eficiencia nominal (%)"]
[null,"Clase de eficiencia del motor según RETIQ"]
[null,"Horas de uso al año"]
[null,"Cantidad de motores"]
[null,"Costo unitario de los motores antes de IVA (COP)"]
[null,"IVA del motor (COP)"]
[null,"Costo total de la inversión antes de IVA (COP) - si son varios motores"]
[null,"IVA total de la inversión (COP) - si son varios motores"]
[null,"Normas técnicas nacionales o internacionales con las que cumplen los motores"]
[]
[null,"BOMBA CENTRIFUGA"]
[null,"Marca"]
[null,"Modelo"]
[null,"Referencia"]
[null,"Tipo"]
[null,"Potencia nominal (kW)"]
[null,"Unidad de medida de caudal de diseño"]
[null,"Caudal de diseño"]
[null,"Horas de uso al año"]
[null,"Cantidad de bombas"]
[null,"Costo unitario de las bombas antes de IVA (COP)"]
[null,"IVA de la bomba (COP)"]
[null,"Costo total de la inversión antes de IVA (COP) - si son varias bombas"]
[null,"IVA total de la inversión (COP) - si son varias bombas"]
[null,"Normas técnicas nacionales o internacionales con las que cumplen las bombas"]
[]
[]
[null,"VARIADOR DE VELOCIDAD O DE FRECUENCIA"]
[null,"Marca"]
[null,"Modelo"]
[null,"Referencia"]
[null,"Potencia nominal (kW)"]
[null,"Tensión nominal (V)"]
[null,"Corriente nominal (A)"]
[null,"Frecuencia nominal (Hz)"]
[null,"Velocidad (rpm)"]
[null,"Eficiencia nominal (%)"]
[null,"Clase de eficiencia del motor según RETIQ"]
[null,"Horas de uso al año"]
[null,"Cantidad de variadores"]
[null,"Costo unitario de los variadores antes de IVA (COP)"]
[null,"IVA del  variador (COP)"]
[null,"Costo total de la inversión antes de IVA (COP) - si son varios variadores"]
[null,"IVA total de la inversión (COP) - si son varios variadores"]
[null,"Normas técnicas nacionales o internacionales con las que cumplen los variadores"]
[]
[null,"COMPRESOR"]
[null,"Marca"]
[null,"Modelo"]
[null,"Referencia"]
[null,"Potencia nominal (kW)"]
[null,"Tensión nominal (V)"]
[null,"Presión de trabajo (bar)"]
[null,"Capacidad del tanque (l)"]
[null,"Velocidad (rpm)"]
[null,"Eficiencia nominal (%)"]
[null,"Horas de uso al año"]
[null,"Cantidad de compresores"]
[null,"Costo unitario de los compresores antes de IVA (COP)"]
[null,"IVA del  compresor (COP)"]
[null,"Costo total de la inversión antes de IVA (COP) - si son varios compresores"]
[null,"IVA total de la inversión (COP) - si son varios compresores"]
[null,"Normas técnicas nacionales o internacionales con las que cumplen los compresores"]
[]
[null,"AILSAMIENTO TERMICO"]
[null,"Marca"]
[null,"Modelo"]
[null,"Referencia"]
[null,"Uso"]
[null,"Material constitutivo"]
[null,"Tipo"]
[null,"Longitud (m) (si aplica)"]
[null,"Área (m2) (si aplica)"]
[null,"Espesor (mm)"]
[null,"Cantidad"]
[null,"Conductividad térmica"]
[null,"Límites de temperatura de operación (°C)"]
[null,"Costo unitario (m o m2) del aislamiento antes de IVA (COP)"]
[null,"IVA del aislamiento (COP)"]
[null,"Costo total de la inversión antes de IVA (COP) - si son varios aislamientos"]
[null,"IVA total de la inversión (COP) - si son varios aislamientos"]
[null,"Normas técnicas nacionales o internacionales con las que cumplen los aislamientos"]
[]
[null,"AIRE ACONDICIONADO"]
[null,"Marca"]
[null,"Modelo"]
[null,"Referencia"]
[null,"Tipo"]
[null,"Tipo de compresor"]
[null,"Sistema de enfriamiento"]
[null,"Unidad de medida de potencia frigorífica"]
[null,"Potencia frigorífica"]
[null,"Clase de eficiencia según RETIQ"]
[null,"EER"]
[null,"IEER"]
[null,"IPVL"]
[null,"Cantidad de aires acondicionados"]
[null,"Costo unitario de los aires acondicionados antes de IVA (COP)"]
[null,"IVA de los aires acondicionados (COP)"]
[null,"Costo total de la inversión antes de IVA (COP) - si son varios aires acondicionados"]
[null,"IVA total de la inversión (COP) - si son varios aires acondicionados"]
[null,"Normas técnicas nacionales o internacionales con las que cumplen los aires acondicionados"]
[]
[null,"REFRIGERACION"]
[null,"Marca"]
[null,"Modelo"]
[null,"Referencia"]
[null,"Tipo de sistema de refrigeración"]
[null,"Tipo de compresor"]
[null,"Sistema de enfriamiento"]
[null,"Número de compresores"]
[null,"Rango de temperatura de operación (°C)"]
[null,"Unidad de medida de potencia frigorífica"]
[null,"Potencia frigorífica"]
[null,"Volumen a refrigerar (m3)"]
[null,"COP (Coefficient of Performance)"]
[null,"Cantidad de equipos de refrigeración"]
[null,"Costo unitario de los equipos de refrigeración antes de IVA (COP)"]
[null,"IVA de los equipos de refrigeración (COP)"]
[null,"Costo total de la inversión antes de IVA (COP) - si son varios equipos de refrigeración"]
[null,"IVA total de la inversión (COP) - si son varios equipos de refrigeración"]
[null,"Normas técnicas nacionales o internacionales con las que cumplen los equipos de refrigeración"]
[]
[null,"ILUMINACION INTERIOR "]
[null,"FUENTES LUMINOSAS"]
[null,"Marca"]
[null,"Modelo"]
[null,"Referencia"]
[null,"Potencia nominal (W)"]
[null,"Eficacia luminosa (lm/W)"]
[null,"Vida útil (horas)"]
[null,"Factor de potencia"]
[null,"THD (%)"]
[null,"Cantidad de fuentes luminosas"]
[null,"Costo unitario de las fuentes luminosas antes de IVA (COP)"]
[null,"IVA de las fuentes luminosas (COP)"]
[null,"Costo total de la inversión antes de IVA (COP) - si son varias fuentes luminosas"]
[null,"IVA total de la inversión (COP) - si son varis fuentes luminosas"]
[null,"Normas técnicas nacionales o internacionales con las que cumplen las fuentes luminosas"]
[]
[null,"SISTEMA AUTOMATICO DE CONTROL DE ILUMINACION - SACI"]
[null,"Tipo de equipo"]
[null,"Marca"]
[null,"Modelo"]
[null,"Referencia"]
[null,"Cantidad"]
[null,"Costo de la inversión antes de IVA (COP)"]
[null,"IVA de la inversión (COP)"]
[null,"Normas técnicas nacionales o internacionales con las que cumple el equipo, elemento o maquinaria"]
[]
[]
[]
[null,"ILUMINACION EXTERIOR"]
[null,"FUENTES LUMINOSAS"]
[null,"Marca"]
[null,"Modelo"]
[null,"Referencia"]
[null,"Potencia nominal (W)"]
[null,"Eficacia luminosa (lm/W)"]
[null,"Vida útil (horas)"]
[null,"Factor de potencia"]
[null,"THD (%)"]
[null,"Cantidad de fuentes luminosas"]
[null,"Costo unitario de las fuentes luminosas antes de IVA (COP)"]
[null,"IVA de las fuentes luminosas (COP)"]
[null,"Costo total de la inversión antes de IVA (COP) - si son varias fuentes luminosas"]
[null,"IVA total de la inversión (COP) - si son varis fuentes luminosas"]
[null,"Normas técnicas nacionales o internacionales con las que cumplen las fuentes luminosas"]
[]
[null,"SISTEMA AUTOMATICO DE CONTROL DE ILUMINACION - SACI"]
[null,"Tipo de equipo"]
[null,"Marca"]
[null,"Modelo"]
[null,"Referencia"]
[null,"Cantidad"]
[null,"Costo de la inversión antes de IVA (COP)"]
[null,"IVA de la inversión (COP)"]
[null,"Normas técnicas nacionales o internacionales con las que cumple el equipo, elemento o maquinaria"]
[]
[]
[null,"INDUSTRIA / Combustión"]
[]
[null,"Tipo de uso térmico"]
[null,"Tipo de equipo, elemento o maquinaria"]
[null,"Otro"]
[null,"AISLAMIENTO TERMICO"]
[null,"Marca"]
[null,"Modelo"]
[null,"Referencia"]
[null,"Uso"]
[null,"Material constitutivo"]
[null,"Tipo"]
[null,"Longitud (m) "]
[null,"Área (m2)"]
[null,"Espesor (mm)"]
[null,"Cantidad"]
[null,"Conductividad térmica"]
[null,"Límites de temperatura de operación (°C)"]
[null,"Costo unitario (m o m2) del aislamiento antes de IVA (COP)"]
[null,"IVA del aislamiento (COP)"]
[null,"Costo total de la inversión antes de IVA (COP) - si son varios aislamientos"]
[null,"IVA total de la inversión (COP) - si son varios aislamientos"]
[null,"Normas técnicas nacionales o internacionales con las que cumplen los aislamientos"]
[]
[]
[null,"QUEMADOR"]
[null,"Marca"]
[null,"Modelo"]
[null,"Referencia"]
[null,"Energético"]
[null,"Tipo"]
[null,"Unidad de medida de potencia (kW) o capacidad calorífica (BTU/h)"]
[null,"Potencia o capacidad calorífica"]
[null,"Presión de alimentación de gas (mbar)"]
[null,"Velocidad de llama (m/s)"]
[null,"Longitud (mm)"]
[null,"Cantidad"]
[null,"Costo unitario del quemador antes de IVA (COP)"]
[null,"IVA del quemador (COP)"]
[null,"Costo total de la inversión antes de IVA (COP) - si son varios quemadores"]
[null,"IVA total de la inversión (COP) - si son varios quemadores"]
[null,"Normas técnicas nacionales o internacionales con las que cumplen los quemadores"]
[]
[null,"INTERCAMBIADOR DE CALOR"]
[null,"Marca"]
[null,"Modelo"]
[null,"Referencia"]
[null,"Área de transferencia de calor (m2)"]
[null,"Efectividad (%)"]
[null,"Cantidad"]
[null,"Costo unitario del intercambiador antes de IVA (COP)"]
[null,"IVA del intercambiador (COP)"]
[null,"Costo total de la inversión antes de IVA (COP) - si son varios intercambiadores"]
[null,"IVA total de la inversión (COP) - si son varios intercambiadores"]
[null,"Normas técnicas nacionales o internacionales con las que cumplen los intercambiadores"]
[]
[null,"TUBERIA PARA CONDUCCION DE AIRES DE COMBSUTION Y DE LOS GASES DE ESCAPE"]
[null,"Material"]
[null,"Diámetro externo (mm)"]
[null,"Espesor de pared (mm)"]
[null,"Longitud (m)"]
[null,"Límites de temperatura de operación (°C)"]
[null,"Cantidad"]
[null,"Costo unitario de tubería antes de IVA (COP)"]
[null,"IVA de la tubería (COP)"]
[null,"Costo total de la inversión antes de IVA (COP) - si son varias tuberías"]
[null,"IVA total de la inversión (COP) - si son varias tuberías"]
[null,"Normas técnicas nacionales o internacionales con las que cumplen las tuberías"]
[]
[null,"VENTILADOR (IMPULSOR, EXTRACTOR Y DE RECIRCULACION)"]
[null,"Marca"]
[null,"Modelo"]
[null,"Referencia"]
[null,"Tipo"]
[null,"Potencia (kW)"]
[null,"Caudal (m3/h)"]
[null,"Velocidad (rpm)"]
[null,"Cantidad"]
[null,"Costo unitario del ventilador antes de IVA (COP)"]
[null,"IVA del ventilador (COP)"]
[null,"Costo total de la inversión antes de IVA (COP) - si son varios ventiladores"]
[null,"IVA total de la inversión (COP) - si son varios ventiladores"]
[null,"Normas técnicas nacionales o internacionales con las que cumplen los ventiladores"]
[]
[null,"MEMBRANA POLIMERICA"]
[null,"Marca"]
[null,"Referencia"]
[null,"Materiales"]
[null,"Área (m2)"]
[null,"Costo unitario de la membrana antes de IVA (COP)"]
[null,"IVA de la membrana (COP)"]
[null,"Costo total de la inversión antes de IVA (COP) - si son varias la membrana"]
[null,"IVA total de la inversión (COP) - si son varias la membranas"]
[null,"Normas técnicas nacionales o internacionales con las que cumplen las membranas"]
[]
[null,"TAMIZ MOLECULAR ADSORBENTE"]
[null,"Marca"]
[null,"Referencia"]
[null,"Materiales"]
[null,"Área (m2)"]
[null,"Costo unitario del tamiz antes de IVA (COP)"]
[null,"IVA del tamiz (COP)"]
[null,"Costo total de la inversión antes de IVA (COP) - si son varios los tamices"]
[null,"IVA total de la inversión (COP) - si son varios los tamices"]
[null,"Normas técnicas nacionales o internacionales con las que cumplen los tamices"]
[]
[null,"UNIDAD DE DESTILACION CRIOGENICA"]
[null,"   Unidad de medida de producción de oxígeno "]
[null,"Producción de oxígeno"]
[null,"Presión (mbar)"]
[null,"Temperatura (°C)"]
[null,"Volumen del sistema"]
[null,"Área requerida (m2)"]
[null,"Costo total de la inversión antes de IVA (COP)"]
[null,"IVA total de la inversión (COP)"]
[null,"Normas técnicas nacionales o internacionales con las que cumple la unidad de destilación"]
[]
[null,"TUBERIA DE RECUPERACION DE CALOR"]
[null,"Material"]
[null,"Diámetro externo (mm)"]
[null,"Espesor de pared (mm)"]
[null,"Longitud (m)"]
[null,"Límites de temperatura de operación (°C)"]
[null,"Cantidad"]
[null,"Costo unitario de tubería antes de IVA (COP)"]
[null,"IVA de la tubería (COP)"]
[null,"Costo total de la inversión antes de IVA (COP) - si son varias tuberías"]
[null,"IVA total de la inversión (COP) - si son varias tuberías"]
[null,"Normas técnicas nacionales o internacionales con las que cumplen las tuberías"]
[]
[null,"CALDERA PRINCIPAL"]
[null,"Marca"]
[null,"Modelo"]
[null,"Referencia"]
[null,"Combustible"]
[null,"Potencia nominal (BHP)"]
[null,"Eficiencia nominal (%)"]
[null,"Horas de uso al año"]
[null,"Cantidad"]
[null,"Costo unitario de la caldera antes de IVA (COP)"]
[null,"IVA de la caldera (COP)"]
[null,"Costo total de la inversión antes de IVA (COP) - si son varias calderas"]
[null,"IVA total de la inversión (COP) - si son varias calderas"]
[null,"Normas técnicas nacionales o internacionales con las que cumplen las calderas"]
[]
[null,"TURBINA DE VAPOR"]
[null,"Marca"]
[null,"Modelo"]
[null,"Referencia"]
[null,"Potencia"]
[null,"Tipo según aprovechamiento de energía"]
[null,"Tipo según etapas"]
[null,"Dirección del flujo de vapor"]
[null,"Presión de salida del vapor"]
[null,"Cantidad"]
[null,"Costo unitario de la turbina antes de IVA (COP)"]
[null,"IVA de la turbina (COP)"]
[null,"Costo total de la inversión antes de IVA (COP) - si son varias turbinas"]
[null,"IVA total de la inversión (COP) - si son varias turbina"]
[null,"Normas técnicas nacionales o internacionales con las que cumplen las turbinas"]
[]
[null,"CHILLER DE ABSORCIÓN"]
[null,"Marca"]
[null,"Modelo"]
[null,"Referencia"]
[null,"Fuente de energía"]
[null,"Potencia frigorífica (kWt)"]
[null,"COP (Coefficient of Performance)"]
[null,"Cantidad"]
[null,"Costo unitario del chiller antes de IVA (COP)"]
[null,"IVA del chiller (COP)"]
[null,"Costo total de la inversión antes de IVA (COP) - si son varios chiller"]
[null,"IVA total de la inversión (COP) - si son varios chiller"]
[null,"Normas técnicas nacionales o internacionales con las que cumplen los chiller"]
[null,"COMPRESOR"]
[null,"Marca"]
[null,"Modelo"]
[null,"Referencia"]
[null,"Potencia nominal (kW)"]
[null,"Tensión nominal (V)"]
[null,"Presión de trabajo (bar)"]
[null,"Capacidad del tanque (l)"]
[null,"Velocidad (rpm)"]
[null,"Eficiencia nominal (%)"]
[null,"Horas de uso al año"]
[null,"Cantidad de compresores"]
[null,"Costo unitario de los compresores antes de IVA (COP)"]
[null,"IVA del  compresor (COP)"]
[null,"Costo total de la inversión antes de IVA (COP) - si son varios compresores"]
[null,"IVA total de la inversión (COP) - si son varios compresores"]
[null,"Normas técnicas nacionales o internacionales con las que cumplen los compresores"]
[]
[null,"HORNO"]
[null,"Marca"]
[null,"Modelo"]
[null,"Referencia"]
[null,"Combustible empleado"]
[null,"Uso"]
[null,"Potencia (MW)"]
[null,"Eficiencia (%)"]
[null,"Horas de uso al año (h)"]
[null,"Cantidad"]
[null,"Costo unitario del horno antes de IVA (COP)"]
[null,"IVA del horno (COP)"]
[null,"Costo total de la inversión antes de IVA (COP) - si son varios hornos"]
[null,"IVA total de la inversión (COP) - si son varios hornos"]
[null,"Normas técnicas nacionales o internacionales con las que cumplen los hornos"]
[]
[null,"CALDERA DE CONDENSACION"]
[null,"Marca"]
[null,"Modelo"]
[null,"Referencia"]
[null,"Unidad de medida de potencia o capacidad calorífica"]
[null,"Potencia o capacidad calorífica"]
[null,"Eficiencia de combustión con base en el poder calorífico superior"]
[null,"Temperatura de enfriamiento de los gases de combustión a la salida (°C)"]
[null,"Cantidad"]
[null,"Costo unitario de la caldera antes de IVA (COP)"]
[null,"IVA de la caldera (COP)"]
[null,"Costo total de la inversión antes de IVA (COP) - si son varias calderas"]
[null,"IVA total de la inversión (COP) - si son varias calderas"]
[null,"Normas técnicas nacionales o internacionales con las que cumplen las calderas"]
[]
[null,"CALDERA DE RECUPERACION"]
[null,"Marca"]
[null,"Modelo"]
[null,"Referencia"]
[null,"Tipo de flujo"]
[null,"Quemador de poscombustión"]
[null,"Rendimiento (%)"]
[null,"Cantidad"]
[null,"Costo unitario de la caldera antes de IVA (COP)"]
[null,"IVA de la caldera (COP)"]
[null,"Costo total de la inversión antes de IVA (COP) - si son varias calderas"]
[null,"IVA total de la inversión (COP) - si son varias calderas"]
[null,"Normas técnicas nacionales o internacionales con las que cumplen las calderas"]
[]
[null,"TURBINA O MICROTURBINA A GAS O VAPOR"]
[null,"Marca"]
[null,"Modelo"]
[null,"Referencia"]
[null,"Unidad de medida de Potencia"]
[null,"Potencia "]
[null,"Velocidad (rpm)"]
[null,"Eficiencia (%)"]
[null,"Cantidad"]
[null,"Costo unitario de la turbina antes de IVA (COP)"]
[null,"IVA de la turbina (COP)"]
[null,"Costo total de la inversión antes de IVA (COP) - si son varias turbinas"]
[null,"IVA total de la inversión (COP) - si son varias turbinas"]
[null,"Normas técnicas nacionales o internacionales con las que cumplen las turbinas"]
[]
[null,"MOTOR DE COMBUSTION INTERNA"]
[null,"Marca"]
[null,"Modelo"]
[null,"Referencia"]
[null,"Unidad de medida de Potencia"]
[null,"Potencia "]
[null,"Velocidad (rpm)"]
[null,"Eficiencia (%)"]
[null,"Cantidad"]
[null,"Costo unitario del motor antes de IVA (COP)"]
[null,"IVA del motor (COP)"]
[null,"Costo total de la inversión antes de IVA (COP) - si son varios motores"]
[null,"IVA total de la inversión (COP) - si son varios motores"]
[null,"Normas técnicas nacionales o internacionales con las que cumplen los motor"]
[]
[null,"INDUSTRIA / Sistemas de Gestión de la Energía, SGEn"]
[]
[null,"EQUIPO DE SUBMEDICION"]
[null,"Marca"]
[null,"Modelo"]
[null,"Referencia"]
[null,"Tensión de referencia (V)"]
[null,"Corriente máxima (A)"]
[null,"Flujo (m3/h)"]
[null,"Cantidad"]
[null,"Costo unitario del medidor antes de IVA (COP)"]
[null,"IVA del motor (COP)"]
[null,"Costo total de la inversión antes de IVA (COP) - si son varios medidores"]
[null,"IVA total de la inversión (COP) - si son varios medidores"]
[null,"Normas técnicas nacionales o internacionales con las que cumplen los medidores"]
[]
[null,"SERVICIO DE DISEÑO E IMPLEMENTACION DE SGEn"]
[null,"Proveedor"]
[null,"Alcance del servicio"]
[null,"Costo total de la inversión antes de IVA (COP)"]
[null,"IVA total de la inversión (COP)"]
[]
[null,"Terciario / Usos eléctricos"]
[]
[null,"ILUMINACION INTERIOR "]
[null,"FUENTES LUMINOSAS"]
[null,"Marca"]
[null,"Modelo"]
[null,"Referencia"]
[null,"Potencia nominal (W)"]
[null,"Eficacia luminosa (lm/W)"]
[null,"Vida útil (horas)"]
[null,"Factor de potencia"]
[null,"THD (%)"]
[null,"Cantidad de fuentes luminosas"]
[null,"Costo unitario de las fuentes luminosas antes de IVA (COP)"]
[null,"IVA de las fuentes luminosas (COP)"]
[null,"Costo total de la inversión antes de IVA (COP) - si son varias fuentes luminosas"]
[null,"IVA total de la inversión (COP) - si son varis fuentes luminosas"]
[null,"Normas técnicas nacionales o internacionales con las que cumplen las fuentes luminosas"]
[]
[null,"SISTEMA AUTOMATICO DE CONTROL DE ILUMINACION - SACI"]
[null,"Tipo de equipo"]
[null,"Marca"]
[null,"Modelo"]
[null,"Referencia"]
[null,"Cantidad"]
[null,"Costo de la inversión antes de IVA (COP)"]
[null,"IVA de la inversión (COP)"]
[null,"Normas técnicas nacionales o internacionales con las que cumple el equipo, elemento o maquinaria"]
[]
[null,"ILUMINACION EXTERIOR"]
[null,"FUENTES LUMINOSAS"]
[null,"Marca"]
[null,"Modelo"]
[null,"Referencia"]
[null,"Potencia nominal (W)"]
[null,"Eficacia luminosa (lm/W)"]
[null,"Vida útil (horas)"]
[null,"Factor de potencia"]
[null,"THD (%)"]
[null,"Cantidad de fuentes luminosas"]
[null,"Costo unitario de las fuentes luminosas antes de IVA (COP)"]
[null,"IVA de las fuentes luminosas (COP)"]
[null,"Costo total de la inversión antes de IVA (COP) - si son varias fuentes luminosas"]
[null,"IVA total de la inversión (COP) - si son varis fuentes luminosas"]
[null,"Normas técnicas nacionales o internacionales con las que cumplen las fuentes luminosas"]
[]
[null,"SISTEMA AUTOMATICO DE CONTROL DE ILUMINACION - SACI"]
[null,"Tipo de equipo"]
[null,"Marca"]
[null,"Modelo"]
[null,"Referencia"]
[null,"Cantidad"]
[null,"Costo de la inversión antes de IVA (COP)"]
[null,"IVA de la inversión (COP)"]
[null,"Normas técnicas nacionales o internacionales con las que cumple el equipo, elemento o maquinaria"]
[]
[null,"AISLAMIENTO TERMICO"]
[null,"Marca (si aplica)"]
[null,"Modelo (si aplica)"]
[null,"Referencia (si aplica)"]
[null,"Uso"]
[null,"Material"]
[null,"Tipo"]
[null,"Longitud (m)"]
[null,"Área (m2)"]
[null,"Espesor (mm)"]
[null,"Cantidad"]
[null,"Conductividad térmica"]
[null,"Límites de temperatura de operación (°C)"]
[null,"Costo unitario (m o m2) del aislamiento antes de IVA (COP)"]
[null,"IVA del aislamiento (COP)"]
[null,"Costo total de la inversión antes de IVA (COP) - si son varios aislamientos"]
[null,"IVA total de la inversión (COP) - si son varios aislamientos"]
[null,"Normas técnicas nacionales o internacionales con las que cumplen los aislamientos"]
[]
[null,"AIRE ACONDICIONADO"]
[null,"Marca"]
[null,"Modelo"]
[null,"Referencia"]
[null,"Tipo"]
[null,"Tipo de compresor"]
[null,"Sistema de enfriamiento"]
[null,"Unidad de medida de potencia frigorífica"]
[null,"Potencia frigorífica"]
[null,"Clase de eficiencia según RETIQ"]
[null,"EER"]
[null,"IEER"]
[null,"IPVL"]
[null,"Cantidad de aires acondicionados"]
[null,"Costo unitario de los aires acondicionados antes de IVA (COP)"]
[null,"IVA de los aires acondicionados (COP)"]
[null,"Costo total de la inversión antes de IVA (COP) - si son varios aires acondicionados"]
[null,"IVA total de la inversión (COP) - si son varios aires acondicionados"]
[null,"Normas técnicas nacionales o internacionales con las que cumplen los aires acondicionados"]
[]
[null,"MOTOR ELÉCTRICO"]
[null,"Marca"]
[null,"Modelo"]
[null,"Referencia"]
[null,"Potencia nominal (kW)"]
[null,"Tensión nominal (V)"]
[null,"Corriente nominal (A)"]
[null,"Frecuencia nominal (Hz)"]
[null,"Velocidad (rpm)"]
[null,"Eficiencia nominal (%)"]
[null,"Clase de eficiencia del motor según RETIQ"]
[null,"Horas de uso al año"]
[null,"Cantidad de motores"]
[null,"Costo unitario de los motores antes de IVA (COP)"]
[null,"IVA del motor (COP)"]
[null,"Costo total de la inversión antes de IVA (COP) - si son varios motores"]
[null,"IVA total de la inversión (COP) - si son varios motores"]
[null,"Normas técnicas nacionales o internacionales con las que cumplen los motores"]
[]
[null,"BOMBA CENTRIFUGA"]
[null,"Marca"]
[null,"Modelo"]
[null,"Referencia"]
[null,"Tipo"]
[null,"Potencia nominal (kW)"]
[null,"Unidad de medida de caudal de diseño"]
[null,"Caudal de diseño "]
[null,"Horas de uso al año"]
[null,"Cantidad de bombas"]
[null,"Costo unitario de las bombas antes de IVA (COP)"]
[null,"IVA de la bomba (COP)"]
[null,"Costo total de la inversión antes de IVA (COP) - si son varias bombas"]
[null,"IVA total de la inversión (COP) - si son varias bombas"]
[null,"Normas técnicas nacionales o internacionales con las que cumplen las bombas"]
[]
[null,"VARIADOR DE VELOCIDAD O DE FRECUENCIA"]
[null,"Marca"]
[null,"Modelo"]
[null,"Referencia"]
[null,"Potencia nominal (kW)"]
[null,"Tensión nominal (V)"]
[null,"Corriente nominal (A)"]
[null,"Frecuencia nominal (Hz)"]
[null,"Velocidad (rpm)"]
[null,"Eficiencia nominal (%)"]
[null,"Clase de eficiencia del motor según RETIQ"]
[null,"Horas de uso al año"]
[null,"Cantidad de variadores"]
[null,"Costo unitario de los variadores antes de IVA (COP)"]
[null,"IVA del  variador (COP)"]
[null,"Costo total de la inversión antes de IVA (COP) - si son varios variadores"]
[null,"IVA total de la inversión (COP) - si son varios variadores"]
[null,"Normas técnicas nacionales o internacionales con las que cumplen los variadores"]
[]
[null,"COMPRESOR"]
[null,"Marca"]
[null,"Modelo"]
[null,"Referencia"]
[null,"Potencia nominal (kW)"]
[null,"Tensión nominal (V)"]
[null,"Presión de trabajo (bar)"]
[null,"Capacidad del tanque (l)"]
[null,"Velocidad (rpm)"]
[null,"Eficiencia nominal (%)"]
[null,"Horas de uso al año"]
[null,"Cantidad de compresores"]
[null,"Costo unitario de los compresores antes de IVA (COP)"]
[null,"IVA del  compresor (COP)"]
[null,"Costo total de la inversión antes de IVA (COP) - si son varios compresores"]
[null,"IVA total de la inversión (COP) - si son varios compresores"]
[null,"Normas técnicas nacionales o internacionales con las que cumplen los compresores"]
[]
[null,"SISTEMAS DE ALUMBRADO PÚBLICO"]
[null,"FUENTES LUMINOSAS"]
[null,"Marca"]
[null,"Modelo"]
[null,"Referencia"]
[null,"Potencia nominal (W)"]
[null,"Eficacia luminosa (lm/W)"]
[null,"Vida útil (horas)"]
[null,"Factor de potencia"]
[null,"THD (%)"]
[null,"Cantidad de fuentes luminosas"]
[null,"Costo unitario de las fuentes luminosas antes de IVA (COP)"]
[null,"IVA de las fuentes luminosas (COP)"]
[null,"Costo total de la inversión antes de IVA (COP) - si son varias fuentes luminosas"]
[null,"IVA total de la inversión (COP) - si son varis fuentes luminosas"]
[null,"Normas técnicas nacionales o internacionales con las que cumplen las fuentes luminosas"]
[]
[null,"EQUIPOS DE TELEGESTION"]
[null,"CONTROLADOR DE LUMINARIA"]
[null,"Marca"]
[null,"Modelo"]
[null,"Referencia"]
[null,"Cantidad de controladores de luminaria"]
[null,"Costo unitario de los controladores de luminaria antes de IVA (COP)"]
[null,"IVA de los controladores de luminaria (COP)"]
[null,"Costo total de la inversión antes de IVA (COP) - si son varios controladores de luminaria"]
[null,"IVA total de la inversión (COP) - si son varios controladores de luminaria"]
[null,"Normas técnicas nacionales o internacionales con las que cumplen los controladores de luminaria"]
[]
[null,"CONTROLADOR DE SEGMENTO"]
[null,"Marca"]
[null,"Modelo"]
[null,"Referencia"]
[null,"Cantidad de controladores de segmento"]
[null,"Costo unitario de los controladores de segmento antes de IVA (COP)"]
[null,"IVA de los controladores de segmento (COP)"]
[null,"Costo total de la inversión antes de IVA (COP) - si son varios controladores de segmento"]
[null,"IVA total de la inversión (COP) - si son varios controladores de segmento"]
[null,"Normas técnicas nacionales o internacionales con las que cumplen los controladores de segmento"]
[]
[null,"TERCIARIO / Mejora en el diseño, la construcción y la adecuación arquitectónica de edificaciones"]
[]
[null,"AISLAMIENTO TERMICO"]
[null,"Marca (si aplica)"]
[null,"Modelo (si aplica)"]
[null,"Referencia (si aplica)"]
[null,"Uso"]
[null,"Material"]
[null,"Tipo"]
[null,"Longitud (m)"]
[null,"Área (m2)"]
[null,"Espesor (mm)"]
[null,"Cantidad"]
[null,"Conductividad térmica"]
[null,"Límites de temperatura de operación (°C)"]
[null,"Costo unitario (m o m2) del aislamiento antes de IVA (COP)"]
[null,"IVA del aislamiento (COP)"]
[null,"Costo total de la inversión antes de IVA (COP) - si son varios aislamientos"]
[null,"IVA total de la inversión (COP) - si son varios aislamientos"]
[null,"Normas técnicas nacionales o internacionales con las que cumplen los aislamientos"]
[]
[null,"EXTRACTOR EOLICO"]
[null,"Material"]
[null,"Dimensiones (mm)"]
[null,"Peso (kg)"]
[null,"Caudal de diseño (m3/h)"]
[null,"Costo unitario del extractor antes de IVA (COP)"]
[null,"IVA del extractor (COP)"]
[null,"Costo total de la inversión antes de IVA (COP) - si son varios extractores"]
[null,"IVA total de la inversión (COP) - si son varios extractores"]
[null,"Normas técnicas nacionales o internacionales con las que cumplen los extractores"]
[]
[null,"PINTURA ATERMICA"]
[null,"Marca"]
[null,"Referencia"]
[null,"Conductividad térmica (W/K·m)"]
[null,"Cantidad (gal)"]
[null,"Costo unitario del galón de pintura atérmica antes de IVA (COP)"]
[null,"IVA de la de pintura atérmica (COP)"]
[null,"Costo total de la inversión antes de IVA (COP)"]
[null,"IVA total de la inversión (COP)"]
[null,"Normas técnicas nacionales o internacionales con las que cumple la pintura atérmica"]
[]
[null,"VENTANA O FACHADA DE CONTROL SOLAR"]
[null,"Marca"]
[null,"Modelo"]
[null,"Referencia"]
[null,"Conductividad térmica (W/K·m)"]
[null,"Ganancia de calor o coeficiente de sombra (%)"]
[null,"Transmisión luminosa (%)"]
[null,"Cantidad (m2)"]
[null,"Costo unitario de ventana o fachada de control solar antes de IVA (COP)"]
[null,"IVA de la ventana o fachada de control solar (COP)"]
[null,"Costo total de la inversión antes de IVA (COP)"]
[null,"IVA total de la inversión (COP)"]
[null,"Normas técnicas nacionales o internacionales con las que cumple la ventana o fachada de control solar"]
[]
[null,"SERVICIO DE DISEÑO Y CERTIFICACION DE EDIFICACIONES"]
[null,"Proveedor"]
[null,"Alcance del servicio"]
[null,"Costo total de la inversión antes de IVA (COP)"]
[null,"IVA total de la inversión (COP)"]
[]
[null,"TERCIARIO / Evaluación e implementación de distritos térmicos "]
[]
[null,"CENTRAL DE PRODUCCION TERMICA"]
[null,"MICROTURBINA A GAS"]
[null,"Marca"]
[null,"Modelo"]
[null,"Referencia"]
[null,"Potencia (kW)"]
[null,"Velocidad (rpm)"]
[null,"Eficiencia nominal (%)"]
[null,"Cantidad"]
[null,"Costo unitario de la microturbina antes de IVA (COP)"]
[null,"IVA de la microturbina (COP)"]
[null,"Costo total de la inversión antes de IVA (COP) - si son varias microturbinas"]
[null,"IVA total de la inversión (COP) - si son varias microturbinas"]
[null,"Normas técnicas nacionales o internacionales con las que cumplen las microturbinas"]
[]
[null,"MOTOR DE COMBUSTION INTERNA"]
[null,"Marca"]
[null,"Modelo"]
[null,"Referencia"]
[null,"Potencia (MW)"]
[null,"Velocidad (rpm)"]
[null,"Eficiencia nominal (%)"]
[null,"Cantidad"]
[null,"Costo unitario del motor antes de IVA (COP)"]
[null,"IVA del motor (COP)"]
[null,"Costo total de la inversión antes de IVA (COP) - si son varios motores"]
[null,"IVA total de la inversión (COP) - si son varios motores"]
[null,"Normas técnicas nacionales o internacionales con las que cumplen los motor"]
[]
[null,"CHILLER ELECTRICO"]
[null,"Marca"]
[null,"Modelo"]
[null,"Referencia"]
[null,"Tipo de compresor"]
[null,"Sistema de enfriamiento"]
[null,"Número de compresores"]
[null,"Capacidad de enfriamiento (TR)"]
[null,"Eficiencia (COP, EER, IEER, IPVL)"]
[null,"Cantidad"]
[null,"Costo unitario del chiller antes de IVA (COP)"]
[null,"IVA del chiller (COP)"]
[null,"Costo total de la inversión antes de IVA (COP) - si son varios chiller"]
[null,"IVA total de la inversión (COP) - si son varios chiller"]
[null,"Normas técnicas nacionales o internacionales con las que cumplen los chiller"]
[]
[null,"CHILLER DE ABSORCION"]
[null,"Marca"]
[null,"Modelo"]
[null,"Referencia"]
[null,"Fuente de energía"]
[null,"Potencia frigorífica (kWt)"]
[null,"COP (Coefficient of Performance)"]
[null,"Cantidad"]
[null,"Costo unitario del chiller antes de IVA (COP)"]
[null,"IVA del chiller (COP)"]
[null,"Costo total de la inversión antes de IVA (COP) - si son varios chiller"]
[null,"IVA total de la inversión (COP) - si son varios chiller"]
[null,"Normas técnicas nacionales o internacionales con las que cumplen los chiller"]
[]
[null,"CENTRAL DE BOMBAS"]
[null,"Marca"]
[null,"Modelo"]
[null,"Referencia"]
[null,"Tipo"]
[null,"Potencia nominal (kW)"]
[null,"Unidades de caudal de diseño"]
[null,"Caudal de diseño"]
[null,"Cantidad de bombas"]
[null,"Costo unitario de las bombas antes de IVA (COP)"]
[null,"IVA de la bomba (COP)"]
[null,"Costo total de la inversión antes de IVA (COP) - si son varias bombas"]
[null,"IVA total de la inversión (COP) - si son varias bombas"]
[null,"Normas técnicas nacionales o internacionales con las que cumplen las bombas"]
[]
[null,"TUBERIA PARA RED DE DISTRIBUCION"]
[null,"Material"]
[null,"Diámetro (mm)"]
[null,"Espesor de pared (mm)"]
[null,"Límites de temperatura de operación (°C)"]
[null,"Presiones de operación (bar)"]
[null,"Longitud (m)"]
[null,"Diámetro (mm)"]
[null,"Angulo para codo a 45° y 90°"]
[null,"Material del aislamiento  (si aplica)"]
[null,"Conductividad térmica del aislamiento (si aplica)"]
[null,"Cantidad"]
[null,"Costo unitario de tubería antes de IVA (COP)"]
[null,"IVA de la tubería (COP)"]
[null,"Costo total de la inversión antes de IVA (COP) - si son varias tuberías"]
[null,"IVA total de la inversión (COP) - si son varias tuberías"]
[null,"Normas técnicas nacionales o internacionales con las que cumplen las tuberías"]
[]
[null,"AISLAMIENTO TERMICO"]
[null,"Marca"]
[null,"Modelo"]
[null,"Referencia"]
[null,"Uso"]
[null,"Material constitutivo"]
[null,"Tipo"]
[null,"Longitud (m)"]
[null,"Área (m2)"]
[null,"Espesor (mm)"]
[null,"Cantidad"]
[null,"Conductividad térmica"]
[null,"Límites de temperatura de operación (°C)"]
[null,"Costo unitario (m o m2) del aislamiento antes de IVA (COP)"]
[null,"IVA del aislamiento (COP)"]
[null,"Costo total de la inversión antes de IVA (COP) - si son varios aislamientos"]
[null,"IVA total de la inversión (COP) - si son varios aislamientos"]
[null,"Normas técnicas nacionales o internacionales con las que cumplen los aislamientos"]
[]
[null,"CENTRAL DE INTERCAMBIO TERMICO CON USUARIOS FINALES"]
[null,"INTERCAMBIADOR DE CALOR"]
[null,"Marca"]
[null,"Modelo"]
[null,"Referencia"]
[null,"Tipo"]
[null,"Uso"]
[null,"Área de transferencia de calor (m2)"]
[null,"Efectividad (%)"]
[null,"Costo unitario del intercambiador antes de IVA (COP)"]
[null,"IVA del intercambiador (COP)"]
[null,"Costo total de la inversión antes de IVA (COP) - si son varios intercambiadores"]
[null,"IVA total de la inversión (COP) - si son varios intercambiadores"]
[null,"Normas técnicas nacionales o internacionales con las que cumplen los intercambiadores"]
[]
[null,"VALVULA"]
[null,"Marca"]
[null,"Modelo"]
[null,"Referencia"]
[null,"Tipo"]
[null,"Costo unitario de la válvula antes de IVA (COP)"]
[null,"IVA de la válvula (COP)"]
[null,"Costo total de la inversión antes de IVA (COP) - si son varias válvulas"]
[null,"IVA total de la inversión (COP) - si son varias válvulas"]
[null,"Normas técnicas nacionales o internacionales con las que cumplen las válvulas"]
[]
[]
[null,"MEDIDOR DE FLUJO DE AGUA"]
[null,"Marca"]
[null,"Modelo"]
[null,"Referencia"]
[null,"Tipo"]
[null,"Diámetro (mm)"]
[null,"Cantidad"]
[null,"Costo unitario del medidor antes de IVA (COP)"]
[null,"IVA del motor (COP)"]
[null,"Costo total de la inversión antes de IVA (COP) - si son varios medidores"]
[null,"IVA total de la inversión (COP) - si son varios medidores"]
[null,"Normas técnicas nacionales o internacionales con las que cumplen los medidores"]
[]
[null,"TERCIARIO / Implementación de nuevos y modernos sistemas de medición "]
[]
[null,"MEDICION AVANZADA"]
[null,"MEDIDOR"]
[null,"Marca"]
[null,"Modelo"]
[null,"Referencia "]
[null,"Tensión (V)"]
[null,"Número de fases"]
[null,"Tecnología de comunicación"]
[null,"Otra"]
[null,"Funcionalidades"]
[null,"Cantidad"]
[null,"Costo unitario del medidor antes de IVA (COP)"]
[null,"IVA del motor (COP)"]
[null,"Costo total de la inversión antes de IVA (COP) - si son varios medidores"]
[null,"IVA total de la inversión (COP) - si son varios medidores"]
[null,"Normas técnicas nacionales o internacionales con las que cumplen los medidores"]
[]
[null,"TERCIARIO / Sistemas de Gestión de la Energía, SGEn"]
[]
[null,"EQUIPO DE SUBMEDICION"]
[null,"Marca"]
[null,"Modelo"]
[null,"Referencia"]
[null,"Tensión de referencia (V)"]
[null,"Corriente máxima (A)"]
[null,"Flujo (m3/h)"]
[null,"Cantidad"]
[null,"Costo unitario del medidor antes de IVA (COP)"]
[null,"IVA del motor (COP)"]
[null,"Costo total de la inversión antes de IVA (COP) - si son varios medidores"]
[null,"IVA total de la inversión (COP) - si son varios medidores"]
[null,"Normas técnicas nacionales o internacionales con las que cumplen los medidores"]
[]
[null,"SERVICIO DE DISEÑO E IMPLEMENTACION DE SGEn"]
[null,"Proveedor"]
[null,"Alcance del servicio"]
[null,"Costo total de la inversión antes de IVA (COP)"]
[null,"IVA total de la inversión (COP)"]
[]
[null,"RESIDENCIAL / Iluminación"]
[]
[null,"ILUMINACION INTERIOR "]
[null,"FUENTES LUMINOSAS"]
[null,"Marca"]
[null,"Modelo"]
[null,"Referencia"]
[null,"Potencia nominal (W)"]
[null,"Eficacia luminosa (lm/W)"]
[null,"Vida útil (horas)"]
[null,"Factor de potencia"]
[null,"THD (%)"]
[null,"Cantidad de fuentes luminosas"]
[null,"Costo unitario de las fuentes luminosas antes de IVA (COP)"]
[null,"IVA de las fuentes luminosas (COP)"]
[null,"Costo total de la inversión antes de IVA (COP) - si son varias fuentes luminosas"]
[null,"IVA total de la inversión (COP) - si son varis fuentes luminosas"]
[null,"Normas técnicas nacionales o internacionales con las que cumplen las fuentes luminosas"]
[]
[null,"SISTEMA AUTOMATICO DE CONTROL DE ILUMINACION - SACI"]
[null,"Tipo de equipo"]
[null,"Marca"]
[null,"Modelo"]
[null,"Referencia"]
[null,"Cantidad"]
[null,"Costo de la inversión antes de IVA (COP)"]
[null,"IVA de la inversión (COP)"]
[null,"Normas técnicas nacionales o internacionales con las que cumple el equipo, elemento o maquinaria"]
[]
[]
[]
[null,"ILUMINACION EXTERIOR"]
[null,"FUENTES LUMINOSAS"]
[null,"Marca"]
[null,"Modelo"]
[null,"Referencia"]
[null,"Potencia nominal (W)"]
[null,"Eficacia luminosa (lm/W)"]
[null,"Vida útil (horas)"]
[null,"Factor de potencia"]
[null,"THD (%)"]
[null,"Cantidad de fuentes luminosas"]
[null,"Costo unitario de las fuentes luminosas antes de IVA (COP)"]
[null,"IVA de las fuentes luminosas (COP)"]
[null,"Costo total de la inversión antes de IVA (COP) - si son varias fuentes luminosas"]
[null,"IVA total de la inversión (COP) - si son varis fuentes luminosas"]
[null,"Normas técnicas nacionales o internacionales con las que cumplen las fuentes luminosas"]
[]
[null,"SISTEMA AUTOMATICO DE CONTROL DE ILUMINACION - SACI"]
[null,"Tipo de equipo"]
[null,"Marca"]
[null,"Modelo"]
[null,"Referencia"]
[null,"Cantidad"]
[null,"Costo de la inversión antes de IVA (COP)"]
[null,"IVA de la inversión (COP)"]
[null,"Normas técnicas nacionales o internacionales con las que cumple el equipo, elemento o maquinaria"]
[]
[null,"RESIDENCIAL / Mejora en el diseño, la construcción y la adecuación arquitectónica de edificaciones"]
[]
[null,"AISLAMIENTO TERMICO"]
[null,"Marca (si aplica)"]
[null,"Modelo (si aplica)"]
[null,"Referencia (si aplica)"]
[null,"Uso"]
[null,"Material"]
[null,"Tipo"]
[null,"Longitud (m)"]
[null,"Área (m2)"]
[null,"Espesor (mm)"]
[null,"Cantidad"]
[null,"Conductividad térmica"]
[null,"Límites de temperatura de operación (°C)"]
[null,"Costo unitario (m o m2) del aislamiento antes de IVA (COP)"]
[null,"IVA del aislamiento (COP)"]
[null,"Costo total de la inversión antes de IVA (COP) - si son varios aislamientos"]
[null,"IVA total de la inversión (COP) - si son varios aislamientos"]
[null,"Normas técnicas nacionales o internacionales con las que cumplen los aislamientos"]
[]
[null,"EXTRACTOR EOLICO"]
[null,"Material"]
[null,"Dimensiones (mm)"]
[null,"Peso (kg)"]
[null,"Caudal de diseño (m3/h)"]
[null,"Costo unitario del extractor antes de IVA (COP)"]
[null,"IVA del extractor (COP)"]
[null,"Costo total de la inversión antes de IVA (COP) - si son varios extractores"]
[null,"IVA total de la inversión (COP) - si son varios extractores"]
[null,"Normas técnicas nacionales o internacionales con las que cumplen los extractores"]
[]
[null,"PINTURA ATERMICA"]
[null,"Marca"]
[null,"Referencia"]
[null,"Conductividad térmica"]
[null,"Cantidad (gal)"]
[null,"Costo unitario del galón de pintura atérmica antes de IVA (COP)"]
[null,"IVA de la de pintura atérmica (COP)"]
[null,"Costo total de la inversión antes de IVA (COP)"]
[null,"IVA total de la inversión (COP)"]
[null,"Normas técnicas nacionales o internacionales con las que cumple la pintura atérmica"]
[]
[null,"VENTANA O FACHADA DE CONTROL SOLAR"]
[null,"Marca"]
[null,"Modelo"]
[null,"Referencia"]
[null,"Conductividad térmica  (W/K·m)"]
[null,"Ganancia de calor o coeficiente de sombra (%)"]
[null,"Transmisión luminosa (%)"]
[null,"Cantidad (m2)"]
[null,"Costo unitario de ventana o fachada de control solar antes de IVA (COP)"]
[null,"IVA de la ventana o fachada de control solar (COP)"]
[null,"Costo total de la inversión antes de IVA (COP)"]
[null,"IVA total de la inversión (COP)"]
[null,"Normas técnicas nacionales o internacionales con las que cumple la ventana o fachada de control solar"]
[]
[null,"SERVICIO DE DISEÑO Y CERTIFICACION DE EDIFICACIONES"]
[null,"Proveedor"]
[null,"Alcance del servicio"]
[null,"Costo total de la inversión antes de IVA (COP)"]
[null,"IVA total de la inversión (COP)"]
[]
[null,"RESIDENCIAL / Implementación masiva de estufas mejoradas de leña "]
[]
[null,"Marca (si aplica)"]
[null,"Modelo (si aplica)"]
[null,"Referencia (si aplica)"]
[null,"Potencia nominal (BTU)"]
[null,"Eficiencia nominal (%)"]
[null,"Cantidad"]
[null,"Horas de uso al año"]
[null,"Costo de la inversión antes de IVA (COP)"]
[null,"IVA de la inversión (COP)"]
[null,"Normas técnicas nacionales o internacionales con las que cumple el equipo"]

{"sheet":"Formato 3 Transporte","index":4,"n_rows":256,"n_cols":3,"rows_kept":256,"cut":false,"hidden":true,"merged":[[3,1,4,2],[5,1,5,2],[52,1,53,1],[52,2,53,2]]}
[]
[null,"FORMATO 3. Equipos objeto del incentivo","Fecha de elaboración: Noviembre de 2021"]
[null,null,"Versión 3"]
[null,"En esta sección se relacionan los elementos, equipos, maquinaria o servicios por los cuales se pretende obtener los incentivos tributarios y se indican sus características técnicas."]
[]
[]
[null,"Sector",{"$f":"'Formato 2'!R16","v":0}]
[null,"Acción o Medida",{"$f":"'Formato 2'!R17","v":0}]
[]
[]
[null," TRANSPORTE / Reconversión a gas natural vehicular - Únicamente vehículos dedicados"]
[]
[null,"VEHICULO"]
[null,"Tipo de vehículo"]
[null,"Otro "]
[null,"Tipo de uso"]
[null,"Marca"]
[null,"Año modelo"]
[null,"Referencia/línea del vehículo"]
[null,"Cilindraje (CC)"]
[null,"Rendimiento (km/m3)"]
[null,"Capacidad de transporte:"]
[null,"Pasajeros sentados (No.)"]
[null,"Pasajeros de pie (No.)"]
[null,"Carga (Ton)"]
[null,"Sistema o ruta (si aplica)"]
[null,"Ciudad"]
[null,"Recorrido al año (km)"]
[null,"Número de vehículos del proyecto"]
[null,"Costo unitario del vehículo antes de IVA (COP)"]
[null,"IVA del vehículo (COP)"]
[null,"Costo total de la inversión antes de IVA (COP) - si son varios vehículos"]
[null,"IVA total de la inversión (COP) - si son varios vehículos"]
[null,"Costos estimados asociados a la operación de cada vehículo (COP al año)"]
[null,"Energético (gas natural)"]
[null,"Mantenimiento (repuestos, revisiones, etc.)"]
[null,"Otros"]
[null,"Normas técnicas nacionales o internacionales con las que cumple el vehículo"]
[]
[null,"Si adquiere el vehículo con chasis y carrocería por separado, indique:"]
[null,"Marca del chasis"]
[null,"Referencia del chasis"]
[null,"Costo unitario del chasis antes de IVA (COP)"]
[null,"IVA del chasis (COP)"]
[null,"Marca del motor"]
[null,"Referencia del motor"]
[null,"Marca de la carrocería"]
[null,"Referencia de la carrocería"]
[null,"Costo unitario de la carrocería antes de IVA (COP)"]
[null,"IVA de la carrocería (COP)"]
[]
[]
[null,"TANQUE DE ALMACENAMIENTO DE GNV PARA USO EN VEHICULOS DEDICADOS A GAS NATURAL DE TRANSPORTE MASIVO"]
[]
[null,"Marca del tanque"]
[null,"Modelo/Referencia del tanque"]
[null,"Material de fabricación"]
[null,"Unidad de medida de capacidad hidráulica"]
[null,"Capacidad hidráulica "]
[null,"Costo unitario del tanque antes de IVA (COP)"]
[null,"IVA del tanque (COP)"]
[]
[null,"TRANSPORTE / Uso de electricidad en transporte"]
[]
[null,"VEHICULO"]
[null,"Tipo de vehículo "]
[null,"Otro "]
[null,"Tipo de uso"]
[null,"Tecnología / energético"]
[null,"Marca"]
[null,"Año modelo"]
[null,"Referencia/línea del vehículo"]
[null,"Tipo de batería"]
[null,"Otra"]
[null,"Potencia kW"]
[null,"Tipo de conector"]
[null,"Cilindraje (CC)"]
[null,"Unidades (rendimiento)"]
[null,"Rendimiento"]
[null,"Capacidad de transporte:"]
[null,"Pasajeros sentados (No.)"]
[null,"Pasajeros de pie (No.)"]
[null,"Carga (Ton)"]
[null,"Autonomía (km)"]
[null,"Sistema o ruta (si aplica)"]
[null,"Recorrido al año (km)"]
[null,"Número de vehículos del proyecto"]
[null,"Costo unitario del vehículo antes de IVA (COP)"]
[null,"IVA del vehículo (COP)"]
[null,"Costo total de la inversión antes de IVA (COP) - si son varios vehículos"]
[null,"IVA total de la inversión (COP) - si son varios vehículos"]
[null,"Costos estimados asociados a la operación de cada vehículo (COP al año)"]
[null,"Energético (combustible líquido + electricidad)"]
[null,"Mantenimiento (repuestos, revisiones, etc.)"]
[null,"Otros"]
[null,"Normas técnicas nacionales o internacionales con las que cumple el vehículo"]
[]
[null,"Si adquiere el vehículo con chasis y carrocería por separado, indique:"]
[null,"Marca del chasis"]
[null,"Referencia del chasis"]
[null,"Costo unitario del chasis antes de IVA (COP)"]
[null,"IVA del chasis (COP)"]
[null,"Marca del motor"]
[null,"Referencia del motor"]
[null,"Marca de la carrocería"]
[null,"Referencia de la carrocería"]
[null,"Costo unitario de la carrocería antes de IVA (COP)"]
[null,"IVA de la carrocería (COP)"]
[]
[]
[]
[null,"MOTOR ELECTRICO FERROVIARIO"]
[]
[null,"Grupo motor compresor"]
[null,"Marca"]
[null,"Modelo"]
[null,"Referencia"]
[null,"Potencia nominal (kW)"]
[null,"Tensión nominal de operación (V)"]
[null,"Cantidad"]
[null,"Número de componentes (por ejemplo: módulo, transductor, válvula, etc)"]
[null,"Unidad funcional (Indicar número de Resolución DIAN)"]
[null,"Costo total de la inversión antes de IVA (COP)"]
[null,"IVA total de la inversión (COP)"]
[null,"Normas técnicas nacionales o internacionales con las que cumplen el sistema"]
[]
[null,"Sistema de motor de tracción y control de la tracción"]
[null,"Marca"]
[null,"Modelo"]
[null,"Referencia"]
[null,"Potencia nominal (kW)"]
[null,"Tensión nominal de operación (V)"]
[null,"Cantidad"]
[null,"Número de componentes (por ejemplo: convertidor, motor, inductancia, disyuntor, etc)"]
[null,"Unidad funcional (Indicar número de Resolución DIAN)"]
[null,"Costo total de la inversión antes de IVA (COP)"]
[null,"IVA total de la inversión (COP)"]
[null,"Normas técnicas nacionales o internacionales con las que cumplen el sistema"]
[]
[null,"SISTEMA DE CABLE AEREO PARA TRANSPORTE PUBLICO DE PASAJEROS"]
[null,"Marca"]
[null,"Modelo"]
[null,"Referencia"]
[null,"Longitud del sistema (km)"]
[null,"Número de torres"]
[null,"Número de cabinas"]
[null,"Unidad funcional (Indicar número de Resolución DIAN)"]
[null,"Costo total de la inversión antes de IVA (COP)"]
[null,"IVA total de la inversión (COP)"]
[null,"Normas técnicas nacionales o internacionales con las que cumplen el sistema"]
[]
[null,"BATERIAS"]
[null,"Marca de la batería"]
[null,"Modelo/Referencia de la batería"]
[null,"Tipo de batería"]
[null,"Otra"]
[null,"Capacidad (kWh)"]
[null,"Tipo de cargador"]
[null,"Ciclos de carga hasta el 80%"]
[null,"Cantidad de baterías"]
[null,"Costo unitario de las baterías antes de IVA (COP)"]
[null,"IVA de la batería (COP)"]
[null,"Costo total de la inversión antes de IVA (COP) - si son varias baterías"]
[null,"IVA total de la inversión (COP) - si son varias baterías"]
[null,"Normas técnicas nacionales o internacionales con las que cumplen las baterías"]
[]
[null,"ESTACION DE RECARGA"]
[null,"Tipo de uso"]
[null,"Tipo de recarga"]
[null,"Tensión de operación (V)"]
[null,"Marca"]
[null,"Modelo"]
[null,"Referencia"]
[null,"Potencia (kW)"]
[null,"Tensión (V)"]
[null,"Tipo de conector"]
[null,"Cantidad"]
[null,"Municipio(s) donde se instalará(n)"]
[null,"Número de estaciones de recarga del proyecto"]
[null,"Costo unitario de la estación de recarga antes de IVA (COP)"]
[null,"IVA de la estación de recarga (COP)"]
[null,"Costo total de la inversión antes de IVA (COP) - si son varias estaciones de recarga"]
[null,"IVA total de la inversión (COP) - si son varias estaciones de recarga"]
[null,"Costos estimados asociados a la operación de cada estación (COP al año)"]
[null,"Mantenimiento (repuestos, revisiones, etc.)"]
[null,"Otros"]
[null,"Normas técnicas nacionales o internacionales con las que cumple la estación de recarga"]
[]
[]
[]
[null,"SUBESTACIONES ELECTRICAS PARA ESTACIONES DE RECARGA DE VEHICULOS ELECTRICOS O HIBRIDOS"]
[]
[null,"Transformador"]
[null,"Marca"]
[null,"Modelo"]
[null,"Referencia"]
[null,"Potencia (kVA)"]
[null,"Tensión (V)"]
[null,"Tipo"]
[null,"Clase"]
[null,"Costo unitario del transformador antes de IVA (COP)"]
[null,"IVA del transformador (COP)"]
[null,"Costo total de la inversión antes de IVA (COP) - si son varios transformadores"]
[null,"IVA total de la inversión (COP) - si son varios transformadores"]
[null,"Normas técnicas nacionales o internacionales con las que cumple el transformador"]
[]
[null,"Tablero de protección y maniobra"]
[null,"Marca"]
[null,"Modelo"]
[null,"Referencia"]
[null,"Tensión (V)"]
[null,"Corriente (A)"]
[null,"Costo unitario del tablero antes de IVA (COP)"]
[null,"IVA del tablero (COP)"]
[null,"Costo total de la inversión antes de IVA (COP) - si son varios tableros"]
[null,"IVA total de la inversión (COP) - si son varios tableros"]
[null,"Normas técnicas nacionales o internacionales con las que cumple el tablero"]
[]
[null,"Tablero de medida y control"]
[null,"Marca"]
[null,"Modelo"]
[null,"Referencia"]
[null,"Tensión (V)"]
[null,"No. de fases"]
[null,"Costo unitario del tablero antes de IVA (COP)"]
[null,"IVA del tablero (COP)"]
[null,"Costo total de la inversión antes de IVA (COP) - si son varios tableros"]
[null,"IVA total de la inversión (COP) - si son varios tableros"]
[null,"Normas técnicas nacionales o internacionales con las que cumple el tablero"]
[]
[null,"Banco de condensadores"]
[null,"Marca"]
[null,"Modelo"]
[null,"Referencia"]
[null,"Potencia (kVAr)"]
[null,"Tensión (V)"]
[null,"Topología"]
[null,"Costo unitario del banco de condensadores antes de IVA (COP)"]
[null,"IVA del banco de condensadores (COP)"]
[null,"Costo total de la inversión antes de IVA (COP) - si son varios bancos de condensadores"]
[null,"IVA total de la inversión (COP) - si son varios banco de condensadores"]
[null,"Normas técnicas nacionales o internacionales con las que cumple el banco de condensadores"]
[]
[null,"Tablero de distribución"]
[null,"Marca"]
[null,"Modelo"]
[null,"Referencia"]
[null,"Tensión (V)"]
[null,"Corriente (A)"]
[null,"No. de fases"]
[null,"No. de circuitos"]
[null,"Costo unitario del tablero antes de IVA (COP)"]
[null,"IVA del tablero (COP)"]
[null,"Costo total de la inversión antes de IVA (COP) - si son varios tableros"]
[null,"IVA total de la inversión (COP) - si son varios tableros"]
[null,"Normas técnicas nacionales o internacionales con las que cumple el tablero"]

{"sheet":"Medidas (Bienes)","index":5,"n_rows":103,"n_cols":6,"rows_kept":103,"cut":false,"hidden":true,"merged":[[4,1,16,1],[4,2,6,2],[7,2,16,2],[65,2,66,2],[67,1,94,1],[67,2,77,2],[78,2,82,2],[83,2,91,2],[93,2,94,2],[95,1,102,1],[95,2,96,2],[97,2,101,2],[95,3,96,3],[1,1,1,5],[12,3,16,3],[45,2,64,2],[46,3,52,3],[47,4,49,4],[50,4,52,4],[23,3,24,3],[53,3,55,3],[56,3,64,3],[25,2,44,2],[17,1,66,1],[17,2,24,2],[26,3,32,3],[27,4,29,4],[30,4,32,4],[33,3,35,3],[36,3,44,3],[83,3,86,3],[89,3,91,3],[76,3,77,3],[67,3,68,3],[74,3,75,3]]}
[]
[null,"Setores, Acciones y Medidas y Bienes y Servicios Objeto de los incentivos"]
[]
[null,"Sector","Acciones y medidas"," Equipos Susceptibles de los incentivos 1"," Equipos Susceptibles de los incentivos 2"," Equipos Susceptibles de los incentivos 3"]
[null,"Transporte","Reconversión a gas natural vehicular, GNV en transporte público de pasajeros.","Vehículo."]
[null,null,null,"Vehículo con chasis y carrocería por separado."]
[null,null,null,"Tanques de almacenamiento de GNV para uso en vehículos dedicados de transporte masivo."]
[null,null,"Uso de electricidad en las categorías: flota sector oficial, taxis en las principales ciudades del país, motos y automóviles y transporte público de pasajeros de las principales ciudades país.  ","Vehículo."]
[null,null,null,"Vehículo con chasis y carrocería por separado."]
[null,null,null,"Sistema de cable aéreo para transporte público de pasajeros."]
[null,null,null,"Baterías."]
[null,null,null,"Estación de recarga."]
[null,null,null,"Subestaciones eléctricas para estaciones de recarga de vehículos.","Transformador."]
[null,null,null,null,"Tablero de protección y maniobra."]
[null,null,null,null,"Tablero de medida y control."]
[null,null,null,null,"Banco de Condensadores."]
[null,null,null,null,"Tablero de distribución."]
[null,"Industrial","Medidas de eficiencia energética en energía eléctrica (fuerza motriz, aire acondicionado, refrigeración, iluminación, calor directo e indirecto).","Motor."]
[null,null,null,"Bomba centrífuga."]
[null,null,null,"Variador de velocidad o de Frecuencia."]
[null,null,null,"Aislamiento térmico. "]
[null,null,null,"Aire Acondicionado."]
[null,null,null,"Refrigeración."]
[null,null,null,"Iluminación.","Fuentes luminosas."]
[null,null,null,null,"Sistema automático de control de iluminación -SACI"]
[null,null,"Medidas de eficiencia energética en combustibles sólidos para calor directo e indirecto.","Aislamiento térmico."]
[null,null,null,"Mejoras en combustión.","Quemador."]
[null,null,null,null,"Sistemas de precalentamiento de aire","Intercambiador de Calor."]
[null,null,null,null,null,"Tubería para conducción de aires de combustión y de los gases de escape."]
[null,null,null,null,null,"Ventilador (impulsor, extractor y de recirculación)"]
[null,null,null,null,"Sistemas de precalentamiento de aire","Membrana polimérica."]
[null,null,null,null,null,"Tamiz molecular absorbente."]
[null,null,null,null,null,"Unidad de destilación criogénica. "]
[null,null,null,"Recuperación de calor residual","Aislamiento térmico."]
[null,null,null,null,"Tubería de recuperación de calor."]
[null,null,null,null,"Ventiladores (impulsores, extractores, de recirculación) "]
[null,null,null,"Cogeneración","Caldera principal."]
[null,null,null,null,"Turbina de vapor."]
[null,null,null,null,"Chiller de absorción."]
[null,null,null,null,"Compresor"]
[null,null,null,null,"Horno."]
[null,null,null,null,"Calera de condensación."]
[null,null,null,null,"Caldera de recuperación."]
[null,null,null,null,"Turbina o microturbina a gas o vapor."]
[null,null,null,null,"Motor de combustión interna."]
[null,null,"Medidas de eficiencia energética en gas natural para calor directo e indirecto.","Aislamiento térmico."]
[null,null,null,"Mejoras en combustión.","Quemador."]
[null,null,null,null,"Sistemas de precalentamiento de aire","Intercambiador de Calor."]
[null,null,null,null,null,"Tubería para conducción de aires de combustión y de los gases de escape."]
[null,null,null,null,null,"Ventilador (impulsor, extractor y de recirculación)"]
[null,null,null,null,"Sistemas de precalentamiento de aire","Membrana polimérica."]
[null,null,null,null,null,"Tamiz molecular absorbente."]
[null,null,null,null,null,"Unidad de destilación criogénica. "]
[null,null,null,"Recuperación de calor residual","Aislamiento térmico."]
[null,null,null,null,"Tubería de recuperación de calor."]
[null,null,null,null,"Ventiladores (impulsores, extractores, de recirculación) "]
[null,null,null,"Cogeneración","Caldera principal."]
[null,null,null,null,"Turbina de vapor."]
[null,null,null,null,"Chiller de absorción."]
[null,null,null,null,"Compresor"]
[null,null,null,null,"Horno."]
[null,null,null,null,"Calera de condensación."]
[null,null,null,null,"Caldera de recuperación."]
[null,null,null,null,"Turbina o microturbina a gas o vapor."]
[null,null,null,null,"Motor de combustión interna."]
[null,null,"Diseño e implementación de Sistemas de Gestión de la Energía, SGEn.","Equipo de submedición."]
[null,null,null,"Servicio de diseño e implementación de SGEn."]
[null,"Terciario (comercial, público y servicios)","Medidas de eficiencia energética en energía eléctrica (Iluminación, aire acondicionado, motores eléctricos y mejoras de sistemas de alumbrado público) ","Iluminación.","Fuentes Luminosas. "]
[null,null,null,null,"Sistema automático de control de iluminación."]
[null,null,null,"Aislamiento térmico."]
[null,null,null,"Aire acondicionado."]
[null,null,null,"Motor eléctrico. "]
[null,null,null,"Bomba centrífuga."]
[null,null,null,"Variador de velocidad o de frecuencia."]
[null,null,null,"Sistemas de alumbrado público.","Fuentes Luminosas."]
[null,null,null,null,"Sistema automático de control de iluminación -SACI"]
[null,null,null,"Equipos de Telegestión.","Controlador de luminaria. "]
[null,null,null,null,"Controlador de Segmento."]
[null,null,"Mejora en el diseño, la construcción y la adecuación arquitectónica de edificaciones (incluyendo mejoramiento en la transferencia por los techos, ventanas y muros)","Aislamiento térmico."]
[null,null,null,"Extractor eólico."]
[null,null,null,"Pintura atérmica."]
[null,null,null,"Ventana o fachada de control solar."]
[null,null,null,"Servicio de diseño y certificación de edificaciones. "]
[null,null,"Evaluación e implementación de distritos térmicos.","Central de producción térmica.","Microturbina a gas."]
[null,null,null,null,"Motor de combustión interna."]
[null,null,null,null,"Chiller eléctrico. "]
[null,null,null,null,"Chiller de absorción."]
[null,null,null,"Central de bombas.","Bomba centrífuga"]
[null,null,null,"Red de distribución ","Tubería para red de distribución."]
[null,null,null,"Central de intercambio térmico con usuarios finales","Intercambiador de calor."]
[null,null,null,null,"Válvula."]
[null,null,null,null,"Medidor de flujo e Agua."]
[null,null,"Implementación de nuevos y modernos sistemas de medición.","Medición avanzada","Medidor"]
[null,null,"Implementación de SGEn.","Equipo de submedición."]
[null,null,null,"Servicio de diseño e implementación de SGEn. "]
[null,"Residencial","Medidas de eficiencia energética en energía eléctrica (iluminación).","Iluminación","Fuentes Luminosas."]
[null,null,null,null,"Sistema automático de control de iluminación - SACI"]
[null,null,"Mejoramiento de la eficiencia energética en edificaciones (pinturas atérmicas, extractores eólicos y otros medios de acondicionamiento ambiental por medios naturales).","Aislamiento térmico."]
[null,null,null,"Extractor eólico."]
[null,null,null,"Pintura atérmica"]
[null,null,null,"Ventana o fachada de control solar."]
[null,null,null,"Servicio de deseño y certificación de edificaciones. "]
[null,null,"Implementación de estufas mejoradas de leña.","Estufa mejorada de leña"]

{"sheet":"Formato 3 Industrial","index":6,"n_rows":490,"n_cols":3,"rows_kept":490,"cut":false,"hidden":true,"merged":[[3,1,4,2],[5,1,5,2]]}
[]
[null,"FORMATO 3. Equipos objeto del incentivo","Fecha de elaboración: Noviembre de 2021"]
[null,null,"Versión 3"]
[null,"En esta sección se relacionan los elementos, equipos, maquinaria o servicios por los cuales se pretende obtener los incentivos tributarios y se indican sus características técnicas."]
[]
[]
[null,"Sector",{"$f":"'Formato 2'!R16","v":0}]
[null,"Acción o Medida",{"$f":"'Formato 2'!R17","v":0}]
[]
[]
[null,"INDUSTRIA / Usos eléctricos"]
[]
[null,"Uso eléctrico "]
[null,"Tipo de equipo, elemento o maquinaria"]
[null,"MOTOR"]
[null,"Marca"]
[null,"Modelo"]
[null,"Referencia"]
[null,"Potencia nominal (kW)"]
[null,"Tensión nominal (V)"]
[null,"Velocidad (rpm)"]
[null,"Eficiencia nominal (%)"]
[null,"Clase de eficiencia del motor según RETIQ"]
[null,"Horas de uso al año"]
[null,"Cantidad de motores"]
[null,"Costo unitario de los motores antes de IVA (COP)"]
[null,"IVA del motor (COP)"]
[null,"Costo total de la inversión antes de IVA (COP) - si son varios motores"]
[null,"IVA total de la inversión (COP) - si son varios motores"]
[null,"Normas técnicas nacionales o internacionales con las que cumplen los motores"]
[]
[null,"BOMBA CENTRIFUGA"]
[null,"Marca"]
[null,"Modelo"]
[null,"Referencia"]
[null,"Tipo"]
[null,"Potencia nominal (kW)"]
[null,"Unidad de medida de caudal de diseño"]
[null,"Caudal de diseño"]
[null,"Horas de uso al año"]
[null,"Cantidad de bombas"]
[null,"Costo unitario de las bombas antes de IVA (COP)"]
[null,"IVA de la bomba (COP)"]
[null,"Costo total de la inversión antes de IVA (COP) - si son varias bombas"]
[null,"IVA total de la inversión (COP) - si son varias bombas"]
[null,"Normas técnicas nacionales o internacionales con las que cumplen las bombas"]
[]
[]
[null,"VARIADOR DE VELOCIDAD O DE FRECUENCIA"]
[null,"Marca"]
[null,"Modelo"]
[null,"Referencia"]
[null,"Potencia nominal (kW)"]
[null,"Tensión nominal (V)"]
[null,"Corriente nominal (A)"]
[null,"Frecuencia nominal (Hz)"]
[null,"Velocidad (rpm)"]
[null,"Eficiencia nominal (%)"]
[null,"Clase de eficiencia del motor según RETIQ"]
[null,"Horas de uso al año"]
[null,"Cantidad de variadores"]
[null,"Costo unitario de los variadores antes de IVA (COP)"]
[null,"IVA del  variador (COP)"]
[null,"Costo total de la inversión antes de IVA (COP) - si son varios variadores"]
[null,"IVA total de la inversión (COP) - si son varios variadores"]
[null,"Normas técnicas nacionales o internacionales con las que cumplen los variadores"]
[]
[null,"COMPRESOR"]
[null,"Marca"]
[null,"Modelo"]
[null,"Referencia"]
[null,"Potencia nominal (kW)"]
[null,"Tensión nominal (V)"]
[null,"Presión de trabajo (bar)"]
[null,"Capacidad del tanque (l)"]
[null,"Velocidad (rpm)"]
[null,"Eficiencia nominal (%)"]
[null,"Horas de uso al año"]
[null,"Cantidad de compresores"]
[null,"Costo unitario de los compresores antes de IVA (COP)"]
[null,"IVA del  compresor (COP)"]
[null,"Costo total de la inversión antes de IVA (COP) - si son varios compresores"]
[null,"IVA total de la inversión (COP) - si son varios compresores"]
[null,"Normas técnicas nacionales o internacionales con las que cumplen los compresores"]
[]
[null,"AILSAMIENTO TERMICO"]
[null,"Marca"]
[null,"Modelo"]
[null,"Referencia"]
[null,"Uso"]
[null,"Material constitutivo"]
[null,"Tipo"]
[null,"Longitud (m) (si aplica)"]
[null,"Área (m2) (si aplica)"]
[null,"Espesor (mm)"]
[null,"Cantidad"]
[null,"Conductividad térmica"]
[null,"Límites de temperatura de operación (°C)"]
[null,"Costo unitario (m o m2) del aislamiento antes de IVA (COP)"]
[null,"IVA del aislamiento (COP)"]
[null,"Costo total de la inversión antes de IVA (COP) - si son varios aislamientos"]
[null,"IVA total de la inversión (COP) - si son varios aislamientos"]
[null,"Normas técnicas nacionales o internacionales con las que cumplen los aislamientos"]
[]
[null,"AIRE ACONDICIONADO"]
[null,"Marca"]
[null,"Modelo"]
[null,"Referencia"]
[null,"Tipo"]
[null,"Tipo de compresor"]
[null,"Sistema de enfriamiento"]
[null,"Unidad de medida de potencia frigorífica"]
[null,"Potencia frigorífica"]
[null,"Clase de eficiencia según RETIQ"]
[null,"EER"]
[null,"IEER"]
[null,"IPVL"]
[null,"Cantidad de aires acondicionados"]
[null,"Costo unitario de los aires acondicionados antes de IVA (COP)"]
[null,"IVA de los aires acondicionados (COP)"]
[null,"Costo total de la inversión antes de IVA (COP) - si son varios aires acondicionados"]
[null,"IVA total de la inversión (COP) - si son varios aires acondicionados"]
[null,"Normas técnicas nacionales o internacionales con las que cumplen los aires acondicionados"]
[]
[null,"REFRIGERACION"]
[null,"Marca"]
[null,"Modelo"]
[null,"Referencia"]
[null,"Tipo de sistema de refrigeración"]
[null,"Tipo de compresor"]
[null,"Sistema de enfriamiento"]
[null,"Número de compresores"]
[null,"Rango de temperatura de operación (°C)"]
[null,"Unidad de medida de potencia frigorífica"]
[null,"Potencia frigorífica"]
[null,"Volumen a refrigerar (m3)"]
[null,"COP (Coefficient of Performance)"]
[null,"Cantidad de equipos de refrigeración"]
[null,"Costo unitario de los equipos de refrigeración antes de IVA (COP)"]
[null,"IVA de los equipos de refrigeración (COP)"]
[null,"Costo total de la inversión antes de IVA (COP) - si son varios equipos de refrigeración"]
[null,"IVA total de la inversión (COP) - si son varios equipos de refrigeración"]
[null,"Normas técnicas nacionales o internacionales con las que cumplen los equipos de refrigeración"]
[]
[null,"ILUMINACION INTERIOR "]
[null,"FUENTES LUMINOSAS"]
[null,"Marca"]
[null,"Modelo"]
[null,"Referencia"]
[null,"Potencia nominal (W)"]
[null,"Eficacia luminosa (lm/W)"]
[null,"Vida útil (horas)"]
[null,"Factor de potencia"]
[null,"THD (%)"]
[null,"Cantidad de fuentes luminosas"]
[null,"Costo unitario de las fuentes luminosas antes de IVA (COP)"]
[null,"IVA de las fuentes luminosas (COP)"]
[null,"Costo total de la inversión antes de IVA (COP) - si son varias fuentes luminosas"]
[null,"IVA total de la inversión (COP) - si son varis fuentes luminosas"]
[null,"Normas técnicas nacionales o internacionales con las que cumplen las fuentes luminosas"]
[]
[null,"SISTEMA AUTOMATICO DE CONTROL DE ILUMINACION - SACI"]
[null,"Tipo de equipo"]
[null,"Marca"]
[null,"Modelo"]
[null,"Referencia"]
[null,"Cantidad"]
[null,"Costo de la inversión antes de IVA (COP)"]
[null,"IVA de la inversión (COP)"]
[null,"Normas técnicas nacionales o internacionales con las que cumple el equipo, elemento o maquinaria"]
[]
[]
[]
[null,"ILUMINACION EXTERIOR"]
[null,"FUENTES LUMINOSAS"]
[null,"Marca"]
[null,"Modelo"]
[null,"Referencia"]
[null,"Potencia nominal (W)"]
[null,"Eficacia luminosa (lm/W)"]
[null,"Vida útil (horas)"]
[null,"Factor de potencia"]
[null,"THD (%)"]
[null,"Cantidad de fuentes luminosas"]
[null,"Costo unitario de las fuentes luminosas antes de IVA (COP)"]
[null,"IVA de las fuentes luminosas (COP)"]
[null,"Costo total de la inversión antes de IVA (COP) - si son varias fuentes luminosas"]
[null,"IVA total de la inversión (COP) - si son varis fuentes luminosas"]
[null,"Normas técnicas nacionales o internacionales con las que cumplen las fuentes luminosas"]
[]
[null,"SISTEMA AUTOMATICO DE CONTROL DE ILUMINACION - SACI"]
[null,"Tipo de equipo"]
[null,"Marca"]
[null,"Modelo"]
[null,"Referencia"]
[null,"Cantidad"]
[null,"Costo de la inversión antes de IVA (COP)"]
[null,"IVA de la inversión (COP)"]
[null,"Normas técnicas nacionales o internacionales con las que cumple el equipo, elemento o maquinaria"]
[]
[]
[null,"INDUSTRIA / Combustión"]
[]
[null,"Tipo de uso térmico"]
[null,"Tipo de equipo, elemento o maquinaria"]
[null,"Otro"]
[null,"AISLAMIENTO TERMICO"]
[null,"Marca"]
[null,"Modelo"]
[null,"Referencia"]
[null,"Uso"]
[null,"Material constitutivo"]
[null,"Tipo"]
[null,"Longitud (m) "]
[null,"Área (m2)"]
[null,"Espesor (mm)"]
[null,"Cantidad"]
[null,"Conductividad térmica"]
[null,"Límites de temperatura de operación (°C)"]
[null,"Costo unitario (m o m2) del aislamiento antes de IVA (COP)"]
[null,"IVA del aislamiento (COP)"]
[null,"Costo total de la inversión antes de IVA (COP) - si son varios aislamientos"]
[null,"IVA total de la inversión (COP) - si son varios aislamientos"]
[null,"Normas técnicas nacionales o internacionales con las que cumplen los aislamientos"]
[]
[]
[null,"QUEMADOR"]
[null,"Marca"]
[null,"Modelo"]
[null,"Referencia"]
[null,"Energético"]
[null,"Tipo"]
[null,"Unidad de medida de potencia (kW) o capacidad calorífica (BTU/h)"]
[null,"Potencia o capacidad calorífica"]
[null,"Presión de alimentación de gas (mbar)"]
[null,"Velocidad de llama (m/s)"]
[null,"Longitud (mm)"]
[null,"Cantidad"]
[null,"Costo unitario del quemador antes de IVA (COP)"]
[null,"IVA del quemador (COP)"]
[null,"Costo total de la inversión antes de IVA (COP) - si son varios quemadores"]
[null,"IVA total de la inversión (COP) - si son varios quemadores"]
[null,"Normas técnicas nacionales o internacionales con las que cumplen los quemadores"]
[]
[null,"INTERCAMBIADOR DE CALOR"]
[null,"Marca"]
[null,"Modelo"]
[null,"Referencia"]
[null,"Área de transferencia de calor (m2)"]
[null,"Efectividad (%)"]
[null,"Cantidad"]
[null,"Costo unitario del intercambiador antes de IVA (COP)"]
[null,"IVA del intercambiador (COP)"]
[null,"Costo total de la inversión antes de IVA (COP) - si son varios intercambiadores"]
[null,"IVA total de la inversión (COP) - si son varios intercambiadores"]
[null,"Normas técnicas nacionales o internacionales con las que cumplen los intercambiadores"]
[]
[null,"TUBERIA PARA CONDUCCION DE AIRES DE COMBSUTION Y DE LOS GASES DE ESCAPE"]
[null,"Material"]
[null,"Diámetro externo (mm)"]
[null,"Espesor de pared (mm)"]
[null,"Longitud (m)"]
[null,"Límites de temperatura de operación (°C)"]
[null,"Cantidad"]
[null,"Costo unitario de tubería antes de IVA (COP)"]
[null,"IVA de la tubería (COP)"]
[null,"Costo total de la inversión antes de IVA (COP) - si son varias tuberías"]
[null,"IVA total de la inversión (COP) - si son varias tuberías"]
[null,"Normas técnicas nacionales o internacionales con las que cumplen las tuberías"]
[]
[null,"VENTILADOR (IMPULSOR, EXTRACTOR Y DE RECIRCULACION)"]
[null,"Marca"]
[null,"Modelo"]
[null,"Referencia"]
[null,"Tipo"]
[null,"Potencia (kW)"]
[null,"Caudal (m3/h)"]
[null,"Velocidad (rpm)"]
[null,"Cantidad"]
[null,"Costo unitario del ventilador antes de IVA (COP)"]
[null,"IVA del ventilador (COP)"]
[null,"Costo total de la inversión antes de IVA (COP) - si son varios ventiladores"]
[null,"IVA total de la inversión (COP) - si son varios ventiladores"]
[null,"Normas técnicas nacionales o internacionales con las que cumplen los ventiladores"]
[]
[null,"MEMBRANA POLIMERICA"]
[null,"Marca"]
[null,"Referencia"]
[null,"Materiales"]
[null,"Área (m2)"]
[null,"Costo unitario de la membrana antes de IVA (COP)"]
[null,"IVA de la membrana (COP)"]
[null,"Costo total de la inversión antes de IVA (COP) - si son varias la membrana"]
[null,"IVA total de la inversión (COP) - si son varias la membranas"]
[null,"Normas técnicas nacionales o internacionales con las que cumplen las membranas"]
[]
[null,"TAMIZ MOLECULAR ADSORBENTE"]
[null,"Marca"]
[null,"Referencia"]
[null,"Materiales"]
[null,"Área (m2)"]
[null,"Costo unitario del tamiz antes de IVA (COP)"]
[null,"IVA del tamiz (COP)"]
[null,"Costo total de la inversión antes de IVA (COP) - si son varios los tamices"]
[null,"IVA total de la inversión (COP) - si son varios los tamices"]
[null,"Normas técnicas nacionales o internacionales con las que cumplen los tamices"]
[]
[null,"UNIDAD DE DESTILACION CRIOGENICA"]
[null,"   Unidad de medida de producción de oxígeno "]
[null,"Producción de oxígeno"]
[null,"Presión (mbar)"]
[null,"Temperatura (°C)"]
[null,"Volumen del sistema"]
[null,"Área requerida (m2)"]
[null,"Costo total de la inversión antes de IVA (COP)"]
[null,"IVA total de la inversión (COP)"]
[null,"Normas técnicas nacionales o internacionales con las que cumple la unidad de destilación"]
[]
[null,"TUBERIA DE RECUPERACION DE CALOR"]
[null,"Material"]
[null,"Diámetro externo (mm)"]
[null,"Espesor de pared (mm)"]
[null,"Longitud (m)"]
[null,"Límites de temperatura de operación (°C)"]
[null,"Cantidad"]
[null,"Costo unitario de tubería antes de IVA (COP)"]
[null,"IVA de la tubería (COP)"]
[null,"Costo total de la inversión antes de IVA (COP) - si son varias tuberías"]
[null,"IVA total de la inversión (COP) - si son varias tuberías"]
[null,"Normas técnicas nacionales o internacionales con las que cumplen las tuberías"]
[]
[null,"CALDERA PRINCIPAL"]
[null,"Marca"]
[null,"Modelo"]
[null,"Referencia"]
[null,"Combustible"]
[null,"Potencia nominal (BHP)"]
[null,"Eficiencia nominal (%)"]
[null,"Horas de uso al año"]
[null,"Cantidad"]
[null,"Costo unitario de la caldera antes de IVA (COP)"]
[null,"IVA de la caldera (COP)"]
[null,"Costo total de la inversión antes de IVA (COP) - si son varias calderas"]
[null,"IVA total de la inversión (COP) - si son varias calderas"]
[null,"Normas técnicas nacionales o internacionales con las que cumplen las calderas"]
[]
[null,"TURBINA DE VAPOR"]
[null,"Marca"]
[null,"Modelo"]
[null,"Referencia"]
[null,"Potencia"]
[null,"Tipo según aprovechamiento de energía"]
[null,"Tipo según etapas"]
[null,"Dirección del flujo de vapor"]
[null,"Presión de salida del vapor"]
[null,"Cantidad"]
[null,"Costo unitario de la turbina antes de IVA (COP)"]
[null,"IVA de la turbina (COP)"]
[null,"Costo total de la inversión antes de IVA (COP) - si son varias turbinas"]
[null,"IVA total de la inversión (COP) - si son varias turbina"]
[null,"Normas técnicas nacionales o internacionales con las que cumplen las turbinas"]
[]
[null,"CHILLER DE ABSORCIÓN"]
[null,"Marca"]
[null,"Modelo"]
[null,"Referencia"]
[null,"Fuente de energía"]
[null,"Potencia frigorífica (kWt)"]
[null,"COP (Coefficient of Performance)"]
[null,"Cantidad"]
[null,"Costo unitario del chiller antes de IVA (COP)"]
[null,"IVA del chiller (COP)"]
[null,"Costo total de la inversión antes de IVA (COP) - si son varios chiller"]
[null,"IVA total de la inversión (COP) - si son varios chiller"]
[null,"Normas técnicas nacionales o internacionales con las que cumplen los chiller"]
[]
[null,"COMPRESOR"]
[null,"Marca"]
[null,"Modelo"]
[null,"Referencia"]
[null,"Potencia nominal (kW)"]
[null,"Tensión nominal (V)"]
[null,"Presión de trabajo (bar)"]
[null,"Capacidad del tanque (l)"]
[null,"Velocidad (rpm)"]
[null,"Eficiencia nominal (%)"]
[null,"Horas de uso al año"]
[null,"Cantidad de compresores"]
[null,"Costo unitario de los compresores antes de IVA (COP)"]
[null,"IVA del  compresor (COP)"]
[null,"Costo total de la inversión antes de IVA (COP) - si son varios compresores"]
[null,"IVA total de la inversión (COP) - si son varios compresores"]
[null,"Normas técnicas nacionales o internacionales con las que cumplen los compresores"]
[]
[null,"HORNO"]
[null,"Marca"]
[null,"Modelo"]
[null,"Referencia"]
[null,"Combustible empleado"]
[null,"Uso"]
[null,"Potencia (MW)"]
[null,"Eficiencia (%)"]
[null,"Horas de uso al año (h)"]
[null,"Cantidad"]
[null,"Costo unitario del horno antes de IVA (COP)"]
[null,"IVA del horno (COP)"]
[null,"Costo total de la inversión antes de IVA (COP) - si son varios hornos"]
[null,"IVA total de la inversión (COP) - si son varios hornos"]
[null,"Normas técnicas nacionales o internacionales con las que cumplen los hornos"]
[]
[null,"CALDERA DE CONDENSACION"]
[null,"Marca"]
[null,"Modelo"]
[null,"Referencia"]
[null,"Unidad de medida de potencia (kW) o capacidad calorífica (BTU/h)"]
[null,"Potencia o capacidad calorífica"]
[null,"Eficiencia de combustión con base en el poder calorífico superior"]
[null,"Temperatura de enfriamiento de los gases de combustión a la salida (°C)"]
[null,"Cantidad"]
[null,"Costo unitario de la caldera antes de IVA (COP)"]
[null,"IVA de la caldera (COP)"]
[null,"Costo total de la inversión antes de IVA (COP) - si son varias calderas"]
[null,"IVA total de la inversión (COP) - si son varias calderas"]
[null,"Normas técnicas nacionales o internacionales con las que cumplen las calderas"]
[]
[null,"CALDERA DE RECUPERACION"]
[null,"Marca"]
[null,"Modelo"]
[null,"Referencia"]
[null,"Tipo de flujo"]
[null,"Quemador de poscombustión"]
[null,"Rendimiento (%)"]
[null,"Cantidad"]
[null,"Costo unitario de la caldera antes de IVA (COP)"]
[null,"IVA de la caldera (COP)"]
[null,"Costo total de la inversión antes de IVA (COP) - si son varias calderas"]
[null,"IVA total de la inversión (COP) - si son varias calderas"]
[null,"Normas técnicas nacionales o internacionales con las que cumplen las calderas"]
[]
[null,"TURBINA O MICROTURBINA A GAS O VAPOR"]
[null,"Marca"]
[null,"Modelo"]
[null,"Referencia"]
[null,"Unidad de medida de Potencia nominal"]
[null,"Potencia nominal"]
[null,"Velocidad (rpm)"]
[null,"Eficiencia (%)"]
[null,"Cantidad"]
[null,"Costo unitario de la turbina antes de IVA (COP)"]
[null,"IVA de la turbina (COP)"]
[null,"Costo total de la inversión antes de IVA (COP) - si son varias turbinas"]
[null,"IVA total de la inversión (COP) - si son varias turbinas"]
[null,"Normas técnicas nacionales o internacionales con las que cumplen las turbinas"]
[]
[null,"MOTOR DE COMBUSTION INTERNA"]
[null,"Marca"]
[null,"Modelo"]
[null,"Referencia"]
[null,"Unidad de medida de Potencia nominal"]
[null,"Potencia nominal"]
[null,"Velocidad (rpm)"]
[null,"Eficiencia (%)"]
[null,"Cantidad"]
[null,"Costo unitario del motor antes de IVA (COP)"]
[null,"IVA del motor (COP)"]
[null,"Costo total de la inversión antes de IVA (COP) - si son varios motores"]
[null,"IVA total de la inversión (COP) - si son varios motores"]
[null,"Normas técnicas nacionales o internacionales con las que cumplen los motor"]
[]
[null,"INDUSTRIA / Sistemas de Gestión de la Energía, SGEn"]
[]
[null,"EQUIPO DE SUBMEDICION"]
[null,"Marca"]
[null,"Modelo"]
[null,"Referencia"]
[null,"Tensión de referencia (V)"]
[null,"Corriente máxima (A)"]
[null,"Flujo (m3/h)"]
[null,"Cantidad"]
[null,"Costo unitario del medidor antes de IVA (COP)"]
[null,"IVA del motor (COP)"]
[null,"Costo total de la inversión antes de IVA (COP) - si son varios medidores"]
[null,"IVA total de la inversión (COP) - si son varios medidores"]
[null,"Normas técnicas nacionales o internacionales con las que cumplen los medidores"]
[]
[null,"SERVICIO DE DISEÑO E IMPLEMENTACION DE SGEn"]
[null,"Proveedor"]
[null,"Alcance del servicio"]
[null,"Costo total de la inversión antes de IVA (COP)"]
[null,"IVA total de la inversión (COP)"]

{"sheet":"Formato 3 Terciario","index":7,"n_rows":474,"n_cols":3,"rows_kept":474,"cut":false,"hidden":true,"merged":[[3,1,4,2],[5,1,5,2],[7,1,8,1],[7,2,8,2]]}
[]
[null,"FORMATO 3. Equipos objeto del incentivo","Fecha de elaboración: Noviembre de 2021"]
[null,null,"Versión 3"]
[null,"En esta sección se relacionan los elementos, equipos, maquinaria o servicios por los cuales se pretende obtener los incentivos tributarios y se indican sus características técnicas."]
[]
[]
[null,"Sector",{"$f":"'Formato 2'!R16","v":0}]
[null,"Acción o Medida",{"$f":"'Formato 2'!R17","v":0}]
[null,null,{"$f":"'Formato 2'!R18","v":0}]
[]
[null,"Terciario / Usos eléctricos"]
[]
[null,"ILUMINACION INTERIOR "]
[null,"FUENTES LUMINOSAS"]
[null,"Marca"]
[null,"Modelo"]
[null,"Referencia"]
[null,"Potencia nominal (W)"]
[null,"Eficacia luminosa (lm/W)"]
[null,"Vida útil (horas)"]
[null,"Factor de potencia"]
[null,"THD (%)"]
[null,"Cantidad de fuentes luminosas"]
[null,"Costo unitario de las fuentes luminosas antes de IVA (COP)"]
[null,"IVA de las fuentes luminosas (COP)"]
[null,"Costo total de la inversión antes de IVA (COP) - si son varias fuentes luminosas"]
[null,"IVA total de la inversión (COP) - si son varis fuentes luminosas"]
[null,"Normas técnicas nacionales o internacionales con las que cumplen las fuentes luminosas"]
[]
[null,"SISTEMA AUTOMATICO DE CONTROL DE ILUMINACION - SACI"]
[null,"Tipo de equipo"]
[null,"Marca"]
[null,"Modelo"]
[null,"Referencia"]
[null,"Cantidad"]
[null,"Costo de la inversión antes de IVA (COP)"]
[null,"IVA de la inversión (COP)"]
[null,"Normas técnicas nacionales o internacionales con las que cumple el equipo, elemento o maquinaria"]
[]
[null,"ILUMINACION EXTERIOR"]
[null,"FUENTES LUMINOSAS"]
[null,"Marca"]
[null,"Modelo"]
[null,"Referencia"]
[null,"Potencia nominal (W)"]
[null,"Eficacia luminosa (lm/W)"]
[null,"Vida útil (horas)"]
[null,"Factor de potencia"]
[null,"THD (%)"]
[null,"Cantidad de fuentes luminosas"]
[null,"Costo unitario de las fuentes luminosas antes de IVA (COP)"]
[null,"IVA de las fuentes luminosas (COP)"]
[null,"Costo total de la inversión antes de IVA (COP) - si son varias fuentes luminosas"]
[null,"IVA total de la inversión (COP) - si son varis fuentes luminosas"]
[null,"Normas técnicas nacionales o internacionales con las que cumplen las fuentes luminosas"]
[]
[null,"SISTEMA AUTOMATICO DE CONTROL DE ILUMINACION - SACI"]
[null,"Tipo de equipo"]
[null,"Marca"]
[null,"Modelo"]
[null,"Referencia"]
[null,"Cantidad"]
[null,"Costo de la inversión antes de IVA (COP)"]
[null,"IVA de la inversión (COP)"]
[null,"Normas técnicas nacionales o internacionales con las que cumple el equipo, elemento o maquinaria"]
[]
[null,"AISLAMIENTO TERMICO"]
[null,"Marca (si aplica)"]
[null,"Modelo (si aplica)"]
[null,"Referencia (si aplica)"]
[null,"Uso"]
[null,"Material"]
[null,"Tipo"]
[null,"Longitud (m)"]
[null,"Área (m2)"]
[null,"Espesor (mm)"]
[null,"Cantidad"]
[null,"Conductividad térmica"]
[null,"Límites de temperatura de operación (°C)"]
[null,"Costo unitario (m o m2) del aislamiento antes de IVA (COP)"]
[null,"IVA del aislamiento (COP)"]
[null,"Costo total de la inversión antes de IVA (COP) - si son varios aislamientos"]
[null,"IVA total de la inversión (COP) - si son varios aislamientos"]
[null,"Normas técnicas nacionales o internacionales con las que cumplen los aislamientos"]
[]
[null,"AIRE ACONDICIONADO"]
[null,"Marca"]
[null,"Modelo"]
[null,"Referencia"]
[null,"Tipo"]
[null,"Tipo de compresor"]
[null,"Sistema de enfriamiento"]
[null,"Unidad de medida de potencia frigorífica"]
[null,"Potencia frigorífica"]
[null,"Clase de eficiencia según RETIQ"]
[null,"EER"]
[null,"IEER"]
[null,"IPVL"]
[null,"Cantidad de aires acondicionados"]
[null,"Costo unitario de los aires acondicionados antes de IVA (COP)"]
[null,"IVA de los aires acondicionados (COP)"]
[null,"Costo total de la inversión antes de IVA (COP) - si son varios aires acondicionados"]
[null,"IVA total de la inversión (COP) - si son varios aires acondicionados"]
[null,"Normas técnicas nacionales o internacionales con las que cumplen los aires acondicionados"]
[]
[null,"MOTOR ELÉCTRICO"]
[null,"Marca"]
[null,"Modelo"]
[null,"Referencia"]
[null,"Potencia nominal (kW)"]
[null,"Tensión nominal (V)"]
[null,"Corriente nominal (A)"]
[null,"Frecuencia nominal (Hz)"]
[null,"Velocidad (rpm)"]
[null,"Eficiencia nominal (%)"]
[null,"Clase de eficiencia del motor según RETIQ"]
[null,"Horas de uso al año"]
[null,"Cantidad de motores"]
[null,"Costo unitario de los motores antes de IVA (COP)"]
[null,"IVA del motor (COP)"]
[null,"Costo total de la inversión antes de IVA (COP) - si son varios motores"]
[null,"IVA total de la inversión (COP) - si son varios motores"]
[null,"Normas técnicas nacionales o internacionales con las que cumplen los motores"]
[]
[null,"BOMBA CENTRIFUGA"]
[null,"Marca"]
[null,"Modelo"]
[null,"Referencia"]
[null,"Tipo"]
[null,"Potencia nominal (kW)"]
[null,"Unidad de medida de caudal de diseño"]
[null,"Caudal de diseño "]
[null,"Horas de uso al año"]
[null,"Cantidad de bombas"]
[null,"Costo unitario de las bombas antes de IVA (COP)"]
[null,"IVA de la bomba (COP)"]
[null,"Costo total de la inversión antes de IVA (COP) - si son varias bombas"]
[null,"IVA total de la inversión (COP) - si son varias bombas"]
[null,"Normas técnicas nacionales o internacionales con las que cumplen las bombas"]
[]
[null,"VARIADOR DE VELOCIDAD O DE FRECUENCIA"]
[null,"Marca"]
[null,"Modelo"]
[null,"Referencia"]
[null,"Potencia nominal (kW)"]
[null,"Tensión nominal (V)"]
[null,"Corriente nominal (A)"]
[null,"Frecuencia nominal (Hz)"]
[null,"Velocidad (rpm)"]
[null,"Eficiencia nominal (%)"]
[null,"Clase de eficiencia del motor según RETIQ"]
[null,"Horas de uso al año"]
[null,"Cantidad de variadores"]
[null,"Costo unitario de los variadores antes de IVA (COP)"]
[null,"IVA del  variador (COP)"]
[null,"Costo total de la inversión antes de IVA (COP) - si son varios variadores"]
[null,"IVA total de la inversión (COP) - si son varios variadores"]
[null,"Normas técnicas nacionales o internacionales con las que cumplen los variadores"]
[]
[null,"COMPRESOR"]
[null,"Marca"]
[null,"Modelo"]
[null,"Referencia"]
[null,"Potencia nominal (kW)"]
[null,"Tensión nominal (V)"]
[null,"Presión de trabajo (bar)"]
[null,"Capacidad del tanque (l)"]
[null,"Velocidad (rpm)"]
[null,"Eficiencia nominal (%)"]
[null,"Horas de uso al año"]
[null,"Cantidad de compresores"]
[null,"Costo unitario de los compresores antes de IVA (COP)"]
[null,"IVA del  compresor (COP)"]
[null,"Costo total de la inversión antes de IVA (COP) - si son varios compresores"]
[null,"IVA total de la inversión (COP) - si son varios compresores"]
[null,"Normas técnicas nacionales o internacionales con las que cumplen los compresores"]
[]
[null,"SISTEMAS DE ALUMBRADO PÚBLICO"]
[null,"FUENTES LUMINOSAS"]
[null,"Marca"]
[null,"Modelo"]
[null,"Referencia"]
[null,"Potencia nominal (W)"]
[null,"Eficacia luminosa (lm/W)"]
[null,"Vida útil (horas)"]
[null,"Factor de potencia"]
[null,"THD (%)"]
[null,"Cantidad de fuentes luminosas"]
[null,"Costo unitario de las fuentes luminosas antes de IVA (COP)"]
[null,"IVA de las fuentes luminosas (COP)"]
[null,"Costo total de la inversión antes de IVA (COP) - si son varias fuentes luminosas"]
[null,"IVA total de la inversión (COP) - si son varis fuentes luminosas"]
[null,"Normas técnicas nacionales o internacionales con las que cumplen las fuentes luminosas"]
[]
[null,"EQUIPOS DE TELEGESTION"]
[null,"CONTROLADOR DE LUMINARIA"]
[null,"Marca"]
[null,"Modelo"]
[null,"Referencia"]
[null,"Cantidad de controladores de luminaria"]
[null,"Costo unitario de los controladores de luminaria antes de IVA (COP)"]
[null,"IVA de los controladores de luminaria (COP)"]
[null,"Costo total de la inversión antes de IVA (COP) - si son varios controladores de luminaria"]
[null,"IVA total de la inversión (COP) - si son varios controladores de luminaria"]
[null,"Normas técnicas nacionales o internacionales con las que cumplen los controladores de luminaria"]
[]
[null,"CONTROLADOR DE SEGMENTO"]
[null,"Marca"]
[null,"Modelo"]
[null,"Referencia"]
[null,"Cantidad de controladores de segmento"]
[null,"Costo unitario de los controladores de segmento antes de IVA (COP)"]
[null,"IVA de los controladores de segmento (COP)"]
[null,"Costo total de la inversión antes de IVA (COP) - si son varios controladores de segmento"]
[null,"IVA total de la inversión (COP) - si son varios controladores de segmento"]
[null,"Normas técnicas nacionales o internacionales con las que cumplen los controladores de segmento"]
[]
[null,"TERCIARIO / Mejora en el diseño, la construcción y la adecuación arquitectónica de edificaciones"]
[]
[null,"AISLAMIENTO TERMICO"]
[null,"Marca (si aplica)"]
[null,"Modelo (si aplica)"]
[null,"Referencia (si aplica)"]
[null,"Uso"]
[null,"Material"]
[null,"Tipo"]
[null,"Longitud (m)"]
[null,"Área (m2)"]
[null,"Espesor (mm)"]
[null,"Cantidad"]
[null,"Conductividad térmica"]
[null,"Límites de temperatura de operación (°C)"]
[null,"Costo unitario (m o m2) del aislamiento antes de IVA (COP)"]
[null,"IVA del aislamiento (COP)"]
[null,"Costo total de la inversión antes de IVA (COP) - si son varios aislamientos"]
[null,"IVA total de la inversión (COP) - si son varios aislamientos"]
[null,"Normas técnicas nacionales o internacionales con las que cumplen los aislamientos"]
[]
[null,"EXTRACTOR EOLICO"]
[null,"Material"]
[null,"Dimensiones (mm)"]
[null,"Peso (kg)"]
[null,"Caudal de diseño (m3/seg)"]
[null,"Costo unitario del extractor antes de IVA (COP)"]
[null,"IVA del extractor (COP)"]
[null,"Costo total de la inversión antes de IVA (COP) - si son varios extractores"]
[null,"IVA total de la inversión (COP) - si son varios extractores"]
[null,"Normas técnicas nacionales o internacionales con las que cumplen los extractores"]
[]
[null,"PINTURA ATERMICA"]
[null,"Marca"]
[null,"Referencia"]
[null,"Conductividad térmica (W/K·m)"]
[null,"Cantidad (gal)"]
[null,"Costo unitario del galón de pintura atérmica antes de IVA (COP)"]
[null,"IVA de la de pintura atérmica (COP)"]
[null,"Costo total de la inversión antes de IVA (COP)"]
[null,"IVA total de la inversión (COP)"]
[null,"Normas técnicas nacionales o internacionales con las que cumple la pintura atérmica"]
[]
[null,"VENTANA O FACHADA DE CONTROL SOLAR"]
[null,"Marca"]
[null,"Modelo"]
[null,"Referencia"]
[null,"Conductividad térmica (W/K·m)"]
[null,"Ganancia de calor o coeficiente de sombra (%)"]
[null,"Transmisión luminosa (%)"]
[null,"Cantidad (m2)"]
[null,"Costo unitario de ventana o fachada de control solar antes de IVA (COP)"]
[null,"IVA de la ventana o fachada de control solar (COP)"]
[null,"Costo total de la inversión antes de IVA (COP)"]
[null,"IVA total de la inversión (COP)"]
[null,"Normas técnicas nacionales o internacionales con las que cumple la ventana o fachada de control solar"]
[]
[null,"SERVICIO DE DISEÑO Y CERTIFICACION DE EDIFICACIONES"]
[null,"Proveedor"]
[null,"Alcance del servicio"]
[null,"Costo total de la inversión antes de IVA (COP)"]
[null,"IVA total de la inversión (COP)"]
[]
[null,"TERCIARIO / Evaluación e implementación de distritos térmicos "]
[]
[null,"CENTRAL DE PRODUCCION TERMICA"]
[null,"MICROTURBINA A GAS"]
[null,"Marca"]
[null,"Modelo"]
[null,"Referencia"]
[null,"Potencia (kW)"]
[null,"Velocidad (rpm)"]
[null,"Eficiencia nominal (%)"]
[null,"Cantidad"]
[null,"Costo unitario de la microturbina antes de IVA (COP)"]
[null,"IVA de la microturbina (COP)"]
[null,"Costo total de la inversión antes de IVA (COP) - si son varias microturbinas"]
[null,"IVA total de la inversión (COP) - si son varias microturbinas"]
[null,"Normas técnicas nacionales o internacionales con las que cumplen las microturbinas"]
[]
[null,"MOTOR DE COMBUSTION INTERNA"]
[null,"Marca"]
[null,"Modelo"]
[null,"Referencia"]
[null,"Potencia (MW)"]
[null,"Velocidad (rpm)"]
[null,"Eficiencia nominal (%)"]
[null,"Cantidad"]
[null,"Costo unitario del motor antes de IVA (COP)"]
[null,"IVA del motor (COP)"]
[null,"Costo total de la inversión antes de IVA (COP) - si son varios motores"]
[null,"IVA total de la inversión (COP) - si son varios motores"]
[null,"Normas técnicas nacionales o internacionales con las que cumplen los motor"]
[]
[null,"CHILLER ELECTRICO"]
[null,"Marca"]
[null,"Modelo"]
[null,"Referencia"]
[null,"Tipo de compresor"]
[null,"Sistema de enfriamiento"]
[null,"Número de compresores"]
[null,"Capacidad de enfriamiento (TR)"]
[null,"Eficiencia (COP, EER, IEER, IPVL)"]
[null,"Cantidad"]
[null,"Costo unitario del chiller antes de IVA (COP)"]
[null,"IVA del chiller (COP)"]
[null,"Costo total de la inversión antes de IVA (COP) - si son varios chiller"]
[null,"IVA total de la inversión (COP) - si son varios chiller"]
[null,"Normas técnicas nacionales o internacionales con las que cumplen los chiller"]
[]
[null,"CHILLER DE ABSORCION"]
[null,"Marca"]
[null,"Modelo"]
[null,"Referencia"]
[null,"Fuente de energía"]
[null,"Potencia frigorífica (kWt)"]
[null,"COP (Coefficient of Performance)"]
[null,"Cantidad"]
[null,"Costo unitario del chiller antes de IVA (COP)"]
[null,"IVA del chiller (COP)"]
[null,"Costo total de la inversión antes de IVA (COP) - si son varios chiller"]
[null,"IVA total de la inversión (COP) - si son varios chiller"]
[null,"Normas técnicas nacionales o internacionales con las que cumplen los chiller"]
[]
[null,"CENTRAL DE BOMBAS"]
[null,"Marca"]
[null,"Modelo"]
[null,"Referencia"]
[null,"Tipo"]
[null,"Potencia nominal (kW)"]
[null,"Unidades de caudal de diseño"]
[null,"Caudal de diseño"]
[null,"Cantidad de bombas"]
[null,"Costo unitario de las bombas antes de IVA (COP)"]
[null,"IVA de la bomba (COP)"]
[null,"Costo total de la inversión antes de IVA (COP) - si son varias bombas"]
[null,"IVA total de la inversión (COP) - si son varias bombas"]
[null,"Normas técnicas nacionales o internacionales con las que cumplen las bombas"]
[]
[null,"TUBERIA PARA RED DE DISTRIBUCION"]
[null,"Material"]
[null,"Diámetro (mm)"]
[null,"Espesor de pared (mm)"]
[null,"Límites de temperatura de operación (°C)"]
[null,"Presiones de operación (bar)"]
[null,"Longitud (m)"]
[null,"Diámetro (mm)"]
[null,"Angulo para codo a 45° y 90°"]
[null,"Material del aislamiento  (si aplica)"]
[null,"Conductividad térmica del aislamiento (si aplica)"]
[null,"Cantidad"]
[null,"Costo unitario de tubería antes de IVA (COP)"]
[null,"IVA de la tubería (COP)"]
[null,"Costo total de la inversión antes de IVA (COP) - si son varias tuberías"]
[null,"IVA total de la inversión (COP) - si son varias tuberías"]
[null,"Normas técnicas nacionales o internacionales con las que cumplen las tuberías"]
[]
[null,"AISLAMIENTO TERMICO"]
[null,"Marca"]
[null,"Modelo"]
[null,"Referencia"]
[null,"Uso"]
[null,"Material constitutivo"]
[null,"Tipo"]
[null,"Longitud (m)"]
[null,"Área (m2)"]
[null,"Espesor (mm)"]
[null,"Cantidad"]
[null,"Conductividad térmica"]
[null,"Límites de temperatura de operación (°C)"]
[null,"Costo unitario (m o m2) del aislamiento antes de IVA (COP)"]
[null,"IVA del aislamiento (COP)"]
[null,"Costo total de la inversión antes de IVA (COP) - si son varios aislamientos"]
[null,"IVA total de la inversión (COP) - si son varios aislamientos"]
[null,"Normas técnicas nacionales o internacionales con las que cumplen los aislamientos"]
[]
[null,"CENTRAL DE INTERCAMBIO TERMICO CON USUARIOS FINALES"]
[null,"INTERCAMBIADOR DE CALOR"]
[null,"Marca"]
[null,"Modelo"]
[null,"Referencia"]
[null,"Tipo"]
[null,"Uso"]
[null,"Área de transferencia de calor (m2)"]
[null,"Cantidad"]
[null,"Efectividad (%)"]
[null,"Costo unitario del intercambiador antes de IVA (COP)"]
[null,"IVA del intercambiador (COP)"]
[null,"Costo total de la inversión antes de IVA (COP) - si son varios intercambiadores"]
[null,"IVA total de la inversión (COP) - si son varios intercambiadores"]
[null,"Normas técnicas nacionales o internacionales con las que cumplen los intercambiadores"]
[]
[null,"VALVULA"]
[null,"Marca"]
[null,"Modelo"]
[null,"Referencia"]
[null,"Tipo"]
[null,"Costo unitario de la válvula antes de IVA (COP)"]
[null,"IVA de la válvula (COP)"]
[null,"Costo total de la inversión antes de IVA (COP) - si son varias válvulas"]
[null,"IVA total de la inversión (COP) - si son varias válvulas"]
[null,"Normas técnicas nacionales o internacionales con las que cumplen las válvulas"]
[]
[]
[null,"MEDIDOR DE FLUJO DE AGUA"]
[null,"Marca"]
[null,"Modelo"]
[null,"Referencia"]
[null,"Tipo"]
[null,"Diámetro (mm)"]
[null,"Cantidad"]
[null,"Costo unitario del medidor antes de IVA (COP)"]
[null,"IVA del motor (COP)"]
[null,"Costo total de la inversión antes de IVA (COP) - si son varios medidores"]
[null,"IVA total de la inversión (COP) - si son varios medidores"]
[null,"Normas técnicas nacionales o internacionales con las que cumplen los medidores"]
[]
[null,"TERCIARIO / Implementación de nuevos y modernos sistemas de medición "]
[]
[null,"MEDICION AVANZADA"]
[null,"MEDIDOR"]
[null,"Marca"]
[null,"Modelo"]
[null,"Referencia "]
[null,"Tensión (V)"]
[null,"Número de fases"]
[null,"Tecnología de comunicación"]
[null,"Otra"]
[null,"Funcionalidades"]
[null,"Cantidad"]
[null,"Costo unitario del medidor antes de IVA (COP)"]
[null,"IVA del motor (COP)"]
[null,"Costo total de la inversión antes de IVA (COP) - si son varios medidores"]
[null,"IVA total de la inversión (COP) - si son varios medidores"]
[null,"Normas técnicas nacionales o internacionales con las que cumplen los medidores"]
[]
[null,"TERCIARIO / Sistemas de Gestión de la Energía, SGEn"]
[]
[null,"EQUIPO DE SUBMEDICION"]
[null,"Marca"]
[null,"Modelo"]
[null,"Referencia"]
[null,"Tensión de referencia (V)"]
[null,"Corriente máxima (A)"]
[null,"Flujo (m3/h)"]
[null,"Cantidad"]
[null,"Costo unitario del medidor antes de IVA (COP)"]
[null,"IVA del motor (COP)"]
[null,"Costo total de la inversión antes de IVA (COP) - si son varios medidores"]
[null,"IVA total de la inversión (COP) - si son varios medidores"]
[null,"Normas técnicas nacionales o internacionales con las que cumplen los medidores"]
[]
[null,"SERVICIO DE DISEÑO E IMPLEMENTACION DE SGEn"]
[null,"Proveedor"]
[null,"Alcance del servicio"]
[null,"Costo total de la inversión antes de IVA (COP)"]
[null,"IVA total de la inversión (COP)"]

{"sheet":"Formato 3 Residencial","index":8,"n_rows":144,"n_cols":3,"rows_kept":144,"cut":false,"hidden":true,"merged":[[3,1,4,2],[5,1,5,2],[7,1,8,1],[7,2,8,2]]}
[]
[null,"FORMATO 3. Equipos objeto del incentivo","Fecha de elaboración: Noviembre de 2021"]
[null,null,"Versión 3"]
[null,"En esta sección se relacionan los elementos, equipos, maquinaria o servicios por los cuales se pretende obtener los incentivos tributarios y se indican sus características técnicas."]
[]
[]
[null,"Sector",{"$f":"'Formato 2'!R16","v":0}]
[null,"Acción o Medida",{"$f":"'Formato 2'!R17","v":0}]
[null,null,{"$f":"'Formato 2'!R18","v":0}]
[]
[null,"RESIDENCIAL / Iluminación"]
[]
[null,"ILUMINACION INTERIOR "]
[null,"FUENTES LUMINOSAS"]
[null,"Marca"]
[null,"Modelo"]
[null,"Referencia"]
[null,"Potencia nominal (W)"]
[null,"Eficacia luminosa (lm/W)"]
[null,"Vida útil (horas)"]
[null,"Factor de potencia"]
[null,"THD (%)"]
[null,"Cantidad de fuentes luminosas"]
[null,"Costo unitario de las fuentes luminosas antes de IVA (COP)"]
[null,"IVA de las fuentes luminosas (COP)"]
[null,"Costo total de la inversión antes de IVA (COP) - si son varias fuentes luminosas"]
[null,"IVA total de la inversión (COP) - si son varis fuentes luminosas"]
[null,"Normas técnicas nacionales o internacionales con las que cumplen las fuentes luminosas"]
[]
[null,"SISTEMA AUTOMATICO DE CONTROL DE ILUMINACION - SACI"]
[null,"Tipo de equipo"]
[null,"Marca"]
[null,"Modelo"]
[null,"Referencia"]
[null,"Cantidad"]
[null,"Costo de la inversión antes de IVA (COP)"]
[null,"IVA de la inversión (COP)"]
[null,"Normas técnicas nacionales o internacionales con las que cumple el equipo, elemento o maquinaria"]
[]
[]
[]
[null,"ILUMINACION EXTERIOR"]
[null,"FUENTES LUMINOSAS"]
[null,"Marca"]
[null,"Modelo"]
[null,"Referencia"]
[null,"Potencia nominal (W)"]
[null,"Eficacia luminosa (lm/W)"]
[null,"Vida útil (horas)"]
[null,"Factor de potencia"]
[null,"THD (%)"]
[null,"Cantidad de fuentes luminosas"]
[null,"Costo unitario de las fuentes luminosas antes de IVA (COP)"]
[null,"IVA de las fuentes luminosas (COP)"]
[null,"Costo total de la inversión antes de IVA (COP) - si son varias fuentes luminosas"]
[null,"IVA total de la inversión (COP) - si son varis fuentes luminosas"]
[null,"Normas técnicas nacionales o internacionales con las que cumplen las fuentes luminosas"]
[]
[null,"SISTEMA AUTOMATICO DE CONTROL DE ILUMINACION - SACI"]
[null,"Tipo de equipo"]
[null,"Marca"]
[null,"Modelo"]
[null,"Referencia"]
[null,"Cantidad"]
[null,"Costo de la inversión antes de IVA (COP)"]
[null,"IVA de la inversión (COP)"]
[null,"Normas técnicas nacionales o internacionales con las que cumple el equipo, elemento o maquinaria"]
[]
[null,"RESIDENCIAL / Mejora en el diseño, la construcción y la adecuación arquitectónica de edificaciones"]
[]
[null,"AISLAMIENTO TERMICO"]
[null,"Marca (si aplica)"]
[null,"Modelo (si aplica)"]
[null,"Referencia (si aplica)"]
[null,"Uso"]
[null,"Material"]
[null,"Tipo"]
[null,"Longitud (m)"]
[null,"Área (m2)"]
[null,"Espesor (mm)"]
[null,"Cantidad"]
[null,"Conductividad térmica"]
[null,"Límites de temperatura de operación (°C)"]
[null,"Costo unitario (m o m2) del aislamiento antes de IVA (COP)"]
[null,"IVA del aislamiento (COP)"]
[null,"Costo total de la inversión antes de IVA (COP) - si son varios aislamientos"]
[null,"IVA total de la inversión (COP) - si son varios aislamientos"]
[null,"Normas técnicas nacionales o internacionales con las que cumplen los aislamientos"]
[]
[null,"EXTRACTOR EOLICO"]
[null,"Material"]
[null,"Dimensiones (mm)"]
[null,"Peso (kg)"]
[null,"Caudal de diseño (m3/h)"]
[null,"Costo unitario del extractor antes de IVA (COP)"]
[null,"IVA del extractor (COP)"]
[null,"Costo total de la inversión antes de IVA (COP) - si son varios extractores"]
[null,"IVA total de la inversión (COP) - si son varios extractores"]
[null,"Normas técnicas nacionales o internacionales con las que cumplen los extractores"]
[]
[]
[null,"PINTURA ATERMICA"]
[null,"Marca"]
[null,"Referencia"]
[null,"Conductividad térmica"]
[null,"Cantidad (gal)"]
[null,"Costo unitario del galón de pintura atérmica antes de IVA (COP)"]
[null,"IVA de la de pintura atérmica (COP)"]
[null,"Costo total de la inversión antes de IVA (COP)"]
[null,"IVA total de la inversión (COP)"]
[null,"Normas técnicas nacionales o internacionales con las que cumple la pintura atérmica"]
[]
[null,"VENTANA O FACHADA DE CONTROL SOLAR"]
[null,"Marca"]
[null,"Modelo"]
[null,"Referencia"]
[null,"Conductividad térmica  (W/K·m)"]
[null,"Ganancia de calor o coeficiente de sombra (%)"]
[null,"Transmisión luminosa (%)"]
[null,"Cantidad (m2)"]
[null,"Costo unitario de ventana o fachada de control solar antes de IVA (COP)"]
[null,"IVA de la ventana o fachada de control solar (COP)"]
[null,"Costo total de la inversión antes de IVA (COP)"]
[null,"IVA total de la inversión (COP)"]
[null,"Normas técnicas nacionales o internacionales con las que cumple la ventana o fachada de control solar"]
[]
[null,"SERVICIO DE DISEÑO Y CERTIFICACION DE EDIFICACIONES"]
[null,"Proveedor"]
[null,"Alcance del servicio"]
[null,"Costo total de la inversión antes de IVA (COP)"]
[null,"IVA total de la inversión (COP)"]
[]
[null,"RESIDENCIAL / Implementación masiva de estufas mejoradas de leña "]
[]
[null,"Marca (si aplica)"]
[null,"Modelo (si aplica)"]
[null,"Referencia (si aplica)"]
[null,"Potencia nominal (BTU)"]
[null,"Eficiencia nominal (%)"]
[null,"Horas de uso al año"]
[null,"Cantidad"]
[null,"Costo de la inversión antes de IVA (COP)"]
[null,"IVA de la inversión (COP)"]
[null,"Normas técnicas nacionales o internacionales con las que cumple el equipo"]